{"text_format":"3","workbook":"xlsx","n_sheets":6,"sheets":["7 класс","8 класс","9 класс","10 класс","11 класс","предв.биология"],"not_rendered":{"defined_names":4},"read":"whole","date_system":"1900"}

{"sheet":"7 класс","index":0,"n_rows":76,"n_cols":21,"rows_kept":76}
["№","Код участника","Название ОУ","Фамилия","Имя","Отчество","Пол","Класс","Класс участия","задание 1","задание 2","задание3","Первичный балл","Добавлено по итогам апелляций","Итоговый балл","Максимальный балл","статус","призер РЭ прошлого года","Учитель","Место работы учителя","Предмет"]
[1,"261078_16329321963_27","Муниципальное автономное общеобразовательное учреждение \"Лицей №78 им. А. С. Пушкина\" города Набережные Челны Республики Татарсан","Хабиров","Нурислам","Рамилевич","м",7,7,11,9.5,0.5,21,null,null,30.5,"победитель","нет","Акманаева Светлана Витальевна","Муниципальное автономное общеобразовательное учреждение \"Лицей №78 им. А. С. Пушкина\" города Набережные Челны Республики Татарсан","Биология"]
[2,"261033_15971281092_27","Муниципальное бюджетное общеобразовательное учреждение \"Средняя общеобразовательная школа №33\" города Набережные Челны Республики Татарстан","Галемянова","Налия","Закиржановна","ж",7,7,8,8.5,3,19.5,null,null,30.5,"призёр","нет","Гарифуллина Эльвира Флюровна","Муниципальное бюджетное общеобразовательное учреждение \"Средняя общеобразовательная школа №33\" города Набережные Челны Республики Татарстан","Биология"]
[3,"261009_17247630070_27","Муниципальное бюджетное общеобразовательное учреждение \"Средняя школа №9\" города Набережные Челны Республики Татарстан","Нургалиев","Амир","Алмазович","м",7,7,9,9,1,19,null,null,30.5,"призёр","нет","Якупова Наталья Валерьевна","Муниципальное бюджетное общеобразовательное учреждение \"Средняя школа №9\" города Набережные Челны Республики Татарстан","Биология"]
[4,"261026_17207835266_27","Муниципальное бюджетное общеобразовательное учреждение \"Гимназия №26\" города Набережные Челны Республики Татарстан","Калашников","Артур","Олегович","м",7,7,6,10,3,19,null,null,30.5,"призёр","нет","Белова Алена Федоровна","Муниципальное бюджетное общеобразовательное учреждение \"Гимназия №26\" города Набережные Челны Республики Татарстан","Биология"]
[5,"261021_19182011050_27","Муниципальное автономное общеобразовательное учреждение города Набережные Челны \"Средняя общеобразовательная школа №21\" Республики Татарстан","Урасин","Михаил","Андреевич","м",7,7,10,6.5,2.5,19,null,null,30.5,"призёр","нет","Галиулина Альфира Харисовна","Муниципальное автономное общеобразовательное учреждение города Набережные Челны \"Средняя общеобразовательная школа №21\" Республики Татарстан","Биология"]
[6,"265001_17667883341_27","Муниципальное автономное общеооразовательное учреждение \"Гимназия №77\" города Набережные челны Республики Татарстан","Шамбуллин","Артемий","Дмитриевич","м",7,7,8,8.5,2,18.5,null,null,30.5,"призёр","нет","Ахметшина Лилия Расиховна","Муниципальное автономное общеооразовательное учреждение \"Гимназия №77\" города Набережные челны Республики Татарстан","Биология"]
[7,"261039_17617810082_27","Муниципальное бюджетное общеобразовательное учреждение \"Средняя общеобразовательная школа №39\" города Набережные Челны Республики Татарстан","Юлдашев","Раиль","Артурович","м",7,7,8,7.5,2.5,18,null,null,30.5,"призёр","нет","Данченко Марина Михайловна","Муниципальное бюджетное общеобразовательное учреждение \"Средняя общеобразовательная школа №39\" города Набережные Челны Республики Татарстан","Биология"]
[8,"261078_17247630272_27","Муниципальное автономное общеобразовательное учреждение \"Лицей №78 им. А. С. Пушкина\"  города  Набережные Челны Республики Татарстан","Галлямова","Алия","Айдаровна","ж",7,7,6,10,1.5,17.5,null,null,30.5,"призёр","нет","Сальникова Гульзера Рустамовна","Муниципальное автономное общеобразовательное учреждение \"Лицей №78 им. А. С. Пушкина\"  города  Набережные Челны Республики Татарстан","Биология"]
[9,"261031_15963342696_27","Муниципальное бюджетное общеобразовательное учреждение \"Средняя общеобразовательная школа №31 с углубленным изучением отдельных предметов\" города Набережные Челны Республики Татарстан","Максимова","Маргарита","Анатольевна","ж",7,7,6,9.5,2,17.5,null,null,30.5,"призёр","нет","Третьякова Ирина Михайловна","Муниципальное бюджетное общеобразовательное учреждение \"Средняя общеобразовательная школа №31 с углубленным изучением отдельных предметов\" города Набережные Челны Республики Татарстан","Биология"]
[10,"261039_17486545314_27","Муниципальное бюджетное общеобразовательное учреждение \"Средняя общеобразовательная школа №39\" города Набережные Челны Республики Татарстан","Газиятов","Самуэль","Рафаэлевич","м",7,7,8,7,2,17,null,null,30.5,"призёр","нет","Данченко Марина Михайловна","Муниципальное бюджетное общеобразовательное учреждение \"Средняя общеобразовательная школа №39\" города Набережные Челны Республики Татарстан","Биология"]
[11,"261041_15800825058_27","Муниципальное бюджетное общеобразовательное учреждение \" Средняя обшеобразовательная школа№ 41\"  города Набережные Челны Республики Татарстан","Сизова","Лейла","Руслановна","ж",7,7,7,7.5,2.5,17,null,null,30.5,"призёр","нет","Ахметзянова Валентина Сергеевна","Муниципальное бюджетное общеобразовательное учреждение \" Средняя обшеобразовательная школа№ 41\"  города Набережные Челны Республики Татарстан","Биология"]
[12,"261062_17253054450_27","Муниципальное бюджетное общеобразовательное учреждение «Средняя общеобразовательная школа \"Центр образования № 62\" города Набережные Челны Республики Татарстан","Салахова","Ясмина","Дамировна","ж",7,7,6,8.5,2,16.5,null,null,30.5,"призёр","нет","Хромова Оксана Сергеевна","Муниципальное бюджетное общеобразовательное учреждение «Средняя общеобразовательная школа \"Центр образования № 62\" города Набережные Челны Республики Татарстан","Биология"]
[13,"261036_15954368915_27","Муниципальное автономное общеобразовательное учреждение \"Лицей инновационных технологий №36\" город Набережные Челны Республики Татарстан","Мерц","Марта","Андреевна","ж",7,7,7,7.5,2,16.5,null,null,30.5,"призёр","нет","Пермякова Полина Александровна","Муниципальное автономное общеобразовательное учреждение \"Лицей инновационных технологий №36\" город Набережные Челны Республики Татарстан","Биология"]
[14,"261021_17639521299_27","Муниципальное автономное общеобразовательное учреждение города Набережные Челны \"Средняя общеобразовательная школа №21\" Республики Татарстан","Рязанова","Карина","Максимовна","ж",7,7,6,8.5,2,16.5,null,null,30.5,"призёр","нет","Галиулина Альфира Харисовна","Муниципальное автономное общеобразовательное учреждение города Набережные Челны \"Средняя общеобразовательная школа №21\"","Биология"]
[15,"261010_17396299425_27","Муниципальное бюджетное общеобразовательное учреждение \"Средняя общеобразовательная школа №10\" города Набережные Челны Республики Татарстан","Вахитова","Диляра","Айдаровна","ж",7,7,7,7,2,16,null,null,30.5,null,"нет","Корчагин Дмитрий Сергеевич","Муниципальное бюджетное общеобразовательное учреждение \"Средняя общеобразовательная школа №10\" города Набережные Челны Республики Татарстан","Биология"]
[16,"261050_17308152048_27","Муниципальное автономное общеобразовательное учреждение города Набережные Челны \"Средняя общеобразовательная школа №50 с углубленным изучением отдельных предметов\" Республики Татарстан","Корабаев","Данияр","Акмалович","м",7,7,7,6.5,2.5,16,null,null,30.5,null,"нет","Хуснутдинова Алия Фанусовна","Муниципальное автономное общеобразовательное учреждение города Набережные Челны \"Средняя общеобразовательная школа №50 с углубленным изучением отдельных предметов\" Республики Татарстан","Биология"]
[17,"261059_17044982880_27","Муниципальное бюджетное общеобразовательное учреждение «Полилингвальная гимназия № 59 «Адымнар-Чаллы»","Нигматуллина","Амелия","Руслановна","ж",7,7,8,7,1,16,null,null,30.5,null,"нет","Лутфуллина Гулюза Магъфуровна","Муниципальное бюджетное общеобразовательное учреждение «Полилингвальная гимназия № 59 «Адымнар-Чаллы»","Биология"]
[18,"261024_17224108535_27","Муниципальное бюджетное общеобразовательное учреждение \"Средняя общеобразовательная школа №24 с углубленным изучением отдельных предметов\" г. Набережные Челны Республики Татарстан","Рахманкулова","Варвара","Алексеевна","ж",7,7,6,9,1,16,null,null,30.5,null,"нет","Шайхайдарова Айзиряк Альбертовна","Муниципальное бюджетное общеобразовательное учреждение \"Средняя общеобразовательная школа №24 с углубленным изучением отдельных предметов\" г. Набережные Челны Республики Татарстан","Биология"]
[19,"261078_16130153006_27","Муниципальное автономное общеобразовательное учреждение \"Лицей №78 им. А. С. Пушкина\" грорда Набережные Челны Республики Татарстан","Карпов","Георгий","Александрович","м",7,7,5,9,1.5,15.5,null,null,30.5,null,"нет","Акманаева Светлана Витальевна","Муниципальное автономное общеобразовательное учреждение \"Лицей №78 им. А. С. Пушкина\" грорда Набережные Челны Республики Татарстан","Биология"]
[20,"261062_17529746916_27","Муниципальное бюджетное общеобразовательное учреждение «Средняя общеобразовательная школа \"Центр образования № 62\" города Набережные Челны Республики Татарстан","Захарова","Азалия","Александровна","ж",7,7,4,9.5,2,15.5,null,null,30.5,null,"нет","Хромова Оксана Сергеевна","Муниципальное бюджетное общеобразовательное учреждение «Средняя общеобразовательная школа \"Центр образования № 62\" города Набережные Челны Республики Татарстан","Биология"]
[21,"261059_18973532024_27","Муниципальное бюджетное общеобразовательное учреждение \"Полилингвальная гимназия № 59 «Адымнар-Чаллы\"  города Набережные Челны Республики Татарстан","Фаизов","Данияр","Ильнурович","м",7,7,7,7,1.5,15.5,null,null,30.5,null,"нет","Казакова Ирина Викторовна","Муниципальное бюджетное общеобразовательное учреждение \"Полилингвальная гимназия № 59 \"Адымнар-Чаллы\" города Набережные Челны Республики Татарстан","Биология"]
[22,"261025_17670733899_27","Муниципальное бюджетное общеобразовательное учреждение \"Средняя общеобразовательная школа №25\" города Набережные Челны Республики Татарстан","Никитина","Василиса","Валерьевна","ж",7,7,5,9,1,15,null,null,30.5,null,"нет","Глусская Галина Викторовна","Муниципальное бюджетное общеобразовательное учреждение \"Средняя общеобразовательная школа №25\" города Набережные Челны Республики Татарстан","Биология"]
[23,"261056_16042188236_27","Муниципальное автономное общеобразовательное учреждение города Набережные Челны \"Средняя общеобразовательная школа № 56\"  Республики Татарстан","Галлямов","Ролан","Русланович","м",7,7,5,9,1,15,null,null,30.5,null,"нет","Гибадуллина Чулпан Глюмовна","Муниципальное автономное общеобразовательное учреждение города Набережные Челны \"Средняя общеобразовательная школа № 56\"  Республики Татарстан","Биология"]
[24,"263003_16022587743_27","Муниципальное бюджетное общеобразовательное учреждение \"Средняя общеобразовательная школа №3\" города Набережные Челны Республики Татарстан","Фархутдинова","Разина","Ильдаровна","ж",7,7,4,9,2,15,null,null,30.5,null,"нет","Ахметзянова Рамиля Асгатовна","Муниципальное бюджетное общеобразовательное учреждение \"Средняя общеобразовательная школа №3\" города Набережные Челны Республики Татарстан","Биология"]
[25,"261057_15714658886_27","Муниципальное бюджетное общеобразовательное учреждение \"Центр образования - Гимназия №57 \"Притяжение\" город Набережные Челны Республики Татарстан","Биканова","Арина","Евгеньевна","ж",7,7,5,8,1.5,14.5,null,null,30.5,null,"нет","Юскаева Чулпан Мухаметнуровна","Муниципальное бюджетное общеобразовательное учреждение \"Центр образования - Гимназия №57 \"Притяжение\" город Набережные Челны Республики Татарстан","Биология"]
[26,"263004_16912656894_27","Муниципальное автономное общеобразовательное учреждение города Набережные Челны \"Средняя общеобразовательная школа №4\" Республики Татарстан","Сарвартдинова","Алия","Разифовна","ж",7,7,4,7.5,3,14.5,null,null,30.5,null,"нет","Агзамова Алия Василовна","Муниципальное автономное общеобразовательное учреждение города Набережные Челны \"Средняя общеобразовательная школа №4\" Республики Татарстан","Биология"]
[27,"261023_16164594680_27","Муниципальное бюджетное общеобразовательное учреждение \"Средняя общеобразовательная школа №23\" города Набережные Челны Республики Татарстан","Алексеева","Аделина","Михайловна","ж",7,7,5,9.5,0,14.5,null,null,30.5,null,"нет","Осипова Ирина Александровна","Муниципальное бюджетное общеобразовательное учреждение \"Средняя общеобразовательная школа №23\" города Набережные Челны Республики Татарстан","Биология"]
[28,"261076_18966747963_27","Муниципальное автономное общеобразовательное учреждение города Набережные Челны \"Гимназия №76\" Республики Татарстан","Садыкова","Ольга","Александровна","ж",7,7,8,3,3,14,null,null,30.5,null,"нет","Ахметова Елена Николаевна","Муниципальное автономное общеобразовательное учреждение города Набережные Челны \"Гимназия №76\" Республики Татарстан","Биология"]
[29,"261051_17471915694_27","Муниципальное автономное общеобразовательное учреждение города Набережные Челны \"Средняя общеобразовательная школа №51\" Республики Татарстан","Короткова","Виктория","Николаевна","ж",7,7,3,9.5,1.5,14,null,null,30.5,null,"нет","Лазарева Нататья Ивановна","Муниципальное автономное общеобразовательное учреждение города Набережные Челны \"Средняя общеобразовательная школа №51\" Республики Татарстан","Биология"]
[30,"261076_17132579159_27","Муниципальное автономное общеобразовательное учреждение города Набережные Челны \"Гимназия №76\" Республики Татарстан","Вахитова","Элина","Ленаровна","ж",7,7,5,8.5,0.5,14,null,null,30.5,null,"нет","Ахметова Елена Николаевна","Муниципальное автономное общеобразовательное учреждение города Набережные Челны \"Гимназия №76\" Республики Тататрстан","Биология"]
[31,"261035_17235359773_27","Муниципальное автономное общеобразовательное учреждение города Набережные Челны \"Средняя общеобразовтельная школа №35 с углубленным изучением отдельных предметов\" Республики Татарстан","Журавлева","Виктория","Артуровна","ж",7,7,4,7.5,2.5,14,null,null,30.5,null,"нет","Саетова Гульшат Вагизовна","Муниципальное автономное общеобразовательное учреждение города Набережные Челны \"Средняя общеобразовтельная школа №35 с углубленным изучением отдельных предметов\" Республики Татарстан","Биология"]
[32,"261009_15929558826_27","Муниципальное бюджетное общеобразовательное учреждение \"Средняя школа №9\" города Набережные Челны Республики Татарстан","Мерзловская","Алиса","Евгеньевна","ж",7,7,6,6.5,1.5,14,null,null,30.5,null,"нет","Якупова Наталья Валерьевна","Муниципальное бюджетное общеобразовательное учреждение \"Средняя школа №9\" города Набережные Челны Республики Татарстан","Биология"]
[33,"263052_15929345910_27","Муниципальное бюджетное общеобразовательное учреждение \"Средняя общеобразовательная школа №52\" города Набережные Челны Республики Татарстан","Хан","Камилла","Динаровна","ж",7,7,5,7,1.5,13.5,null,null,30.5,null,"нет","Нургалиеаа Элмира Фанисовна","Муниципальное бюджетное общеобразовательное учреждение \"Средняя общеобразовательная школа №52\" города Набережные Челны Республики Татарстан","Биология"]
[34,"263003_16767686035_27","Муниципальное бюджетное общеобразовательное учреждение \"Средняя общеобразовательная школа №3\" города Набережные Челны Республики Татарстан","Сыркина","Азалия","Алексеевна","ж",7,7,6,5.5,2,13.5,null,null,30.5,null,"нет","Ахметзянова Рамиля Асгатовна","Муниципальное бюджетное общеобразовательное учреждение \"Средняя общеобразовательная школа №3\" города Набережные Челны Республики Татарстан","Биология"]
[35,"261049_17031080819_27","Муниципальное автономное общеобразовательное учреждение \"Кадетская школа №49\" города Набережные Челны Республики Татарстан","Баранов","Дмитрий","Андреевич","м",7,7,4,7,2.5,13.5,null,null,30.5,null,"нет","Закирова Фирдавус Завитовна","Муниципальное автономное общеобразовательное учреждение \"Кадетская школа №49\" города Набережные Челны Республики Татарстан","Биология"]
[36,"261040_17120081918_27","Муниципальное автономное общеобразовательное учреждение города Набережные Челны \"Средняя общеобразовательная школа №40 с углубленным изучением\"","Тищенко","Максим","Антонович","м",7,7,4,6.5,2.5,13,null,null,30.5,null,"нет","Шарипова Тазкира Халитовна","Муниципальное автономное общеобразовательное учреждение города Набережные Челны \"Средняя общеобразовательная школа №40 с углубленным изучением\"","Биология"]
[37,"263079_17671298104_27","Муниципальное бюджетное общеобразовательное учереждение \"Лицей-интернат №79\" города Набережные Челны Республики Татарстан","Ганиев","Реналь","Рамилевич","м",7,7,4,7.5,1.5,13,null,null,30.5,null,"нет","Бариева Назия Галимулловна","Муниципальное бюджетное общеобразовательное учереждение \"Лицей-интернат №79\" города Набережные Челны Республики Татарстан","Биология"]
[38,"261033_15828152786_27","муниципальное бюджетное общеобразовательное учреждение \"Средняя общеобразовательная школа №33\" города Набережные Челны Республики Татарстан","Салихова","Эльвина","Инзелевна","ж",7,7,4,7,2,13,null,null,30.5,null,"нет","Гарифуллина Эльвира Флюровна","муниципальное бюджетное общеобразовательное учреждение \"Средняя общеобразовательная школа №33\" города Набережные Челны Республики Татарстан","Биология"]
[39,"261055_15929567322_27","Муниципальное автономное общеобразовательное учреждение города Набережные Челны \"Средняя общеобразовательная школа №55\" Республики Татарстан","Косарева","Сабина","Денисовна","ж",7,7,3,8,2,13,null,null,30.5,null,"нет","Оруджева Наталья Викторовна","Муниципальное автономное общеобразовательное учреждение города Набережные Челны \"Средняя общеобразовательная школа №55\" Республики Татарстан","Биология"]
[40,"263054_16009893470_27","Муниципальное бюджетное общеобразовательное учреждение \"Гимназия №54\" города Набережные Челны Республика Татарстан","Шайхуллина","Амина","Руслановна","ж",7,7,5,6.5,1.5,13,null,null,30.5,null,"нет","Забихуллина Айгуль Рафиковна","Муниципальное бюджетное общеобразовательное учреждение \"Гимназия №54\" города Набережные Челны Республика Татарстан","Биология"]
[41,"261016_16290320345_27","Муниципальное бюджетное общеобразовательное учреждение \"Средняя общеобразовательная школа \"Центр образования №16\" города Набережные Челны Республики татарстан","Ахметшина","Аделина","Азаматовна","ж",7,7,2,9.5,1,12.5,null,null,30.5,null,"нет","Фазуллина Светлана Владимировна","Муниципальное бюджетное общеобразовательное учреждение \"Средняя общеобразовательная школа \"Центр образования №16\" города Набережные Челны Республики татарстан","Биология"]
[42,"261082_17282820882_27","Государственное бюджетное общеобразовательное учреждение \"Кадетская школа №82 имени Героя Советского Союза Ильдара Маннанова\" города Набережные Челны Республики Татарстан","Чернышов","Кирилл","Дмитриевич","м",7,7,3,7.5,2,12.5,null,null,30.5,null,"нет","Стеганцева Ирина Петровна","Государственное бюджетное общеобразовательное учреждение \"Кадетская школа №82 имени Героя Советского Союза Ильдара Маннанова\" города Набережные Челны Республики Татарстан","Биология"]
[43,"261021_17224121830_27","Муниципальное автономное общеобразовательное учреждение города Набережные Челны \"Средняя общеобразовательная школа №21\"","Хуснутдинов","Марат","Рамилевич","м",7,7,3,7,2,12,null,null,30.5,null,"нет","Галиулина Альфира Харисовна","Муниципальное автономное общеобразовательное учреждение города Набережные Челны \"Средняя общеобразовательная школа №21\"","Биология"]
[44,"261007_17307621052_27","Муниципальное бюджетное общеобразовательное учреждение \"Средняя общеобразовательная школа №7\" город Набережные Челны Республики Татарстан","Торопова","Амалия","Вадимовна","ж",7,7,3,7.5,1,11.5,null,null,30.5,null,"нет","Махмутова Расимя Самигулловна","Муниципальное бюджетное общеобразовательное учреждение \"Средняя общеобразовательная школа №7\" город Набережные Челны Республики Татарстан","Биология"]
[45,"261030_16844007171_27","Муниципальное бюджетное общеобразовательное учреждение \"Средняя общеобразовательная школа №30\" города Набережные Челны Республики Татарстан","Хуснетдинов","Карим","Ильдарович","м",7,7,3,7.5,1,11.5,null,null,30.5,null,"нет","Ахмедова Зарема Насрудиновна","Муниципальное бюджетное общеобразовательное учреждение \"Средняя общеобразовательная школа №30\" города Набережные Челны Республики Татарстан","Биология"]
[46,"261035_17327373273_27","Муниципальное автономное общеобразовательное учреждение города Набережные Челны \"Средняя общеобразовтельная школа №35 с углубленным изучением отдельных предметов\" Республики Татарстан","Востокова","Анастасия","Евгеньевна","ж",7,7,1,7.5,2,10.5,null,null,30.5,null,"нет","Саетова Гульшат Вагизовна","Муниципальное автономное общеобразовательное учреждение города Набережные Челны \"Средняя общеобразовтельная школа №35 с углубленным изучением отдельных предметов\" Республики Татарстан","Биология"]
[47,"263002_16192994704_27","Муниципальное бюджетное общеобразовательное учреждение \"Гимназия №2 имени Мулланура Вахитова\" города Набережные Челны Республики Татарстан","Гасимова","Сафия","Исламовна","ж",7,7,7,2.5,1,10.5,null,null,30.5,null,"нет","Хабриева Светлана Ивановна","Муниципальное бюджетное общеобразовательное учреждение \"Гимназия №2 имени Мулланура Вахитова\" города Набережные Челны Республики Татарстан","Биология"]
[48,"263084_16198144081_27","Муниципальное автономное общеобразовательное учреждение города Набережные Челны \"Лицей-интернат №84 имени Гали Акыша\" Республики Татарстан","Вафин","Адель","Марсович","м",7,7,1,7.5,2,"10,5",null,null,30.5,null,"нет","Хабибулина Алсу Сабирзяновна","Муниципальное автономное общеобразовательное учреждение города Набережные Челны \"Лицей-интернат №84 имени Гали Акыша\" Республики Татарстан","Биология"]
[49,"261028_17272557079_27","Муниципальное бюджетное общеобразовательное учреждение \"Средняя общеобразовательная школа №28\" города Набережные Челны Республики Татарстан","Гайнутдинов","Амир","Айратович","м",7,7,5,2,3,10,null,null,30.5,null,"нет","Малова Наталья Александровна","Муниципальное бюджетное общеобразовательное учреждение \"Средняя общеобразовательная школа №28\" города Набережные Челны Республики Татарстан","Биология"]
[50,"261051_17247477694_27","Муниципальное автономное общеобразовательное учреждение города Набережные Челны \"Средняя общеобразовательная школа №51\" Республики Татарстан","Рыбьякова","Влада","Игоревна","ж",7,7,7,1.5,1.5,10,null,null,30.5,null,"нет","Лазарева Нататья Ивановна","Муниципальное автономное общеобразовательное учреждение города Набережные Челны \"Средняя общеобразовательная школа №51\" Республики Татарстан","Биология"]
[51,"263018_17276267393_27","Муниципальное бюджетное общеобразовательное учреждение \"Средняя общеобразовательная школа №18 с углубленным изучением отдельных предметов»\" города Набережные Челны Республики Татарстан","Хамидуллина","Милана","Ринатовна","ж",7,7,6,2.5,1,9.5,null,null,30.5,null,"нет","Алексашечкина Вера Владимировна","Муниципальное бюджетное общеобразовательное учреждение \"Средняя общеобразовательная школа №18 с углубленным изучением отдельных предметов\" города Набережные Челны Республики Татарстан","Биология"]
[52,"261006_17324124843_27","Муниципальное бюджетное общеобразовательное учреждение «Средняя общеобразовательная школа №6» город Набережные Челны Республики Татарстан","Хасаншина","Милана","Руслановна","ж",7,7,6,2,1.5,9.5,null,null,30.5,null,"нет","Абдуллаева Ольга Николаевна","Муниципальное бюджетное общеобразовательное учреждение «Средняя общеобразовательная школа №6» город Набережные Челны Республики Татарстан","Биология"]
[53,"261037_15895707024_27","Муниципальное бюджетное общеобразовательное учреждение\"Средняя общеобразовательное школа № 37 с углубленным изучением отдельных предметов\" города Набережные Челны Республики Татарстан","Валеева","Гузель","Ильназовна","ж",7,7,3,5.5,0.5,9,null,null,30.5,null,"нет","Сабирова Гузель Ракиповна","Муниципальное бюджетное общеобразовательное учреждение\"Средняя общеобразовательное школа № 37 с углубленным изучением отдельных предметов\" города Набережные Челны Республики Татарстан","Биология"]
[54,"263058_17804700169_27","Муниципальное бюджетное общеобразовательное учреждение \" Средняя общеобразовательная школа №58\"","Гибадуллин","Шамиль","Рамилевич","м",7,7,2,6.5,0.5,9,null,null,30.5,null,"нет","Хасанова Диляра Флюсовна","Муниципальное бюджетное общеобразовательное учреждение \" Средняя общеобразовательная школа №58\"","Биология"]
[55,"261036_15875257411_27","Муниципальное автономное общеобразовательное учреждение \"Лицей инновационных технологий №36\" города Набережные Челны Республики Татарстан","Дючкова","Кира","Юрьевна","ж",7,7,6,1.5,1.5,9,null,null,30.5,null,"нет","Пермякова Полина Александровна","Муниципальное автономное общеобразовательное учреждение \"Лицей инновационных технологий №36\" города Набережные Челны Республики Татарстан","Биология"]
[56,"261042_15805674385_27","Муниципальное бюджетная общеобразовательное учреждение \"Средняя общеобразовательная школа № 42\" города Набережные Челны Республики Татарстан","Аносов","Алексей","Витальевич","м",7,7,5,0.5,3,8.5,null,null,30.5,null,"нет","Садыкова Валерия Александровна","Муниципальное бюджетная общеобразовательное учреждение \"Средняя общеобразовательная школа № 42\" города Набережные Челны Республики Татарстан","Биология"]
[57,"261034_15839635110_27","Муниципальное автономное образовательное учреждение \"СОШ №34 с углубленным изучением отдельных предметов\" города Набережные Челны Республики Татарстан","Костромидина","Мария","Дмитриевна","ж",7,7,2,6,0.5,8.5,null,null,30.5,null,"нет","Бариева Назия Галимулловна","Муниципальное автономное образовательное учреждение \"СОШ №34 с углубленным изучением отдельных предметов\" города Набережные Челны Республики Татарстан","Биология"]
[58,"261060_17105064325_27","Муниципальное бюджетное общеобразовательное учреждение \"Средняя общеобразовательная школа №60\" города Набережные Челны Республики Татарстан","Баязитова","Алина","Салаватовна","ж",7,7,4,3,1.5,8.5,null,null,30.5,null,"нет","Насибуллина Маргарита Сергеевна","Муниципальное бюджетное общеобразовательное учреждение \"Средняя общеобразовательная школа №60\" города Набережные Челны Республики Татарстан","Биология"]
[59,"261009_16255347164_27","Муниципальное бюджетное общеобразовательное учреждение \"Средняя школа №9\"   города Набережные Челны Республики Татарстан","Мустафина","Дарина","Рамисовна","ж",7,7,5,2,1.5,8.5,null,null,30.5,null,"нет","Якупова Наталья Валерьевна","Муниципальное бюджетное общеобразовательное учреждение \"Средняя школа №9\"   города Набережные Челны Республики Татарстан","Биология"]
[60,"263012_19262269589_27","Муниципальное бюджетное общеобразовательное учреждение \"Средняя общеобразовательная школа №12\" города Набережные Челны Республики Тататрстан","Шайгарданова","Камиля","Ильнуровна","ж",7,7,4,1.5,2.5,8,null,null,30.5,null,"нет","Сабирова Фидалия Минсалиховна","Муниципальное бюджетное общеобразовательное учреждение \"Средняя общеобразовательная школа №12\" города Набережные Челны Республики Тататрстан","Биология"]
[61,"261046_17157427274_27","Муниципальное бюджетное общеобразовательное учреждение \"Средняя общеобразовательная школа №46 имени кавалера ордена Мужества Дмитрия Бадретдинова\" города Набережные Челны  Республики Татарстан","Летова","Анна","Сергеевна","ж",7,7,3,1.5,2.5,7,null,null,30.5,null,"нет","Мирошев Александр Владимирович","Муниципальное бюджетное общеобразовательное учреждение \"Средняя общеобразовательная школа №46 имени кавалера ордена Мужества Дмитрия Бадретдинова\" города Набережные Челны  Республики Татарстан","Биология"]
[62,"263029_17224131868_27","Муниципальное бюджетное общеобразовательное учреждение \"Гимназия №29\" города Набережные Челны Республики Татарстан","Галимзянова","Мадина","Айдаровна","ж",7,7,4,0.5,2,6.5,null,null,30.5,null,"нет","Тимофеева Анастасия Владимировна","Муниципальное бюджетное общеобразовательное учреждение \"Гимназия №29\" города Набережные Челны Республики Татарстан","Биология"]
[63,"261042_17132572347_27","Муниципальное бюджетная общеобразовательное учреждение \"Средняя общеобразовательная школа № 42\"города Набережные Челны Республики Татарстан","Кириллова","Виктория","Дмитриевна","ж",7,7,2,1.5,1,4.5,null,null,30.5,null,"нет","Садыкова Валерия Александровна","Муниципальное бюджетная общеобразовательное учреждение \"Средняя общеобразовательная школа № 42\"города Набережные Челны Республики Татарстан","Биология"]
[]
[null,"не явились"]
[1,"261061_17634393493_27","муниципальное автономное общеобразовательное учреждение \"Гимназия №61\" города Набережные Челны Республики Татарстан","Миронов","Кирилл","Олегович","м",7,7,{"$nulls":8},"нет","Степанова Елена Васильевна","муниципальное автономное общеобразовательное учреждение \"Гимназия №61\" города Набережные Челны Республики Татарстан","Биология"]
[2,"261024_17224108535_27","Муниципальное бюджетное общеобразовательное учреждение \"Средняя общеобразовательная школа №24 с углубленным изучением отдельных предметов\" города Набережные Челны Республики Татарстан","Рахманкулова","Варвара","Алексеевна","ж",7,7,{"$nulls":8},"нет","Шайхайдарова Айзиряк Альбертовна","Муниципальное бюджетное общеобразовательное учреждение \"Средняя общеобразовательная школа №24 с углубленным изучением отдельных предметов\" города Набережные Челны Республики Татарстан","Биология"]
[3,"261060_18070125034_27","Муниципальное бюджетное общеобразовательное учреждение \"Средняя общеобразовательная школа №60\" города Набережные Челны Республики Татарстан","Прыгунова","Вероника","Сергеевна","ж",7,7,{"$nulls":8},"нет","Насибуллина Маргарита Сергеевна","Муниципальное бюджетное общеобразовательное учреждение \"Средняя общеобразовательная школа №60\" города Набережные Челны Республики Татарстан","Биология"]
[4,"265001_17667883341_27","Муниципальное автономное общеоьразовательное учреждение \"Гимназия №77\" города Набережные Челны Республики Татарстан","Шамбулин","Артемий","Дмитриевич","м",7,7,{"$nulls":8},"нет","Ахметшина Лилия Расиховна","Муниципальное автономное общеоьразовательное учреждение \"Гимназия №77\" города Набережные Челны Республики Татарстан","Биология"]
[5,"261032_17699184646_27","Муниципальное бюджетное общеобразовательное учреждение \"Средняя общеобразовательная школа № 32 с углубленным изучением отдельных предметов\" города Набережные Челны Республики Татарстан","Уханова","Елизавета","Дмитриевна","ж",7,7,{"$nulls":8},"нет","Сахабиева Алсу Габделбаровна","Муниципальное бюджетное общеобразовательное учреждение \"Средняя общеобразовательная школа № 32 с углубленным изучением отдельных предметов\" города Набережные Челны Республики Татарстан","Биология"]
[6,"261049_17152195254_27","Муниципальное автономное общеобразовательное учреждение \"Кадетская школа №49\" города Набережные Челны Республики Татарстан","Ибрагимова","Аделина","Рамильевна","ж",7,7,{"$nulls":8},"нет","Закирова Фирдавус Завитовна","Муниципальное автономное общеобразовательное учреждение \"Кадетская школа №49\" города Набережные Челны Республики Татарстан","Биология"]
[7,"261081_17748272009_27","Государственное бюджетное общеобразовательное учреждение \"Кадетская школа полиции \"Калкан\" города Набережные Челны Республики Татарстан","Ганиев","Камиль","Эльмарович","м",7,7,{"$nulls":8},"нет","Хайдарова Зиля Равиловна","Государственное бюджетное общеобразовательное учреждение \"Кадетская школа полиции \"Калкан\" города Набережные Челны Республики Татарстан","Биология"]
[8,"263054_16009893470_27","Муниципальное бюджетное общеобразовательное учреждение \"Гимназия №54\" города Набережные Челны Республика Татарстан","Шайхуллина","Амина","Руслановна","ж",7,7,{"$nulls":8},"нет","Забихуллина Айгуль Рафиковна","Муниципальное бюджетное общеобразовательное учреждение \"Гимназия №54\" города Набережные Челны Республика Татарстан","Биология"]
[9,"261048_17420279354_27","Муниципальное автономное общеобразовательное учреждение города Набережные Челны \"Средняя общеобразовательная школа №48\" Республики Татарстан","Прохницкая","Екатерина","Сергеевна","ж",7,7,{"$nulls":8},"нет","Назырова Аделя Азатовна","Муниципальное автономное общеобразовательное учреждение города Набережные Челны \"Средняя общеобразовательная школа №48\" Республики Татарстан","Биология"]
[10,"261038_17122153220_27","Муниципальное автономное общеобразовательное учреждение \"Средняя общеобразовательная школа №38\" города Набережные Челны Республики Татарстан","Жилов","Владимир","Сергееви","м",7,7,{"$nulls":8},"нет","Минникова Марина Ивановна","Муниципальное автономное общеобразовательное учреждение \"Средняя общеобразовательная школа №38\" города Набережные Челны Республики Татарстан","Биология"]

{"sheet":"8 класс","index":1,"n_rows":60,"n_cols":19,"rows_kept":60}
["№","Код участника","Название ОУ","Фамилия","Имя","Отчество","Пол","Класс","Класс участия","1 Задание","2 Задание","3 Задание","балл","максимальный балл","статус","призер РЭ прошлого года","Учитель","Место работы учителя","Предмет"]
[1,"261078_15813079771_27","Муниципальное автономное общеобразовательное учреждение \"Лицей №78 им. А. С. Пушкина\" город Набережные Челны Республики Татарстан","Храмова","Арина","Сергеевна","ж",8,8,11,9.5,3.5,{"$f":"SUM(J2:L2)","v":24},33,"победитель","нет","Сальникова Гульзера Рустамовна","Муниципальное автономное общеобразовательное учреждение \"Лицей №78 им. А. С. Пушкина\" город Набережные Челны Республики Татарстан","Биология"]
[2,"261026_18092002242_27","Муниципальное бюджетное общеобразовательное учреждение \"Гимназия №26\" город  Набережные Челны Республики Татарстан","Кузнецов","Денис","Дмитриевич","м",8,8,9,9.5,3.5,22,33,"призер","нет","Моисеева Инна Анатольевна","Муниципальное бюджетное общеобразовательное учреждение \"Гимназия №26\" город  Набережные Челны Республики Татарстан","Биология"]
[3,"261078_16844005268_27","Муниципальное автономное общеобразовательное учреждение \"Лицей №78 им. А. С. Пушкина\" город Набережные Челны Республики Татарстан","Кулагина","Дарья","Александровна","ж",8,8,10,7.5,4.5,22,33,"призер","нет","Сальникова Гульзера Рустамовна","Муниципальное автономное общеобразовательное учреждение \"Лицей №78 им. А. С. Пушкина\" город Набережные Челны Республики Татарстан","Биология"]
[4,"261081_15641329459_27","Государственное бюджетное общеобразовательное учреждение \"Кадетская школа полиции \"Калкан\" города Набережные Челны Республики Татарстан","Амитов","Амин","Алмазович","м",8,8,9,8.5,4.5,22,33,"призер","нет","Хайдарова Зиля Равиловна","Государственное бюджетное общеобразовательное учреждение \"Кадетская школа полиции \"Калкан\" города Набережные Челны Республики Татарстан","Биология"]
[5,"261026_17157428276_27","Муниципальное бюджетное общеобразовательное учреждение \"Гимназия №26\" город Набережные Челны Республики Татарстан","Нурышева","Диляра","Ленаровна","ж",8,8,9,10.5,2,21.5,33,"призер","нет","Моисеева Инна Анатольевна","Муниципальное бюджетное общеобразовательное учреждение \"Гимназия №26\" город Набережные Челны Республики Татарстан","Биология"]
[6,"261019_15813079165_27","Муниципальное бюджетное общеобразовательное учреждение \"Средняя общеобразовательная школа №19\" город Набережные Челны Республики Татарстан","Шакирьянова","Фарида","Рустамовна","ж",8,8,9,7.5,4,20.5,33,"призер","нет","Азовцева Альфия Мирзаяновна","Муниципальное бюджетное общеобразовательное учреждение \"Средняя общеобразовательная школа №19\" город Набережные Челны Республики Татарстан","Биология"]
[7,"261078_17094593697_27","Муниципальное автономное общеобразовательное учреждение \"Лицей №78 им. А. С. Пушкина\" город Набережные Челны Республики Татарстан","Галиуллина","Маргарита","Ринасовна","ж",8,8,11,8.5,1,20.5,33,"призер","нет","Сальникова Гульзера Рустамовна","Муниципальное автономное общеобразовательное учреждение \"Лицей №78 им. А. С. Пушкина\" город Набережные Челны Республики Татарстан","Биология"]
[8,"261078_16900369269_27","Муниципальное автономное общеобразовательное учреждение \"Лицей №78 им. А. С. Пушкина\" город Набережные Челны Республики Татарстан","Хайдаров","Данис","Маратович","м",8,8,9,8.5,3,20.5,33,"призер","нет","Сальникова Гульзера Рустамовна","Муниципальное автономное общеобразовательное учреждение \"Лицей №78 им. А. С. Пушкина\" город Набережные Челны Республики Татарстан","Биология"]
[9,"263079_17139109056_27","Муниципальное бюджетное общеобразовательное учереждение \"Лицей-интернат №79\" город Набережные Челны Республики Татарстан","Фатихов","Нурислам","Русланович","м",8,8,10,8.5,1.5,20,33,"призер","нет","Бариева Назия Галимулловна","Муниципальное бюджетное общеобразовательное учереждение \"Лицей-интернат №79\" город Набережные Челны Республики Татарстан","Биология"]
[10,"261042_17149961904_27","Муниципальное бюджетная общеобразовательное учреждение \"Средняя общеобразовательная школа № 42\" город Набережные Челны Республики Татарстан","Бекетова","Софья","Матвеевна","ж",8,8,9,8,2.5,19.5,33,"призер","нет","Сайранова Алина Гаптенуровна","Муниципальное бюджетная общеобразовательное учреждение \"Средняя общеобразовательная школа № 42\" город Набережные Челны Республики Татарстан","Биология"]
[11,"261078_19074498202_27","Муниципальное автономное общеобразовательное учреждение \"Лицей №78 им. А. С. Пушкина\"город Набережные Челны Республики Татарстан","Камашев","Динар","Артурович","м",8,8,5,10,4,19,33,"призер","нет","Сальникова Гульзера Рустамовна","Муниципальное автономное общеобразовательное учреждение \"Лицей №78 им. А. С. Пушкина\"город Набережные Челны Республики Татарстан","Биология"]
[12,"261030_17157453982_27","Муниципальное бюджетное общеобразовательное учреждение \"Средняя общеобразовательная школа №30\" города Набережные Челны Республики Татарстан","Хафизов","Камиль","Азатович","м",8,8,8,7.5,3.5,19,33,"призер","нет","Салихов Марат Ялилович","Муниципальное бюджетное общеобразовательное учреждение \"Средняя общеобразовательная школа №30\" города Набережные Челны Республики Татарстан","Биология"]
[13,"261034_16914772098_27","Муниципальное автономное образовательное учреждение \"СОШ №34 с углубленным изучением отдельных предметов\" город Набережные Челны Республики Татарстан","Трофимов","Михаил","Сергеевич","м",8,8,10,6.5,2,18.5,33,null,"нет","Бариева Назия Галимулловна","Муниципальное автономное образовательное учреждение \"СОШ №34 с углубленным изучением отдельных предметов\" город Набережные Челны Республики Татарстан","Биология"]
[14,"261019_16213298642_27","МБОУ \"Средняя общеобразовательная школа №19 с углубленным изучением отдельных предметов\"город Набережные Челны Республики Татарстан","Шарифуллина","Адиля","Радиковна","ж",8,8,8,7.5,3,18.5,33,null,"нет","Азовцева Альфия Мирзаяновна","МБОУ \"Средняя общеобразовательная школа №19 с углубленным изучением отдельных предметов\"город Набережные Челны Республики Татарстан","Биология"]
[15,"261051_17069969319_27","Муниципальное автономное общеобразовательное учреждение города Набережные Челны \"Средняя общеобразовательная школа №51\"Республики Татарстан","Брекоткина","Маргарита","Сергеевна","ж",8,8,7,8,3,18,33,null,"нет","Лазарева Нататья Ивановна","Муниципальное автономное общеобразовательное учреждение города Набережные Челны \"Средняя общеобразовательная школа №51\"Республики Татарстан","Биология"]
[16,"261078_17334813569_27","Муниципальное автономное общеобразовательное учреждение \"Лицей №78 им. А. С. Пушкина\" город Набережные Челны Республики Татарстан","Шарыкова","Анастасия","Сергеевна","ж",8,8,7,8,3,18,33,null,"нет","Сальникова Гульзера Рустамовна","Муниципальное автономное общеобразовательное учреждение \"Лицей №78 им. А. С. Пушкина\" город Набережные Челны Республики Татарстан","Биология"]
[17,"261078_16312835650_27","Муниципальное автономное общеобразовательное учреждение \"Лицей №78 им. А. С. Пушкина\"город Набережные Челны Республики Татарстан","Высоцкая","Софья","Егоровна","ж",8,8,7,8,2.5,17.5,33,null,"нет","Сальникова Гульзера Рустамовна","Муниципальное автономное общеобразовательное учреждение \"Лицей №78 им. А. С. Пушкина\"город Набережные Челны Республики Татарстан","Биология"]
[18,"261040_17089088501_27","Муниципальное автономное общеобразовательное учреждение города Набережные Челны \"Средняя общеобразовательная школа №40 с углубленным изучением\"Республики Татарстан","Чурбанов","Тихон","Андреевич","м",8,8,7,7.5,2,16.5,33,null,"нет","Шарипова Тазкира Халитовна","Муниципальное автономное общеобразовательное учреждение города Набережные Челны \"Средняя общеобразовательная школа №40 с углубленным изучением\"Республики Татарстан","Биология"]
[19,"261001_17260116538_27","Муниципальное автономное общеобразовательное учреждение города Набережные Челны \"Средняя общеобразовательная школа №1\"Республики Татарстан","Нуртдинова","Азалия","Рамилевна","ж",8,8,4,9.5,2,15.5,33,null,"нет","Тихонова Наталья Сергеевна","Муниципальное автономное общеобразовательное учреждение города Набережные Челны \"Средняя общеобразовательная школа №1\"Республики Татарстан","Биология"]
[20,"261028_17295478413_27","Муниципальное бюджетное общеобразовательное учреждение \"Средняя общеобразовательная школа №28\" город Набережные Челны Республики Татарстан","Иванова","Любовь","Борисовна","ж",8,8,5,9.5,1,15.5,33,null,"нет","Ялалова Рита Адельшиновна","Муниципальное бюджетное общеобразовательное учреждение \"Средняя общеобразовательная школа №28\" город Набережные Челны Республики Татарстан","Биология"]
[21,"261041_17105062927_27","Муниципальное бюджетное общеобразовательное учреждение \" Средняя обшеобразовательная школа№ 41\" город Набережные челны Республики Татарстан","Калимуллин","Фаниль","Шамилевич","м",8,8,5,9,1.5,15.5,33,null,"нет","Хуснутдинова Кристина Вячеславовна","Муниципальное бюджетное общеобразовательное учреждение \" Средняя обшеобразовательная школа№ 41\" город Набережные челны Республики Татарстан","Биология"]
[22,"265001_17295475407_27","Муниципальное автономное общеобразовательное учреждение \"Гимназия №77\" город Набережные Челны Республики Татарстан","Белякаева","Дарья","Борисовна","ж",8,8,5,8.5,1.5,15,33,null,"нет","Ахметшина Лилия Расиховна","Муниципальное автономное общеобразовательное учреждение \"Гимназия №77\" город Набережные Челны Республики Татарстан","Биология"]
[23,"261010_17272558586_27","Муниципальное бюджетное общеобразовательное учреждение \"Средняя общеобразовательная школа №10\" город Набережные Челны Республики Татарстан","Сунгатуллина","Ильзира","Ирековна","ж",8,8,7,6,2,15,33,null,"нет","Тукмачева Марина Михайловна","Муниципальное бюджетное общеобразовательное учреждение \"Средняя общеобразовательная школа №10\" город Набережные Челны Республики Татарстан","Биология"]
[24,"261031_19171352671_27","Муниципальное бюджетное общеобразовательное учреждение \"Средняя общеобразовательная школа №31 с углубленным изучением отдельных предметов\" город Набережные Челны Республики Татарстан","Кашапов","Георгий","Радикович","м",8,8,5,8.5,1,14.5,33,null,"нет","Третьякова Ирина Михайловна","Муниципальное бюджетное общеобразовательное учреждение \"Средняя общеобразовательная школа №31 с углубленным изучением отдельных предметов\" город Набережные Челны Республики Татарстан","Биология"]
[25,"261035_17140107114_27","Муниципальное автономное общеобразовательное учреждение города Набережные Челны \"Средняя общеобразовтельная школа №35 с углубленным изучением отдельных предметов\" Республики Татарстан","Мещерякова","Дарья","Владимировна","ж",8,8,5,9.5,0,14.5,33,null,"нет","Саетова Гульшат Вагизовна","Муниципальное автономное общеобразовательное учреждение города Набережные Челны \"Средняя общеобразовтельная школа №35 с углубленным изучением отдельных предметов\" Республики Татарстан","Биология"]
[26,"261076_17393342789_27","Муниципальное автономное общеобразовательное учреждение города Набережные Челны \"Гимназия №76\" Республики Татарстан","Кузнецова","Диела","Сергеевна","ж",8,8,5,8.5,1,14.5,33,null,"нет","Ахметова Елена Николаевна","Муниципальное автономное общеобразовательное учреждение города Набережные Челны \"Гимназия №76\" Республики Татарстан","Биология"]
[27,"263054_17542967000_27","Муниципальное бюджетное общеобразовательное учреждение \"Гимназия №54\" город  Набережные Челны Республика Татарстан","Галиев","Айрат","Булатович","м",8,8,4,9,1.5,14.5,33,null,"нет","Забихуллина Айгуль Рафиковна","Муниципальное бюджетное общеобразовательное учреждение \"Гимназия №54\" город  Набережные Челны Республика Татарстан","Биология"]
[28,"261037_17157434170_27","Муниципальное бюджетное общеобразовательное учреждение\"Средняя общеобразовательное школа № 37 с углубленным изучением отдельных предметов\"город Набережные Челны Республики Татарстан","Кудрявцева","Ирина","Алексеевна","ж",8,8,4,8.5,1.5,14,33,null,"нет","Сабирова Гузель Ракиповна","Муниципальное бюджетное общеобразовательное учреждение\"Средняя общеобразовательное школа № 37 с углубленным изучением отдельных предметов\"город Набережные Челны Республики Татарстан","Биология"]
[29,"263058_15779638133_27","Муниципальное бюджетное общеобразовательное учреждение \" Средняя общеобразовательная школа №58\" город Набережные Челны Республики Татарстан","Алтынбаев","Юсуф","Маратович","м",8,8,4,8,2,14,33,null,"нет","Губьянова Оксана Михайловна","Муниципальное бюджетное общеобразовательное учреждение \" Средняя общеобразовательная школа №58\" город Набережные Челны Республики Татарстан","Биология"]
[30,"261057_16965981950_27","Муниципальное бюджетное общеобразовательное учреждение \" Центр образования - Гимназия №57 \"Притяжение\"город Набережные Челны Республики Татарстан","Сильченко","Полина","Александровна","ж",8,8,7,6,1,14,33,null,"нет","Сальникова Гульзера Рустамовна","Муниципальное бюджетное общеобразовательное учреждение \" Центр образования - Гимназия №57 \"Притяжение\"город Набережные Челны Республики Татарстан","Биология"]
[31,"261036_15886994254_27","Муниципальное автономное общеобразовательное учреждение \"Лицей инновационных технологий №36\" город Набережные Челны Республики Татарстан","Латфуллина","Лиана","Ришатовна","ж",8,8,7,6,0.5,13.5,33,null,"нет","Пермякова Полина Александровна","Муниципальное автономное общеобразовательное учреждение \"Лицей инновационных технологий №36\" город Набережные Челны Республики Татарстан","Биология"]
[32,"261076_17525411966_27","Муниципальное автономное общеобразовательное учреждение города Набережные Челны \"Гимназия №76\" Республики Татарстан","Сыртланова","Амира","Эдуардовна","ж",8,8,6,7.5,0,13.5,33,null,"нет","Ахметова Елена Николаевна","Муниципальное автономное общеобразовательное учреждение города Набережные Челны \"Гимназия №76\" Республики Татарстан","Биология"]
[33,"261049_15622549567_27","Муниципальное автономное общеобразовательное учреждение \"Кадетская школа №49\" город Набережные Челны Республики Татарстан","Шуматова","Кира","Георгиевна","ж",8,8,4,7.5,1.5,{"$f":"SUM(J34:L34)","v":13},33,null,"нет","Закирова Фирдавус Завитовна","Муниципальное автономное общеобразовательное учреждение \"Кадетская школа №49\" город Набережные Челны Республики Татарстан","Биология"]
[34,"261051_17531445173_27","Муниципальное автономное общеобразовательное учреждение города Набережные Челны \"Средняя общеобразовательная школа №51\"Республики Татарстан","Хикматуллин","Булат","Азатович","м",8,8,4,8,1,13,33,null,"нет","Лазарева Нататья Ивановна","Муниципальное автономное общеобразовательное учреждение города Набережные Челны \"Средняя общеобразовательная школа №51\"Республики Татарстан","Биология"]
[35,"261006_18563697830_27","Муниципальное бюджетное общеобразовательное учреждение \"Средняя общеобразовательная школа №6\" город Набережные Челны Республики Татарстан","Абдуллаев","Иван","Андреевич","м",8,8,3,7.5,2.5,13,33,null,"нет","Филонова Ирина Михайловна","Муниципальное бюджетное общеобразовательное учреждение \"Средняя общеобразовательная школа №6\" город Набережные Челны Республики Татарстан","Биология"]
[36,"261033_15591858812_27","муниципальное бюджетное общеобразовательное учреждение \"Средняя общеобразовательная школа №33\" город Набережные Челны Республики Татарстан","Батулин","Арсений","Андреевич","м",8,8,3,7.5,2.5,13,33,null,"нет","Гарифуллина Эльвира Флюровна","муниципальное бюджетное общеобразовательное учреждение \"Средняя общеобразовательная школа №33\" город Набережные Челны Республики Татарстан","Биология"]
[37,"263052_19269563220_27","Муниципальное бюджетное общеобразовательное учреждение \"Средняя общеобразовательная школа №52\" города Набережные Челны Республики Татарстан","Миркасимова","Алина","Маратовна","ж",8,8,6,6.5,0,12.5,33,null,"нет","Нургалиеаа Элмира Фанисовна","Муниципальное бюджетное общеобразовательное учреждение \"Средняя общеобразовательная школа №52\" города Набережные Челны Республики Татарстан","Биология"]
[38,"261025_17120081211_27","Муниципальное бюджетное общеобразовательное учреждение \"Средняя общеобразовательная школа №25\" город Набережные Челны Республики Татарстан","Чернова","Елизавета","Евгеньевна","ж",8,8,9,1,2.5,12.5,33,null,"нет","Глусская Галина Викторовна","Муниципальное бюджетное общеобразовательное учреждение \"Средняя общеобразовательная школа №25\" город Набережные Челны Республики Татарстан","Биология"]
[39,"261035_15880057283_27","Муниципальное автономное общеобразовательное учреждение города Набережные Челны \"Средняя общеобразовтельная школа №35 с углубленным изучением отдельных предметов\" Республики Татарстан","Казарцева","София","Ивановна","ж",8,8,3,9,0,12,33,null,"нет","Саетова Гульшат Вагизовна","Муниципальное автономное общеобразовательное учреждение города Набережные Челны \"Средняя общеобразовтельная школа №35 с углубленным изучением отдельных предметов\" Республики Татарстан","Биология"]
[40,"261060_17454035566_27","муниципальное бюджетное общеобразовательное учреждение \"Средняя общеобразовательная школа №60\" город Набережные Челны Республики Татарстан","Мордовина","Оксана","Павловна","ж",8,8,8,3,1,12,33,null,"нет","Насибуллина Маргарита Сергеевна","муниципальное бюджетное общеобразовательное учреждение \"Средняя общеобразовательная школа №60\"город Набережные Челны Республики Татарстан","Биология"]
[41,"261055_16878821033_27","Муниципальное автономное общеобразовательное учреждение города Набережные Челны \"Средняя общеобразовательная школа №55\" Республики Татарстан","Нигматзянова","Айсылу","Айдаровна","ж",8,8,4,6.5,1.5,12,33,null,"нет","Оруджева Наталья Викторовна","Муниципальное автономное общеобразовательное учреждение города Набережные Челны \"Средняя общеобразовательная школа №55\" Республики Татарстан","Биология"]
[42,"261053_15417088259_27","Муниципальное бюджетное общеобразовательное учреждение \"Средняя общеобразовательная школа №53\" город Набережные Челны Республики Татарстан","Грибкова","Дана","Олеговна","ж",8,8,4,6,2,12,33,null,"нет","Муфахарова Лейсан Вакифовна","Муниципальное бюджетное общеобразовательное учреждение \"Средняя общеобразовательная школа №53\" город Набережные Челны Республики Татарстан","Биология"]
[43,"261048_17157435576_27","Муниципальное автономное общеобразовательное учреждение города Набережные Челны \"Средняя общеобразовательная школа №48\" Республики Татарстан","Харисова","Азалия","Римовна","ж",8,8,3,7,1,11,33,null,"нет","Назырова Аделя Азатовна","Муниципальное автономное общеобразовательное учреждение города Набережные Челны \"Средняя общеобразовательная школа №48\" Республики Татарстан","Биология"]
[44,"261022_15500203603_27","Муниципальное бюджетное образовательное учреждение \"Средняя общеобразовательная школа№22\"","Балобанова","Арина","Артемовна","ж",8,8,3,7.5,0,10.5,33,null,"нет","Каримова Гузель Рамилевна","Муниципальное бюджетное образовательное учреждение \"Средняя общеобразовательная школа№22\"","Биология"]
[45,"261049_17091996502_27","Муниципальное автономное общеобразовательное учреждение \"Кадетская школа №49\" город Набережные Челны Республики Татарстан","Иванова","Эльвина","Сергеевна","ж",8,8,4,5.5,1,10.5,33,null,"нет","Закирова Фирдавус Завитовна","Муниципальное автономное общеобразовательное учреждение \"Кадетская школа №49\" город Набережные Челны Республики Татарстан","Биология"]
[46,"261046_17189271701_27","Муниципальное бюджетное общеобразовательное учреждение \"Средняя общеобразовательная школа №46 имени кавалера ордена Мужества Дмитрия Бадретдинова\" город Набережные Челны Республики Татарстан","Люкин","Арсений","Александрович","м",8,8,3,6,0.5,9.5,33,null,"нет","Мирошев Александр Владимирович","Муниципальное бюджетное общеобразовательное учреждение \"Средняя общеобразовательная школа №46 имени кавалера ордена Мужества Дмитрия Бадретдинова\" город Набережные Челны Республики Татарстан","Биология"]
[47,"261019_17134985079_27","МБОУ \"Средняя общеобразовательная школа №19 с углубленным изучением отдельных предметов\"город Набережные Челны Республики Татарстан","Мухаметзянова","Малика","Наилевна","ж",8,8,4,5.5,0,9.5,33,null,"нет","Азовцева Альфия Мирзаяновна","МБОУ \"Средняя общеобразовательная школа №19 с углубленным изучением отдельных предметов\"город Набережные Челны Республики Татарстан","Биология"]
[48,"263084_17234110629_27","Муниципальное автономное общеобразовательное учреждение города Набережные Челны \"Лицей-интернат №84 имени Гали Акыша\" Республики Татарстан","Маляр","Максим","Александрович","м",8,8,6,1,1.5,8.5,33,null,"нет","Хабибулина Алсу Сабирзяновна","Муниципальное автономное общеобразовательное учреждение города Набережные Челны \"Лицей-интернат №84 имени Гали Акыша\" Республики Татарстан","Биология"]
[49,"261056_17179853616_27","Муниципальное автономное общеобразовательное учреждение города Набережные Челны \"Средняя общеобразовательная школа №56\" Республики Татарстан","Карюкова","Алина","Ильдаровна","ж",8,8,4,1,2.5,7.5,33,null,"нет","Махмутова Ландыш Сабирзяновна","Муниципальное автономное общеобразовательное учреждение города Набережные Челны \"Средняя общеобразовательная школа №56\" Республики Татарстан","Биология"]
[]
[]
[null,"не явились"]
[1,"261024_17224106127_27","Муниципальное бюджетное общеобразовательное учреждение \"Средняя общеобразовательная школа №24 с углубленным изучением отдельных предметов\" город Набережные Челны Республики Татарстан","Федотов","Матвей","Андреевич","м",8,8,{"$nulls":4},33,null,"нет","Смирнов Борис Александрович","Муниципальное бюджетное общеобразовательное учреждение \"Средняя общеобразовательная школа №24 с углубленным изучением отдельных предметов\" город Набережные Челны Республики Татарстан","Биология"]
[2,"261032_17157456786_27","Муниципальное бюджетное общеобразовательное учреждение \"Средняя общеобразовательная школа № 32 с углубленным изучением отдельных предметов\" город Набережные Челны Республики Татарстан","Исхакова","Динара","Рустемовна","ж",8,8,{"$nulls":4},33,null,"нет","Сахабиева Алсу Габделбаровна","Муниципальное бюджетное общеобразовательное учреждение \"Средняя общеобразовательная школа № 32 с углубленным изучением отдельных предметов\" город Набережные Челны Республики Татарстан","Биология"]
[3,"261032_18164857500_27","Муниципальное бюджетное общеобразовательное учреждение \"Средняя общеобразовательная школа № 32 с углубленным изучением отдельных предметов\" город Набережные Челны Республики Татарстан","Шафикова","Алина","Рамилевна","ж",8,8,{"$nulls":4},33,null,"нет","Сахабиева Алсу Габделбаровна","Муниципальное бюджетное общеобразовательное учреждение \"Средняя общеобразовательная школа № 32 с углубленным изучением отдельных предметов\" город Набережные Челны Республики Татарстан","Биология"]
[4,"261011_16994621024_27","Муниципальное бюджетное общеобразовательное учреждение \"Средняя общеобразовательная школа № 11\" город Набережные Челны Республики Татарстан","Харисов","Амир","Ренатович","м",8,8,{"$nulls":4},33,null,"нет","Ахметшина Гузель Рустамовна","Муниципальное бюджетное общеобразовательное учреждение \"Средняя общеобразовательная школа № 11\" город Набережные Челны Республики Татарстан","Биология"]
[5,"261037_19088643817_27","Муниципальное бюджетное общеобразовательное учреждение\"Средняя общеобразовательное школа № 37 с углубленным изучением отдельных предметов\"город Набережные Челны Республики Татарстан","Васильев","Даниил","Максимович","м",8,8,{"$nulls":4},33,null,"нет","Сабирова Гузель Ракиповна","Муниципальное бюджетное общеобразовательное учреждение\"Средняя общеобразовательное школа № 37 с углубленным изучением отдельных предметов\"город Набережные Челны Республики Татарстан","Биология"]
[6,"261053_17091993395_27","Муниципальное бюджетное общеобразовательное учреждение \"Средняя общеобразовательная школа №53\" город Набережные Челны Республики Татарстан","Никитина","Елизавета","Сергеевна","ж",8,8,{"$nulls":4},33,null,"нет","Муфахарова Лейсан Вакифовна","Муниципальное бюджетное общеобразовательное учреждение \"Средняя общеобразовательная школа №53\" город Набережные Челны Республики Татарстан","Биология"]
[7,"261041_17122157228_27","Муниципальное бюджетное общеобразовательное учреждение \" Средняя обшеобразовательная школа№ 41\"город Набережные челны Республики Татарстан","Салахутдинов","Джамиль","Ильдарович","м",8,8,{"$nulls":4},33,null,"нет","Хуснутдинова Кристина Вячеславовна","Муниципальное бюджетное общеобразовательное учреждение \" Средняя обшеобразовательная школа№ 41\"город Набережные челны Республики Татарстан","Биология"]

{"sheet":"9 класс","index":2,"n_rows":65,"n_cols":19,"rows_kept":65}
["№","Код участника","Название ОУ","Фамилия","Имя","Отчество","Пол","Класс","Класс участия","1 задание","2 задание","3 задание","Балл","Макс. балл","Статус","Призер МЭ прошлого года","Учитель","Место работы учителя","Предмет"]
[1,"261078_18848834848_27","Муниципальное автономное общеобразовательное учреждение \"Лицей №78 им. А. С. Пушкина\" город Набережные Челны  Республики Татарстан","Липатов","Артём","Олегович","м",8,9,19,23,4,46,49.5,"победитель","нет","Сальникова Гульзера Рустамовна","Муниципальное автономное общеобразовательное учреждение \"Лицей №78 им. А. С. Пушкина\" город Набережные Челны  Республики Татарстан","Биология"]
[2,"261041_16243431743_27","Муниципальное бюджетное общеобразовательное учреждение \" Средняя обшеобразовательная школа№ 41\" город Набережные Челны Республики Татарстан","Сироткина","Елизавета","Вячеславовна","ж",9,9,18,22,4.5,44.5,49.5,"призер","нет","Ахметзянова Валентина Сергеевна","Муниципальное бюджетное общеобразовательное учреждение \" Средняя обшеобразовательная школа№ 41\" город Набережные Челны Республики Татарстан","Биология"]
[3,"261078_15846850812_27","Муниципальное автономное общеобразовательное учреждение \"Лицей №78 им. А. С. Пушкина\" город Набережные Челны  Республики Татарстан","Иванова","Ирина","Евгеньевна","ж",9,9,15,23,4.5,42.5,49.5,"призер","нет","Сальникова Гульзера Рустамовна","Муниципальное автономное общеобразовательное учреждение \"Лицей №78 им. А. С. Пушкина\" город Набережные Челны  Республики Татарстан","Биология"]
[4,"261041_14998469957_27","Муниципальное бюджетное общеобразовательное учреждение \" Средняя обшеобразовательная школа№ 41\" город Набережные Челны Республики Татарстан","Корнеева","Надежда","Геннадьевна","ж",9,9,16,23,3.5,42.5,49.5,"призер","нет","Хуснутдинова Кристина Вячеславовна","Муниципальное бюджетное общеобразовательное учреждение \" Средняя обшеобразовательная школа№ 41\" город Набережные Челны Республики Татарстан","Биология"]
[5,"261027_17821734688_27","Муниципальное бюджетное общеобразовательное учреждение \"Средняя общеобразовательная школа №27\" город Набережные Челны  Республики Татарстан","Поздняков","Иван","Андреевич","м",9,9,16,21,3,40,49.5,"призер","нет","Усманова Рамзия Асыловна","Муниципальное бюджетное общеобразовательное учреждение \"Средняя общеобразовательная школа №27\" город Набережные Челны  Республики Татарстан","Биология"]
[6,"261025_16207155741_27","Муниципальное бюджетное общеобразовательное учреждение \"Средняя общеобразовательная школа №25\" город Набережные Челны Республики Татарстан","Уланов","Глеб","Алексеевич","м",9,9,17,19,4,40,49.5,"призер","нет","Глусская Галина Викторовна","Муниципальное бюджетное общеобразовательное учреждение \"Средняя общеобразовательная школа №25\" город Набережные Челны Республики Татарстан","Биология"]
[7,"261012_14846612081_27","Муниципальное бюджетное общеобразовательное учреждение \"Средняя общеобразовательная школа №12\"  город Набережные Челны Республики Татарстан","Губаева","Алия","Наилевна","ж",9,9,15,21,4,40,49.5,"призер","нет","Стеганцева Ирина Петровна","Муниципальное бюджетное общеобразовательное учреждение \"Средняя общеобразовательная школа №12\"  город Набережные Челны Республики Татарстан","Биология"]
[8,"261036_16259610375_27","Муниципальное автономное общеобразовательное учреждение \"Лицей инновационных технологий №36\" город Набережные Челны Республики Татарстан","Ахметвалиев","Вадим","Артурович","м",9,9,17,19,3.5,39.5,49.5,"призер","нет","Пермякова Полина Александровна","Муниципальное автономное общеобразовательное учреждение \"Лицей инновационных технологий №36\" город Набережные Челны Республики Татарстан","Биология"]
[9,"261019_15995481132_27","Муниципальное бюджетное общеобразовательное учреждение \"Средняя общеобразовательная школа №19 с углубленным изучением отдельных предметов\" город Набережные Челны  Республики Татарстан","Шмыков","Александр","Сергеевич","м",9,9,15,20.5,3.5,39,49.5,"призер","нет","Азовцева Альфия Мирзаяновна","Муниципальное бюджетное общеобразовательное учреждение \"Средняя общеобразовательная школа №19 с углубленным изучением отдельных предметов\" город Набережные Челны  Республики Татарстан","Биология"]
[10,"263058_15113388937_27","Муниципальное бюджетное общеобразовательное учреждение \" Средняя общеобразовательная школа №58\" город Набережные Челны  Республики Татарстан","Степанов","Георгий","Сергеевич","м",9,9,15,21.5,2,38.5,49.5,"призер","нет","Губьянова Оксана Михайловна","Муниципальное бюджетное общеобразовательное учреждение \" Средняя общеобразовательная школа №58\" город Набережные Челны  Республики Татарстан","Биология"]
[11,"261026_16003081401_27","Муниципальное бюджетное общеобразовательное учреждение \"Гимназия №26\" город Набережные Челны Республики Татарстан","Валеева","Виталина","Альмировна","ж",9,9,16,19.5,2.5,38,49.5,"призер","нет","Белова Алена Федоровна","Муниципальное бюджетное общеобразовательное учреждение \"Гимназия №26\" город Набережные Челны Республики Татарстан","Биология"]
[12,"261030_15809764406_27","Муниципальное бюджетное общеобразовательное учреждение \"Средняя общеобразовательная школа №30\" город Набережные Челны Республики Татарстан","Фазлытдинова","Азалия","Ильдаровна","ж",9,9,14,19.5,3.5,37,49.5,"призер","нет","Андрианова Альбина Абдулхатовна","Муниципальное бюджетное общеобразовательное учреждение \"Средняя общеобразовательная школа №30\" город Набережные Челны Республики Татарстан","Биология"]
[13,"261008_ 16191103840_27","Муниципальное бюджетное общеобразовательное учреждение \"Средняя общеобразовательная школа №8\"","Филиппова","Надежда","Викторовна","ж",9,9,15,18,4,37,49.5,"призер","нет","Гильмутдинова Ландыш Имамсутиевна","Муниципальное бюджетное общеобразовательное учреждение \"Средняя общеобразовательная школа №8\"","Биология"]
[14,"261010_16457669008_27","Муниципальное бюджетное общеобразовательное учреждение \"Средняя общеобразовательная школа №10\" город Набережные Челны  Республики Татарстан","Смирнов","Никита","Константинович","м",9,9,15,18,4,37,49.5,"призер","нет","Тукмачева Марина Михайловна","Муниципальное бюджетное общеобразовательное учреждение \"Средняя общеобразовательная школа №10\" город Набережные Челны  Республики Татарстан","Биология"]
[15,"261057_16330972965_27","Муниципальное бюджетное общеобразовательное учреждение \"Центр образования - Гимназия №57 \"Притяжение\"город Набережные Челны Республики Татарстан","Степура","Богдан","Михайлович","м",9,9,13,20,3.5,36.5,49.5,null,"нет","Юскаева Чулпан Мухаметнуровна","Муниципальное бюджетное общеобразовательное учреждение \"Центр образования - Гимназия №57 \"Притяжение\"город Набережные Челны Республики Татарстан","Биология"]
[16,"261030_18183560787_27","Муниципальное бюджетное общеобразовательное учреждение \"Средняя общеобразовательная школа №30\" город Набережные Челны Республики Татарстан","Погодина","Алёна","Юрьевна","ж",9,9,14,19.5,3,36.5,49.5,null,"нет","Андрианова Альбина Абдулхатовна","Муниципальное бюджетное общеобразовательное учреждение \"Средняя общеобразовательная школа №30\" город Набережные Челны Республики Татарстан","Биология"]
[17,"261026_16065683778_27","Муниципальное бюджетное общеобразовательное учреждение \"Гимназия №26\" город Набережные Челны Республики Татарстан","Кузнецова","Александра","Игоревна","ж",9,9,15,19,1.5,35.5,49.5,null,"нет","Белова Алена Федоровна","Муниципальное бюджетное общеобразовательное учреждение \"Гимназия №26\" город Набережные Челны Республики Татарстан","Биология"]
[18,"261076_17035638561_27","Муниципальное автономное общеобразовательное учреждение города Набережные Челны \"Гимназия №76\" город Набережные Челны  Республики Татарстан","Софронова","Кира","Юрьевна","ж",9,9,12,20,3,35,49.5,null,"нет","Ахметова Елена Николаевна","Муниципальное автономное общеобразовательное учреждение города Набережные Челны \"Гимназия №76\" город Набережные Челны  Республики Татарстан","Биология"]
[19,"261078_15809765610_27","Муниципальное автономное общеобразовательное учреждение \"Лицей №78 им. А. С. Пушкина\" город Набережные Челны  Республики Татарстан","Хузина","Диана","Рустамовна","ж",9,9,12,19,4,35,49.5,null,"нет","Сальникова Гульзера Рустамовна","Муниципальное автономное общеобразовательное учреждение \"Лицей №78 им. А. С. Пушкина\" город Набережные Челны  Республики Татарстан","Биология"]
[20,"261030_17735408796_27","Муниципальное бюджетное общеобразовательное учреждение \"Средняя общеобразовательная школа №30\" город Набережные Челны Республики Татарстан","Лизунова","Елизавета","Юрьевна","ж",9,9,12,19,4,35,49.5,null,"нет","Андрианова Альбина Абдулхатовна","Муниципальное бюджетное общеобразовательное учреждение \"Средняя общеобразовательная школа №30\" город Набережные Челны Республики Татарстан","Биология"]
[21,"261037_16191103032_27","Муниципальное бюджетное общеобразовательное учреждение\"Средняя общеобразовательное школа № 37 с углубленным изучением отдельных предметов\"город Набережные Челны  Республики Татарстан","Хисматуллина","Эвелина","Маратовна","ж",9,9,13,17,4,34,49.5,null,"нет","Сабирова Гузель Ракиповна","Муниципальное бюджетное общеобразовательное учреждение\"Средняя общеобразовательное школа № 37 с углубленным изучением отдельных предметов\"город Набережные Челны  Республики Татарстан","Биология"]
[22,"261040_15833992811_27","Муниципальное автономное общеобразовательное учреждение \"Средняя общеобразовательная школа №40 с углубленным изучением\" город Набережные Челны  Республики Татарстан","Комарова","София","Николаевна","ж",9,9,14,16,3.5,33.5,49.5,null,"нет","Шарипова Тазкира Халитовна","Муниципальное автономное общеобразовательное учреждение \"Средняя общеобразовательная школа №40 с углубленным изучением\" город Набережные Челны  Республики Татарстан","Биология"]
[23,"263029_17658275014_27","Муниципальное бюджетное общеобразовательное учреждение \"Гимназия №29\" город Набережные Челны  Республики Татарстан","Бандаев","Зикруллох","Амонуллоевич","м",9,9,12,17.5,3.5,33,49.5,null,"нет","Газизова Ильсеяр Халисовна","Муниципальное бюджетное общеобразовательное учреждение \"Гимназия №29\" город Набережные Челны  Республики Татарстан","Биология"]
[24,"261055_15977862748_27","Муниципальное автономное общеобразовательное учреждение \"Средняя общеобразовательная школа №55\" город Набережные Челны   Республики Татарстан Республики Татарстан","Баширова","Алия","Ильшатовна","ж",9,9,12,19.5,1.5,33,49.5,null,"нет","Оруджева Наталья Викторовна","Муниципальное автономное общеобразовательное учреждение \"Средняя общеобразовательная школа №55\" город Набережные Челны   Республики Татарстан Республики Татарстан","Биология"]
[25,"261033_17120073919_7","Муниципальное бюджетное общеобразовательное учреждение \"Средняя общеобразовательное учреждение №33\" город Набережные Челны  Республики Татарстан","Гилемянова","Лейла","Закиржановна","ж",9,9,10,18.5,4,32.5,49.5,null,"нет","Гарифуллина Эльвира Флюровна","Муниципальное бюджетное общеобразовательное учреждение \"Средняя общеобразовательное учреждение №33\"","Биология"]
[26,"261001_17175763595_27","Муниципальное автономное общеобразовательное учреждение \"Средняя общеобразовательная школа №1\" город Набережные Челны  Республики Татарстан","Сабиров","Камиль","Рафаэлевич","м",9,9,12,17,3,32,49.5,null,"нет","Тихонова Наталья Сергеевна","Муниципальное автономное общеобразовательное учреждение \"Средняя общеобразовательная школа №1\" город Набережные Челны  Республики Татарстан","Биология"]
[27,"261021_16090543048_27","Муниципальное общеобразовательное учреждение \"Средняя общеобразовательная школа № 21\"город Набережные Челны  Республики Татарстан","Хаматшин","Амирхан","Дилусович","м",9,9,10,19.5,2.5,32,49.5,null,"нет","Канашова Лейля Харисовна","Муниципальное общеобразовательное учреждение \"Средняя общеобразовательная школа № 21\"город Набережные Челны  Республики Татарстан","Биология"]
[28,"261039_15817313571_27","Муниципальное бюджетное общеобразовательное учреждение \"Средняя общеобразовательная школа №39\" город Набережные Челны  Республики Татарстан","Филатов","Кирилл","Петрович","м",9,9,9,20,3,32,49.5,null,"нет","Данченко Марина Михайловна","Муниципальное бюджетное общеобразовательное учреждение \"Средняя общеобразовательная школа №39\" город Набережные Челны  Республики Татарстан","Биология"]
[29,"261059_14991539715_27","Муниципальное общеобразовательное учреждение \"Полилингвальная гимназия №59 \"Адымнар\" город Набережные Челны Республики Татарстан","Гарифьянова","Танзиля","Танировна","ж",9,9,12,16.5,3,31.5,49.5,null,"нет","Лутфуллина Гулюза Магъфуровна","Муниципальное общеобразовательное учреждение \"Полилингвальная гимназия №59 \"Адымнар\" город Набережные Челны Республики Татарстан","Биология"]
[30,"261021_18756956245_27","Муниципальное автономное общеобразовательное учреждение \"Средняя общеобразовательная школа №21\" город Набережные Челны  Республики Татарстан","Мингазова","Камилла","Айратовна","Ж",9,9,10,17.5,3.5,31,49.5,null,"нет","Канашова Лейля Харисовна","Муниципальное автономное общеобразовательное учреждение \"Средняя общеобразовательная школа №21\" город Набережные Челны  Республики Татарстан","Биология"]
[31,"261056_19053258266_27","Муниципальное автономное общеобразовательное учреждение \"Средняя общеобразовательная школа №56\" город Набережные Челны  Республики Татарстан","Антонова","Арина","Денисовна","ж",9,9,10,19.5,1,30.5,49.5,null,"нет","Махмутова Ландыш Сабирзяновна","Муниципальное автономное общеобразовательное учреждение \"Средняя общеобразовательная школа №56\" город Набережные Челны  Республики Татарстан","Биология"]
[32,"261035_15954151890_27","Муниципальное автономное общеобразовательное учреждение \"Средняя общеобразовтельная школа №35 с углубленным изучением отдельных предметов\" город Набережные Челны  Республики Татарстан ","Бородин","Георгий","Михайлович","м",9,9,10,17,3,30,49.5,null,"нет","Саетова Гульшат Вагизовна","Муниципальное автономное общеобразовательное учреждение \"Средняя общеобразовтельная школа №35 с углубленным изучением отдельных предметов\" город Набережные Челны  Республики Татарстан ","Биология"]
[33,"263079_17251005932_27","Муниципальное бюджетное общеобразовательное учереждение \"Лицей-интернат №79\" город Набережные Челны  Республики Татарстан","Тимофеев","Вадим","Ильич","м",9,9,7,19,4,30,49.5,null,"нет","Бариева Назия Галимулловна","Муниципальное бюджетное общеобразовательное учереждение \"Лицей-интернат №79\" город Набережные Челны  Республики Татарстан","Биология"]
[34,"261049_17469532333_27","Муниципальное автономное общеобразовательное учреждение \"Кадетская школа №49\" город Набережные Челны  Республики Татарстан","Андрианов","Максим","Иванович","м",9,9,9,18,2,29,49.5,null,"нет","Закирова Фирдавус Завитовна","Муниципальное автономное общеобразовательное учреждение \"Кадетская школа №49\" город Набережные Челны  Республики Татарстан","Биология"]
[35,"261061_16239183370_27","Муниципальное автономное общеобразовательное учреждение \"Гимназия №61\" город Набережные Челны  Республики Татарстан","Мухаметханов","Наиль","Ильназович","м",9,9,11,16.5,1,28.5,49.5,null,"нет","Степанова Елена Васильевна","Муниципальное автономное общеобразовательное учреждение \"Гимназия №61\" город Набережные Челны  Республики Татарстан","Биология"]
[36,"261030_15960371183_27","Муниципальное бюджетное общеобразовательное учреждение \"Средняя общеобразовательная школа №30\" город Набережные Челны Республики Татарстан","Мухтарова","Аделина","Ленаровна","ж",9,9,8,17.5,3,28.5,49.5,null,"нет","Андрианова Альбина Абдулхатовна","Муниципальное бюджетное общеобразовательное учреждение \"Средняя общеобразовательная школа №30\" город Набережные Челны Республики Татарстан","Биология"]
[37,"261035_17166588703_27","Муниципальное автономное общеобразовательное учреждение города Набережные Челны \"Средняя общеобразовтельная школа №35 с углубленным изучением отдельных предметов\" город Набережные Челны Республики Татарстан","Аллаярова","Аделия","Рафиковна","ж",9,9,10,15,2.5,{"$f":"SUM(J38:L38)","v":27.5},49.5,null,"нет","Саетова Гульшат Вагизовна","Муниципальное автономное общеобразовательное учреждение города Набережные Челны \"Средняя общеобразовтельная школа №35 с углубленным изучением отдельных предметов\" город Набережные Челны Республики Татарстан","Биология"]
[38,"263084_17010877037_27","Муниципальное автономное общеобразовательное учреждение города Набережные Челны \"Лицей-интернат №84 имени Гали Акыша\" город Набережные Челны  Республики Татарстан","Хасанов","Марат","Эдуардович","м",9,9,7,17.5,3,27.5,49.5,null,"нет","Хабибулина Алсу Сабирзяновна","Муниципальное автономное общеобразовательное учреждение города Набережные Челны \"Лицей-интернат №84 имени Гали Акыша\" город Набережные Челны  Республики Татарстан","Биология"]
[39,"261051_16028769476_27","Муниципальное автономное общеобразовательное учреждение \"Средняя общеобразовательная школа №51\" город Набережные Челны Республики Татарстан","Прочухан","Анна","Евгеньевна","ж",9,9,6,19.5,2,27.5,49.5,null,"нет","Лазарева Нататья Ивановна","Муниципальное автономное общеобразовательное учреждение \"Средняя общеобразовательная школа №51\" город Набережные Челны Республики Татарстан","Биология"]
[40,"261056_17224127236_27","Муниципальное автономное общеобразовательное учреждение  \"Средняя общеобразовательная школа №56\" город Набережные Челны  Республики Татарстан","Галимова","Розалина","Ильнаровна","ж",9,9,7,18.5,2,27.5,49.5,null,"нет","Махмутова Ландыш Сабирзяновна","Муниципальное автономное общеобразовательное учреждение  \"Средняя общеобразовательная школа №56\" город Набережные Челны  Республики Татарстан","Биология"]
[41,"263012_15960492094_27","Муниципальное бюджетное общеобразовательное учреждение \"Средняя общеобразовательная школа №12\" город Набережные Челны Республики Тататрстан","Терентьева","Анастасия","Евгеньевна","ж",9,9,9,16,2.5,27.5,49.5,null,"нет","Стеганцева Ирина Петровна","Муниципальное бюджетное общеобразовательное учреждение \"Средняя общеобразовательная школа №12\" город Набережные Челны Республики Тататрстан","Биология"]
[42,"261033_17120073414_27","Муниципальное бюджетное общеобразовательное учреждение \"Средняя общеобразовательная школа №33\" город Набережные Челны  Республики Татарстан","Бахитова","Арина","Радиковна","ж",9,9,11,15,0.5,26.5,49.5,null,"нет","Гарифуллина Эльвира Флюровна","Муниципальное бюджетное общеобразовательное учреждение \"Средняя общеобразовательная школа №33\" город Набережные Челны  Республики Татарстан","Биология"]
[43,"261081_16394253585_27","Государственное бюджетное общеобразовательное учреждение \"Кадетская школа полиции \"Калкан\" город Набережные Челны Республики Татарстан","Багрова ","Анастасия Андреевна",null,"ж",9,9,5,17,1.5,{"$f":"SUM(J44:L44)","v":23.5},49.5,null,"нет","Хайдарова Зиля Равиловна","Государственное бюджетное общеобразовательное учреждение \"Кадетская школа полиции \"Калкан\" город Набережные Челны Республики Татарстан","Биология"]
[44,"263052_17398238415_27","Муниципальное бюджетное общеобразовательное учреждение «Средняя общеобразовательная школа №52» город Набережные Челны Республики Татарстан","Новиков","Марат","Алексеевич","м",9,9,5,16,1.5,22.5,49.5,null,"нет","Нургалиеаа Элмира Фанисовна","Муниципальное бюджетное общеобразовательное учреждение «Средняя общеобразовательная школа №52» город Набережные Челны Республики Татарстан","Биология"]
[45,"265001_16325404240_27","Муниципальное автономное общеобразовательное учреждение \"Гимназия №77\" город Набережные Челны  Республики Татарстан","Будкин","Артём","Александрович","м",9,9,16,3,3,22,49.5,null,"нет","Ахметшина Лилия Расиховна","Муниципальное автономное общеобразовательное учреждение \"Гимназия №77\" город Набережные Челны  Республики Татарстан","Биология"]
[46,"261042_16452907074_27","Муниципальное бюджетная общеобразовательное учреждение \"Средняя общеобразовательная школа № 42\" город Набережные Челны  Республики Татарстан","Самматова","Анастасия","Ренатовна","ж",9,9,14,2.5,4.5,21,49.5,null,"нет","Садыкова Валерия Александровна","Муниципальное бюджетная общеобразовательное учреждение \"Средняя общеобразовательная школа № 42\" город Набережные Челны  Республики Татарстан","Биология"]
[47,"261056_15781078592_27","Муниципальное автономное общеобразовательное учреждение \"Средняя общеобразовательная школа №56\" город Набережные Челны  Республики Татарстан","Насертдинова","Азалия","Ильфатовна","ж",9,9,9,5,2.5,16.5,49.5,null,"нет","Махмутова Ландыш Сабирзяновна","Муниципальное автономное общеобразовательное учреждение \"Средняя общеобразовательная школа №56\" город Набережные Челны  Республики Татарстан","Биология"]
[48,"261077_15702607752_27","Муниципальное общеобразовательное учреждение \"Гимназия №77\" город Набережные Челны  Республики Татарстан","Габидуллина","Аделина","Марселевна","ж",9,9,11,2.5,2.5,16,49.5,null,"нет","Ахметшина Лилия Расиховна","Муниципальное общеобразовательное учреждение \"Гимназия №77\" город Набережные Челны  Республики Татарстан","Биология"]
[49,"261051_16224117427_27","Муниципальное автономное общеобразовательное учреждение  \"Средняя общеобразовательная школа №51\"город Набережные Челны Республики Татарстан","Гайсин","Данил","Ильнурович","м",9,9,8,4,2,14,49.5,null,"нет","Лазарева Нататья Ивановна","Муниципальное автономное общеобразовательное учреждение  \"Средняя общеобразовательная школа №51\"город Набережные Челны Республики Татарстан","Биология"]
[50,"261049_17335611966_27","Муниципальное автономное общеобразовательное учреждение \"Кадетская школа №49\" город Набережные Челны  Республики Татарстан","Хакимов","Данил","Дмитриевич","м",9,9,9,3,1,13,49.5,null,"нет","Закирова Фирдавус Завитовна","Муниципальное автономное общеобразовательное учреждение \"Кадетская школа №49\" город Набережные Челны  Республики Татарстан","Биология"]
[51,"261053_15037823752_27","Муниципальное бюджетное общеобразовательное учреждение \"Средняя общеобразовательная школа №53\" город Набережные Челны Республики Татарстан","Сайранова","Анастасия","Юрьевна","ж",9,9,8,3.5,1.5,13,49.5,null,"нет","Муфахарова Лейсан Вакифовна","Муниципальное бюджетное общеобразовательное учреждение \"Средняя общеобразовательная школа №53\" город Набережные Челны Республики Татарстан","Биология"]
[52,"261046_15970311070_27","Муниципальное бюджетное общеобразовательное учреждение \"Средняя общеобразовательная школа №46 имени кавалера ордена Мужества Дмитрия Бадретдинова\" город Набережные Челны  Республики Татарстан","Клименко","Кира","Михайловна","ж",9,9,7,3,0.5,10.5,49.5,null,"нет","Мирошев Александр Владимирович","Муниципальное бюджетное общеобразовательное учреждение \"Средняя общеобразовательная школа №46 имени кавалера ордена Мужества Дмитрия Бадретдинова\" город Набережные Челны  Республики Татарстан","Биология"]
[53,"261059_15994214306_27","Муниципальное общеобразовательное учреждение \"Полилингвальная гимназия №59 \"Адымнар\" город Набережные Челны Республики Татарстан","Зайнуллина ","Регина","Ильшатовна","ж",9,9,7,2,1.5,10.5,49.5,null,"нет","Лутфуллина Гулюза Магъфуровна","Муниципальное общеобразовательное учреждение \"Полилингвальная гимназия №59 \"Адымнар\" город Набережные Челны Республики Татарстан","Биология"]
[]
[null,"не явились"]
[1,"261006_18407914183_27","Муниципальное бюджетное общеобразовательное учреждение \"Средняя общеобразовательная школа №6\" город Набережные Челны Республики Татарстан","Радев","Иван","Евгеньевич","м",9,9,{"$nulls":4},49.5,null,null,"Абдуллаева Ольга Николаевна","Муниципальное бюджетное общеобразовательное учреждение \"Средняя общеобразовательная школа №6\" город Набережные Челны Республики Татарстан","Биология"]
[2,"261007_16186392084_27","Муниципальное бюджетное общеобразовательное учреждение \"Средняя общеобразовательная школа №7\" город Набережные Челны Республики Татарстан","Маркова","Кира","Олеговна","Ж",9,9,{"$nulls":4},49.5,null,null,"Махмутова Расимя Самигулловна","Муниципальное бюджетное общеобразовательное учреждение \"Средняя общеобразовательная школа №7\" город Набережные Челны Республики Татарстан","Биология"]
[3,"261024_17461401960_27","Муниципальное бюджетное общеобразовательное учреждение \"Средняя общеобразовательная школа №24 с углубленным изучением отдельных предметов\" город Набережные Челны  Республики Татарстан","Хакимова","Лейла","Динаровна","ж",9,9,{"$nulls":4},49.5,null,null,"Смирнов Борис Александрович","Муниципальное бюджетное общеобразовательное учреждение \"Средняя общеобразовательная школа №24 с углубленным изучением отдельных предметов\" город Набережные Челны  Республики Татарстан","Биология"]
[4,"261024_19085212270_27","Муниципальное бюджетное общеобразовательное учреждение \"Средняя общеобразовательная школа №24 с углубленным изучением отдельных предметов\" город Набережные Челны Республики Татарстан","Макарова","София","Валентиновна","ж",9,9,{"$nulls":4},49.5,null,null,"Смирнов Борис Александрович","Муниципальное бюджетное общеобразовательное учреждение \"Средняя общеобразовательная школа №24 с углубленным изучением отдельных предметов\" город Набережные Челны Республики Татарстан","Биология"]
[5,"261030_16043590850_27","Муниципальное бюджетное общеобразовательное учреждение \"Средняя общеобразовательная школа №30\" город Набережные Челны Республики Татарстан","Хайбулаева","Алина","Гаджиевна","ж",9,9,{"$nulls":4},49.5,null,null,"Андрианова Альбина Абдулхатовна","Муниципальное бюджетное общеобразовательное учреждение \"Средняя общеобразовательная школа №30\" город Набережные Челны Республики Татарстан","Биология"]
[6,"261049_16191101331_27","Муниципальное автономное общеобразовательное учреждение \"Кадетская школа №49\" город Набережные Челны  Республики Татарстан","Исламов","Бакир","Буриевич","м",9,9,{"$nulls":4},49.5,null,null,"Закирова Фирдавус Завитовна","Муниципальное автономное общеобразовательное учреждение \"Кадетская школа №49\" город Набережные Челны  Республики Татарстан","Биология"]
[7,"261056_16201848439_27","Муниципальное автономное общеобразовательное учреждение \"Средняя общеобразовательная школа №56\" город Набережные Челны  Республики Татарстан","Красильников","Игорь","Владимирович","м",9,9,{"$nulls":4},49.5,null,null,"Махмутова Ландыш Сабирзяновна","Муниципальное автономное общеобразовательное учреждение \"Средняя общеобразовательная школа №56\" город Набережные Челны  Республики Татарстан","Биология"]
[8,"261081_18709515200_27","Государственное бюджетное общеобразовательное учреждение \"Кадетская школа полиции \"Калкан\" город Набережные Челны Республики Татарстан","Пшеничная","Анна","Александровна","ж",9,9,{"$nulls":4},49.5,null,null,"Хайдарова Зиля Равиловна","Государственное бюджетное общеобразовательное учреждение \"Кадетская школа полиции \"Калкан\" город Набережные Челны Республики Татарстан","Биология"]
[9,"261034_17289562921_27","Муниципальное автономное образовательное учреждение \"СОШ №34 с углубленным изучением отдельных предметов\"город Набережные Челны Республики Татарстан","Синдянкина","Маргарита","Александровна","ж",9,9,{"$nulls":4},49.5,null,null,"Парсаданян Дарья Демьяновна","Муниципальное автономное образовательное учреждение \"СОШ №34 с углубленным изучением отдельных предметов\"город Набережные Челны Республики Татарстан","Биология"]

{"sheet":"10 класс","index":3,"n_rows":92,"n_cols":19,"rows_kept":92}
["№","Код участника","Название ОУ","Фамилия","Имя","Отчество","Пол","Класс","Класс участия","1 задание","задание 2","задание 3","балл","максимальный балл","статус","призер РЭ прошлого года","Учитель","Место работы учителя","Предмет"]
[1,"261078_14736860188_27","Муниципальное автономное общеобразовательное учреждение \"Лицей №78 им. А. С. Пушкина\" город  Набережные Челны Республики Татарстан","Галиев","Ленар","Ринатович","м",10,10,22,23.5,9.5,{"$f":"SUM(J2:L2)","v":55},60,"победитель","да","Сальникова Гульзера Рустамовна","Муниципальное автономное общеобразовательное учреждение \"Лицей №78 им. А. С. Пушкина\" город  Набережные Челны Республики Татарстан","Биология"]
[2,"261076_16514646333_27","Муниципальное автономное общеобразовательное учреждение  \"Гимназия №76\" город  Набережные Челны Республики Татарстан","Сафина","Ралина","Руслановна","ж",10,10,23,21,7.5,51.5,60,"призер","нет","Ахметова Елена Николаевна","Муниципальное автономное общеобразовательное учреждение  \"Гимназия №76\" город  Набережные Челны Республики Татарстан","Биология"]
[3,"261078_16112446524_27","Муниципальное автономное общеобразовательное учреждение \"Лицей №78 им. А. С. Пушкина\" город  Набережные Челны Республики Татарстан","Валеев","Азат","Артурович","м",10,10,19,22,9,50,60,"призер","нет","Сальникова Гульзера Рустамовна","Муниципальное автономное общеобразовательное учреждение \"Лицей №78 им. А. С. Пушкина\" город  Набережные Челны Республики Татарстан","Биология"]
[4,"261041_16045502231_27","Муниципальное бюджетное общеобразовательное учреждение \" Средняя обшеобразовательная школа№ 41\" город Набережные челны Республики Татарстан","Крапивина","Ирина","Евгеньевна","ж",10,10,20,23,6,49,60,"призер","да","Ахметзянова Валентина Сергеевна","Муниципальное бюджетное общеобразовательное учреждение \" Средняя обшеобразовательная школа№ 41\" город Набережные челны Республики Татарстан","Биология"]
[5,"261030_16219026140_27","Муниципальное бюджетное общеобразовательное учреждение \"Средняя общеобразовательная школа №30\" город Набережные Челны Республики Татарстан","Васильева","Диана","Витальевна","ж",10,10,23,19,7,49,60,"призер","нет","Андрианова Альбина Абдулхатовна","Муниципальное бюджетное общеобразовательное учреждение \"Средняя общеобразовательная школа №30\" город Набережные Челны Республики Татарстан","Биология"]
[6,"261019_16164556268_27","Муниципальное бюджетное общеобразовательное учреждение \"Средняя общеобразовательная школа №19 с углубленным изучением отдельных предметов\" город  Набережные Челны Республики Татарстан","Сафиулин","Амир","Рафаэлевич","м",10,10,18,21.5,7.5,47,60,"призер","нет","Азовцева Альфия Мирзаяновна","Муниципальное бюджетное общеобразовательное учреждение \"Средняя общеобразовательная школа №19 с углубленным изучением отдельных предметов\" город  Набережные Челны Республики Татарстан","Биология"]
[7,"261030_16042156425_27","Муниципальное бюджетное общеобразовательное учреждение \"Средняя общеобразовательная школа №30\" город Набережные Челны Республики Татарстан","Юнусов","Ислам","Ильнарович","м",10,10,18,20,7.5,45.5,60,"призер","нет","Андрианова Альбина Абдулхатовна","Муниципальное бюджетное общеобразовательное учреждение \"Средняя общеобразовательная школа №30\" город Набережные Челны Республики Татарстан","Биология"]
[8,"261076_16052522430_27","Муниципальное автономное общеобразовательное учреждение  \"Гимназия №76\" город  Набережные Челны Республики Татарстан","Мухаметшина","Камилла","Ильдаровна","ж",10,10,18,19.5,8,45.5,60,"призер","нет","Ахметова Елена Николаевна","Муниципальное автономное общеобразовательное учреждение  \"Гимназия №76\" город  Набережные Челны Республики Татарстан","Биология"]
[9,"261030_17342709267_27","Муниципальное бюджетное общеобразовательное учреждение \"Средняя общеобразовательная школа №30\" город Набережные Челны Республики Татарстан","Крутихин","Глеб","Максимович","м",10,10,17,21.5,7,45.5,60,"призер","да","Андрианова Альбина Абдулхатовна","Муниципальное бюджетное общеобразовательное учреждение \"Средняя общеобразовательная школа №30\" город Набережные Челны Республики Татарстан","Биология"]
[10,"261019_16063466558_27","Муниципальное бюджетное общеобразовательное учреждение \"Средняя общеобразовательная школа №19 с углубленным изучением отдельных предметов\" город  Набережные Челны Республики Татарстан","Зарифуллин","Рузиль","Алексеевич","м",10,10,15,21.5,8.5,45,60,"призер","нет","Азовцева Альфия Мирзаяновна","Муниципальное бюджетное общеобразовательное учреждение \"Средняя общеобразовательная школа №19 с углубленным изучением отдельных предметов\" город  Набережные Челны Республики Татарстан","Биология"]
[11,"261026_14667394504_27","Муниципальное бюджетное общеобразовательное учреждение \"Гимназия №26\" город Набережные Челны Республики Татарстан","Хусаинов","Руслан","Тимурович","м",10,10,17,19,8.5,44.5,60,"призер","нет","Белова Алена Федоровна","Муниципальное бюджетное общеобразовательное учреждение \"Гимназия №26\" город Набережные Челны Республики Татарстан","Биология"]
[12,"261041_15963929930_27","Муниципальное бюджетное общеобразовательное учреждение \" Средняя обшеобразовательная школа№ 41\" Набережные челны Республики Татарстан","Кузнецов","Владимир","Саматович","м",10,10,16,18.5,7,41.5,60,"призер","нет","Ахметзянова Валентина Сергеевна","Муниципальное бюджетное общеобразовательное учреждение \" Средняя обшеобразовательная школа№ 41\" Набережные челны Республики Татарстан","Биология"]
[13,"261042_14801978377_27","Муниципальное бюджетная общеобразовательное учреждение \"Средняя общеобразовательная школа № 42\" город  Набережные Челны Республики Татарстан","Матвеев","Илья","Алексеевич","м",10,10,20,18.5,3,41.5,60,"призер","нет","Сайранова Алина Гаптенуровна","Муниципальное бюджетная общеобразовательное учреждение \"Средняя общеобразовательная школа № 42\" город  Набережные Челны Республики Татарстан","Биология"]
[14,"261030_16012985850_27","Муниципальное бюджетное общеобразовательное учреждение \"Средняя общеобразовательная школа №30\" город Набережные Челны Республики Татарстан","Полунин","Арсений","Александрович","м",10,10,14,20,7,41,60,"призер","да","Андрианова Альбина Абдулхатовна","Муниципальное бюджетное общеобразовательное учреждение \"Средняя общеобразовательная школа №30\" город Набережные Челны Республики Татарстан","Биология"]
[15,"261030_15960794009_27","Муниципальное бюджетное общеобразовательное учреждение \"Средняя общеобразовательная школа №30\" город Набережные Челны Республики Татарстан","Ягудин","Нияз","Ирикович","м",10,10,16,17.5,7,40.5,60,"призер","да","Андрианова Альбина Абдулхатовна","Муниципальное бюджетное общеобразовательное учреждение \"Средняя общеобразовательная школа №30\" город Набережные Челны Республики Татарстан","Биология"]
[16,"261051_14692482393_27","Муниципальное автономное общеобразовательное учреждение  \"Средняя общеобразовательная школа №51\"город  Набережные Челны Республики Татарстан","Бельская","Евгения","Вячеславовна","ж",10,10,8,27,3.5,38.5,60,"призер","нет","Лазарева Нататья Ивановна","Муниципальное автономное общеобразовательное учреждение  \"Средняя общеобразовательная школа №51\"город  Набережные Челны Республики Татарстан","Биология"]
[17,"263029_14993168413_27","Муниципальное бюджетное общеобразовательное учреждение \"Гимназия №29\" город  Набережные Челны Республики Татарстан","Мишенев","Илья","Михайлович","м",10,10,13,18.5,6.5,38,60,"призер","нет","Газизова Ильсеяр Халисовна","Муниципальное бюджетное общеобразовательное учреждение \"Гимназия №29\" город  Набережные Челны Республики Татарстан","Биология"]
[18,"261026_16043600221_27","Муниципальное бюджетное общеобразовательное учреждение \"Гимназия №26\" город Набережные Челны Республики Татарстан","Сафаргалина","Арина","Ленаровна","ж",10,10,11,19.5,7,37.5,60,"призер","нет","Белова Алена Федоровна","Муниципальное бюджетное общеобразовательное учреждение \"Гимназия №26\" город Набережные Челны Республики Татарстан","Биология"]
[19,"261030_14692482595_27","Муниципальное бюджетное общеобразовательное учреждение \"Средняя общеобразовательная школа №30\" города Набережные Челны Республики Татарстан","Кротов","Михаил","Александрович","м",10,10,15,17.5,5,37.5,60,"призер","нет","Андрианова Альбина Абдулхатовна","Муниципальное бюджетное общеобразовательное учреждение \"Средняя общеобразовательная школа №30\" города Набережные Челны Республики Татарстан","Биология"]
[20,"263084_16015911937_27","Муниципальное автономное общеобразовательное учреждение  \"Лицей-интернат №84 имени Гали Акыша\"  город  Набережные Челны Республики Татарстан","Нуриева","Наиля","Айдаровна","ж",10,10,10,20,6.5,36.5,60,null,"нет","Хабибулина Алсу Сабирзяновна","Муниципальное автономное общеобразовательное учреждение  \"Лицей-интернат №84 имени Гали Акыша\"  город  Набережные Челны Республики Татарстан","Биология"]
[21,"263054_15954118084_27","Муниципальное бюджетное общеобразовательное учреждение \"Гимназия №54\" город  Набережные Челны Республика Татарстан","Шарапова","Элиана","Маратовна","ж",10,10,11,18.5,7,36.5,60,null,"нет","Забихуллина Айгуль Рафиковна","Муниципальное бюджетное общеобразовательное учреждение \"Гимназия №54\" город  Набережные Челны Республика Татарстан","Биология"]
[22,"263018_17890733723_27","Муниципальное бюджетное общеобразовательное учреждение \"Средняя общеобразовательная школа №18 с углубленным изучением отдельных предметов\"город  Набережные Челны Республики Татарстан","Никифоров","Леонид","Григорьевич","м",10,10,12,19,5.5,36.5,60,null,"нет","Алексашечкина Вера Владимировна","Муниципальное бюджетное общеобразовательное учреждение \"Средняя общеобразовательная школа №18 с углубленным изучением отдельных предметов\"город  Набережные Челны Республики Татарстан","Биология"]
[23,"261078_16003090806_27","Муниципальное автономное общеобразовательное учреждение \"Лицей №78 им. А. С. Пушкина\" город  Набережные Челны Республики Татарстан","Насыбуллин","Камиль","Ренатович","м",10,10,12,17.5,7,36.5,60,null,"да","Сальникова Гульзера Рустамовна","Муниципальное автономное общеобразовательное учреждение \"Лицей №78 им. А. С. Пушкина\" город  Набережные Челны Республики Татарстан","Биология"]
[24,"261078_14828862309_27","Муниципальное автономное общеобразовательное учреждение \"Лицей №78 им. А. С. Пушкина\" город  Набережные Челны Республики Татарстан","Гайфутдинов","Азат","Вильдарович","м",10,10,13,16.5,6,35.5,60,null,"да","Сальникова Гульзера Рустамовна","Муниципальное автономное общеобразовательное учреждение \"Лицей №78 им. А. С. Пушкина\" город  Набережные Челны Республики Татарстан","Биология"]
[25,"261056_15975365724_27","Муниципальное автономное общеобразовательное учреждение  «Средняя общеобразовательная школа №56» город  Набережные Челны Республики Татарстан ","Гильфанова","Эвелина","Дамировна","ж",10,10,10,18.5,6.5,35,60,null,"нет","Махмутова Ландыш Сабирзяновна","Муниципальное автономное общеобразовательное учреждение  «Средняя общеобразовательная школа №56» город  Набережные Челны Республики Татарстан ","Биология"]
[26,"261036_14739177697_27","Муниципальное автономное общеобразовательное учреждение \"Лицей инновационных технологий №36\" город Набережные Челны Республики Татарстан","Тюлюкова","Валерия","Александровна","ж",10,10,14,15.5,5,34.5,60,null,"нет","Пермякова Полина Александровна","Муниципальное автономное общеобразовательное учреждение \"Лицей инновационных технологий №36\" город Набережные Челны Республики Татарстан","Биология"]
[27,"261040_15963935622_27","Муниципальное автономное общеобразовательное учреждение  \"Средняя общеобразовательная школа №40 с углубленным изучением отдельных предметов\" город  Набережные Челны  Республики Татарстан","Сибилева","Любовь","Дмитриевна","ж",10,10,8,18.5,7.5,34,60,null,"нет","Шарипова Тазкира Халитовна","Муниципальное автономное общеобразовательное учреждение  \"Средняя общеобразовательная школа №40 с углубленным изучением отдельных предметов\" город  Набережные Челны  Республики Татарстан","Биология"]
[28,"261060_15940426069_27","Муниципальное бюджетное общеобразовательное учреждение \"Средняя общеобразовательная школа №60\" город  Набережные Челны Республики Татарстан ","Абрукова","Анастасия","Викторовна","ж",10,10,9,18.5,6,33.5,60,null,"нет","Насибуллина Маргарита Сергеевна","Муниципальное бюджетное общеобразовательное учреждение \"Средняя общеобразовательная школа №60\" город  Набережные Челны Республики Татарстан ","Биология"]
[29,"261008_14979903334_27","Муниципальное бюджетное общеобразовательное учреждение \"Средняя общеобразовательная школа №8\"город  Набережные Челны Республики Татарстан","Губайдуллин","Данис","Рустемович","м",10,10,11,16.5,6,33.5,60,null,"нет","Савенко Любовь Михайловна","Муниципальное бюджетное общеобразовательное учреждение \"Средняя общеобразовательная школа №8\"город  Набережные Челны Республики Татарстан","Биология"]
[30,"261078_14703391449_27","Муниципальное автономное общеобразовательное учреждение \"Лицей №78 им. А. С. Пушкина\" город  Набережные Челны Республики Татарстан","Середа","Варвара","Андреевна","ж",10,10,17,6.5,10,33.5,60,null,"да","Сальникова Гульзера Рустамовна","Муниципальное автономное общеобразовательное учреждение \"Лицей №78 им. А. С. Пушкина\" город  Набережные Челны Республики Татарстан","Биология"]
[31,"261010_14823070549_27","Муниципальное бюджетное общеобразовательное учреждение \"Средняя общеобразовательная школа №10\" город  Набережные Челны Республики Татарстан","Недопекина","Изабелла","Алексеевна","ж",10,10,13,16,4.5,33.5,60,null,"нет","Тукмачева Марина Михайловна","Муниципальное бюджетное общеобразовательное учреждение \"Средняя общеобразовательная школа №10\" город  Набережные Челны Республики Татарстан","Биология"]
[32,"261009_17228677493_27","Муниципальное бюджетное общеобразовательное учреждение «Средняя школа №9» город  Набережные Челны Республики Татарстан","Шамсумухаметова","Аделя","Ильдаровна","ж",10,10,23,4,6.5,33.5,60,null,"нет","Якупова Наталья Валерьевна","Муниципальное бюджетное общеобразовательное учреждение «Средняя школа №9» город  Набережные Челны Республики Татарстан","Биология"]
[33,"263052_16198164693_27","Муниципальное бюджетное общеобразовательное учреждение \"Средняя общеобразовательная школа №52\" город Набережные Челны Республики Татарстан","Андреева","Дарина","Алексеевна","ж",10,10,10,16.5,6.5,{"$f":"SUM(J34:L34)","v":33},60,null,"нет","Нургалиеаа Элмира Фанисовна","Муниципальное бюджетное общеобразовательное учреждение \"Средняя общеобразовательная школа №52\" город Набережные Челны Республики Татарстан","Биология"]
[34,"261025_14883252591_27","Муниципальное бюджетное общеобразовательное учреждение \"Средняя общеобразовательная школа №25\" город Набережные Челны Республики Татарстан","Аникина","Ирина","Дмитриевна","ж",10,10,10,18,5,33,60,null,"нет","Глусская Галина Викторовна","Муниципальное бюджетное общеобразовательное учреждение \"Средняя общеобразовательная школа №25\" город Набережные Челны Республики Татарстан","Биология"]
[35,"261039_16041698355_27","Муниципальное бюджетное общеобразовательное учреждение \"Средняя общеобразовательная школа №39\"город  Набережные Челны Республики Татарстан","Садертдинова","Лейла","Ренатовна","ж",10,10,22,3.5,7,32.5,60,null,"нет","Галиева Гузалия Фагимовна","Муниципальное бюджетное общеобразовательное учреждение \"Средняя общеобразовательная школа №39\"город  Набережные Челны Республики Татарстан","Биология"]
[36,"263004_15954162289_27","Муниципальное автономное общеобразовательное учреждение \"Средняя общеобразовательная школа №4\" город  Набережные Челны Республики Татарстан ","Хабибуллина","Элина","Ринатовна","ж",10,10,9,16.5,6.5,32,60,null,"нет","Агзамова Алия Василовна","Муниципальное автономное общеобразовательное учреждение \"Средняя общеобразовательная школа №4\" город  Набережные Челны Республики Татарстан ","Биология"]
[37,"263029_14494106361_27","Муниципальное бюджетное общеобразовательное учреждение \"Гимназия №29\" город  Набережные Челны Республики Татарстан","Хусаинова","Виктория","Дмитриевна","ж",10,10,13,16,3,32,60,null,"нет","Газизова Ильсеяр Халисовна","Муниципальное бюджетное общеобразовательное учреждение \"Гимназия №29\" город  Набережные Челны Республики Татарстан","Биология"]
[38,"263058_14773742595_27","Муниципальное бюджетное общеобразовательное учреждение \" Средняя общеобразовательная школа №58\" город  Набережные Челны Республики Татарстан","Шамсутдинова","Дина","Рамилевна","ж",10,10,8,17,6.5,31.5,60,null,"нет","Губьянова Оксана Михайловна","Муниципальное бюджетное общеобразовательное учреждение \" Средняя общеобразовательная школа №58\" город  Набережные Челны Республики Татарстан","Биология"]
[39,"261041_15976445929_27","Муниципальное бюджетное общеобразовательное учреждение \" Средняя обшеобразовательная школа№ 41\" город Набережные челны Республики Татарстан","Дементьева","Виктория","Александровна","ж",10,10,20,3.5,8,31.5,60,null,"нет","Ахметзянова Валентина Сергеевна","Муниципальное бюджетное общеобразовательное учреждение \" Средняя обшеобразовательная школа№ 41\" город Набережные челны Республики Татарстан","Биология"]
[40,"261041_15915080369_27","Муниципальное бюджетное общеобразовательное учреждение \" Средняя обшеобразовательная школа№ 41\"город  Набережные челны Республики Татарстан","Хафизова","Азалия","Ильвировна","ж",10,10,9,16,6,31,60,null,"нет","Ахметзянова Валентина Сергеевна","Муниципальное бюджетное общеобразовательное учреждение \" Средняя обшеобразовательная школа№ 41\"город  Набережные челны Республики Татарстан","Биология"]
[41,"261082_16221272525_27","Государственное бюджетное общеобразовательное учреждение \"Кадетская школа №82 имени Героя Советского Союза Ильдара Маннанова\" город Набережные Челны Республики Татарстан","Закиров","Тимур","Альбертович","м",10,10,7,20,4,31,60,null,"нет","Стеганцева Ирина Петровна","Государственное бюджетное общеобразовательное учреждение \"Кадетская школа №82 имени Героя Советского Союза Ильдара Маннанова\" город Набережные Челны Республики Татарстан","Биология"]
[42,"261031_14956697431_27","Муниципальное бюджетное общеобразовательное учреждение \"Средняя общеобразовательная школа №31 с углубленным изучением отдельных предметов\" город Набережные Челны Республики Татарстан","Абрамова","Софья","Михайловна","ж",10,10,23,4,3,30,60,null,"нет","Зырянова Людмила Валерьевна","Муниципальное бюджетное общеобразовательное учреждение \"Средняя общеобразовательная школа №31 с углубленным изучением отдельных предметов\" город Набережные Челны Республики Татарстан","Биология"]
[43,"263029_14559287500_27","Муниципальное бюджетное общеобразовательное учреждение \"Гимназия №29\" город Набережные Челны Республики Татарстан","Попов","Владислав","Александрович","м",10,10,7,18,4.5,29.5,60,null,"нет","Газизова Ильсеяр Халисовна","Муниципальное бюджетное общеобразовательное учреждение \"Гимназия №29\" город Набережные Челны Республики Татарстан","Биология"]
[44,"261035_14809567497_27","Муниципальное автономное общеобразовательное учреждение  \"Средняя общеобразовтельная школа №35 с углубленным изучением отдельных предметов\" город  Набережные Челны Республики Татарстан","Зайнуллина","Алия","Равилевна","ж",10,10,9,16,4.5,29.5,60,null,"нет","Саетова Гульшат Вагизовна","Муниципальное автономное общеобразовательное учреждение  \"Средняя общеобразовтельная школа №35 с углубленным изучением отдельных предметов\" город  Набережные Челны Республики Татарстан","Биология"]
[45,"261028_16243432139_27","Муниципальное бюджетное общеобразовательное учреждение \"Средняя общеобразовательная школа №28\" город  Набережные Челны Республики Татарстан","Тудирякова","Диана","Дмитриевна","ж",10,10,8,17,4.5,29.5,60,null,"нет","Ялалова Рита Адельшиновна","Муниципальное бюджетное общеобразовательное учреждение \"Средняя общеобразовательная школа №28\" город  Набережные Челны Республики Татарстан","Биология"]
[46,"263029_15405349447_27","Муниципальное бюджетное общеобразовательное учреждение \"Гимназия №29\" город  Набережные Челны Республики Татарстан","Мингазова","Аделя","Фанилевна","ж",10,10,7,16.5,5.5,29,60,null,"нет","Газизова Ильсеяр Халисовна","Муниципальное бюджетное общеобразовательное учреждение \"Гимназия №29\" город  Набережные Челны Республики Татарстан","Биология"]
[47,"261048_16022774742_27","Муниципальное автономное общеобразовательное учреждение города Набережные Челны \"Средняя общеобразовательная школа №48\" город  Набережные Челны Республики Татарстан ","Хакимзянов","Данияр","Ришатович","м",10,10,9,14.5,4.5,28,60,null,"нет","Назырова Аделя Азатовна","Муниципальное автономное общеобразовательное учреждение города Набережные Челны \"Средняя общеобразовательная школа №48\" город  Набережные Челны Республики Татарстан ","Биология"]
[48,"261009_15980070282_27","Муниципальное бюджетное общеобразовательное учреждение \"Средняя школа №9\" город  Набережные Челны Республики Татарстан","Сираева","Лилия","Маратовна","ж",10,10,18,4,6,28,60,null,"нет","Якупова Наталья Валерьевна","Муниципальное бюджетное общеобразовательное учреждение \"Средняя школа №9\" город  Набережные Челны Республики Татарстан","Биология"]
[49,"261057_16012988351_27","Муниципальное бюджетное общеобразовательное учреждение \"Центр образования - Гимназия №57 \"Притяжение\" город Набережные Челны Республики Татарстан","Сидорова","Ксения","Александровна","ж",10,10,7,17,3.5,27.5,60,null,"нет","Юскаева Чулпан Мухаметнуровна","Муниципальное бюджетное общеобразовательное учреждение \"Центр образования - Гимназия №57 \"Притяжение\" город Набережные Челны Республики Татарстан","Биология"]
[50,"261008_14692483193_27","Муниципальное бюджетное общеобразовательное учреждение \"Средняя общеобразовательная школа №8\"город  Набережные Челны Республики Татарстан","Мубаракшина","Азалия","Ильнаровна","ж",10,10,6,17.5,4,27.5,60,null,"нет","Савенко Любовь Михайловна","Муниципальное бюджетное общеобразовательное учреждение \"Средняя общеобразовательная школа №8\"город  Набережные Челны Республики Татарстан","Биология"]
[51,"261048_17814876515_27","Муниципальное автономное общеобразовательное учреждение  \"Средняя общеобразовательная школа №48\" город  Набережные Челны Республики Татарстан ","Осипов","Сергей","Александрович","м",10,10,10,13.5,4,27.5,60,null,"нет","Назырова Аделя Азатовна","Муниципальное автономное общеобразовательное учреждение  \"Средняя общеобразовательная школа №48\" город  Набережные Челны Республики Татарстан ","Биология"]
[52,"261037_14863090478_27","Муниципальное бюджетное общеобразовательное учреждение\"Средняя общеобразовательное школа № 37 с углубленным изучением отдельных предметов\"г.Набережные Челны Республики Татарстан","Багаев","Рамиль","Русланович","м",10,10,8,17.5,2,27.5,60,null,"нет","Сабирова Гузель Ракиповна","Муниципальное бюджетное общеобразовательное учреждение\"Средняя общеобразовательное школа № 37 с углубленным изучением отдельных предметов\"г.Набережные Челны Республики Татарстан","Биология"]
[53,"261011_14995943439_27","Муниципальное бюджетное общеобразовательное учреждение \"Средняя общеобразовательная школа № 11\" город  Набережные Челны Республики Татарстан","Гимадиева","Диляра","Маратовна","ж",10,10,5,16,5,26,60,null,"нет","Ахметшина Гузель Рустамовна","Муниципальное бюджетное общеобразовательное учреждение \"Средняя общеобразовательная школа № 11\" город  Набережные Челны Республики Татарстан","Биология"]
[54,"261057_15976452017_27","Муниципальное бюджетное общеобразовательное учреждение \"Центр образования - Гимназия №57 \"Притяжение\" город Набережные Челны Республики Татарстан","Матулаева","Азалия","Анатольевна","ж",10,10,8,13,3.5,24.5,60,null,"нет","Юскаева Чулпан Мухаметнуровна","Муниципальное бюджетное общеобразовательное учреждение \"Центр образования - Гимназия №57 \"Притяжение\" город Набережные Челны Республики Татарстан","Биология"]
[55,"261031_14831770472_27","Муниципальное бюджетное общеобразовательное учреждение \"Средняя общеобразовательная школа №31 с углубленным изучением отдельных предметов\" город Набережные Челны Республики Татарстан","Ахмедьянова","Эвелина","Рафаэлевна","ж",10,10,16,5,2.5,23.5,60,null,"нет","Зырянова Людмила Валерьевна","Муниципальное бюджетное общеобразовательное учреждение \"Средняя общеобразовательная школа №31 с углубленным изучением отдельных предметов\" город Набережные Челны Республики Татарстан","Биология"]
[56,"263004_16341065135_27","Муниципальное автономное общеобразовательное учреждение  \"Средняя общеобразовательная школа №4\" город  Набережные Челны Республики Татарстан  ","Галиева","Ильсина","Ильнаровна","ж",10,10,12,2.5,7.5,22,60,null,"нет","Агзамова Алия Василовна","Муниципальное автономное общеобразовательное учреждение  \"Средняя общеобразовательная школа №4\" город  Набережные Челны Республики Татарстан  ","Биология"]
[57,"261019_16043609845_27","Муниципальное бюджетное общеобразовательное учреждение \"Средняя общеобразовательная школа №19 с углубленным изучением отдельных предметов\" город  Набережные Челны Республики Татарстан","Ахметшина","Аделя","Румилевна","ж",10,10,11,2.5,8,21.5,60,null,"нет","Азовцева Альфия Мирзаяновна","Муниципальное бюджетное общеобразовательное учреждение \"Средняя общеобразовательная школа №19 с углубленным изучением отдельных предметов\" город  Набережные Челны Республики Татарстан","Биология"]
[58,"261051_16043611933_27","Муниципальное автономное общеобразовательное учреждение  \"Средняя общеобразовательная школа №51\" город  Набережные Челны Республики Татарстан","Галеева","Амира","Радиковна","ж",10,10,10,4.5,5,19.5,60,null,"нет","Лазарева Нататья Ивановна","Муниципальное автономное общеобразовательное учреждение  \"Средняя общеобразовательная школа №51\" город  Набережные Челны Республики Татарстан","Биология"]
[59,"261040_16144895177_27","Муниципальное автомное общеобразовательное учреждение \"Средняя общеобразовательная школа № 40 с углубленным изучением отдельных предметов\" город  Набережные Челны Республики Татарстан","Дмитриева","Анастасия","Максимовна","ж",10,10,10,3.5,6,19.5,60,null,"нет","Шарипова Тазкира Халитовна","Муниципальное автомное общеобразовательное учреждение \"Средняя общеобразовательная школа № 40 с углубленным изучением отдельных предметов\" город  Набережные Челны Республики Татарстан","Биология"]
[60,"261049_15663532983_27","Муниципальное автономное общеобразовательное учреждение \"Кадетская школа №49\" город  Набережные Челны Республики Татарстан","Халиуллина","Ильвина","Маратовна","ж",10,10,7,8.5,3,18.5,60,null,"нет","Закирова Фирдавус Завитовна","Муниципальное автономное общеобразовательное учреждение \"Кадетская школа №49\" город  Набережные Челны Республики Татарстан","Биология"]
[61,"263003_15970310775_27","Муниципальное бюджетное общеобразовательное учреждение \"Средняя общеобразовательная школа №3\" город Набережные Челны Республики Татарстан","Келлер","Маргарита","Петровна","ж",10,10,11,2,5,18,60,null,"нет","Ахметзянова Рамиля Асгатовна","Муниципальное бюджетное общеобразовательное учреждение \"Средняя общеобразовательная школа №3\" город Набережные Челны Республики Татарстан","Биология"]
[62,"261006_16096155776_27","Муниципальное бюджетное общеобразовательное учреждение «Средняя общеобразовательная школа №6» город  Набережные Челны Республики Татарстан","Недогода","Евгения","Александровна","ж",10,10,9,2.5,6.5,18,60,null,"нет","Абдуллаева Ольга Николаевна","Муниципальное бюджетное общеобразовательное учреждение «Средняя общеобразовательная школа №6» город  Набережные Челны Республики Татарстан","Биология"]
[63,"261049_15960733494_27","Муниципальное автономное общеобразовательное учреждение \"Кадетская школа №49\" город  Набережные Челны Республики Татарстан","Шолик","Сергей","Александрович","м",10,10,7,3.5,7,17.5,60,null,"нет","Закирова Фирдавус Завитовна","Муниципальное автономное общеобразовательное учреждение \"Кадетская школа №49\" город  Набережные Челны Республики Татарстан","Биология"]
[64,"263058_16008313017_27","Муниципальное бюджетное общеобразовательное учреждение \" Средняя общеобразовательная школа №58\"город  Набережные Челны Республики Татарстан","Фасхутдинова","Бриллиант","Ильнаровна","ж",10,10,7,3,7,17,60,null,"нет","Губьянова Оксана Михайловна","Муниципальное бюджетное общеобразовательное учреждение \" Средняя общеобразовательная школа №58\"город  Набережные Челны Республики Татарстан","Биология"]
[65,"261046_15963895636_27","Муниципальное бюджетное общеобразовательное учреждение \"Средняя общеобразовательная школа №46 имени кавалера ордена Мужества Дмитрия Бадретдинова\" город  Набережные Челны Республики Татарстан","Гнеденкова","Злата","Олеговна","ж",10,10,7,4,6,{"$f":"SUM(J66:L66)","v":17},60,null,"нет","Валитова Зиля Фаритовна","Муниципальное бюджетное общеобразовательное учреждение \"Средняя общеобразовательная школа №46 имени кавалера ордена Мужества Дмитрия Бадретдинова\" город  Набережные Челны Республики Татарстан","Биология"]
[66,"261055_15915079889_27","Муниципальное автономное общеобразовательное учреждение города Набережные Челны \"Средняя общеобразовательная школа №55\"город  Набережные Челны Республики Татарстан","Нигматуллина","Зарина","Алмазовна","ж",10,10,8,3,5.5,16.5,60,null,"нет","Оруджева Наталья Викторовна","Муниципальное автономное общеобразовательное учреждение города Набережные Челны \"Средняя общеобразовательная школа №55\"город  Набережные Челны Республики Татарстан","Биология"]
[67,"263079_15579952327_27","Муниципальное бюджетное общеобразовательное учереждение \"Лицей-интернат №79\" город  Набережные Челны Республики Татарстан","Нуриев","Халиль","Рустемович","м",10,10,7,4,5,16,60,null,"нет","Бариева Назия Галимулловна","Муниципальное бюджетное общеобразовательное учереждение \"Лицей-интернат №79\" город  Набережные Челны Республики Татарстан","Биология"]
[68,"261006_15970026576_27","Муниципальное бюджетное общеобразовательное учреждение \"Средняя общеобразовательная школа №6\"город  Набережные Челны Республики Татарстан","Буторина","Диана","Александровна","ж",10,10,9,2.5,3.5,15,60,null,"нет","Абдуллаева Ольга Николаевна","Муниципальное бюджетное общеобразовательное учреждение \"Средняя общеобразовательная школа №6\"город  Набережные Челны Республики Татарстан","Биология"]
[69,"261037_14488495614_27","Муниципальное бюджетное общеобразовательное учреждение\"Средняя общеобразовательное школа № 37 с углубленным изучением отдельных предметов\" город Набережные Челны Республики Татарстан","Константинов","Пётр","Кириллович","м",10,10,7,2,6,15,60,null,"нет","Сабирова Гузель Ракиповна","Муниципальное бюджетное общеобразовательное учреждение\"Средняя общеобразовательное школа № 37 с углубленным изучением отдельных предметов\" город Набережные Челны Республики Татарстан","Биология"]
[70,"261032_18048979212_27","Муниципальное бюджетное общеобразовательное учреждение \"Средняя общеобразовательная школа № 32 с углубленным изучением отдельных предметов\"  город  Набережные Челны Республики Татарстан","Сенатуллова","Софья","Дмитриевна","ж",10,10,8,2,5,15,60,null,"нет","Сахабиева Алсу Габделбаровна","Муниципальное бюджетное общеобразовательное учреждение \"Средняя общеобразовательная школа № 32 с углубленным изучением отдельных предметов\"  город  Набережные Челны Республики Татарстан","Биология"]
[71,"261082_15006405004_27","Государственное бюджетное общеобразовательное учреждение \"Кадетская школа №82 имени Героя Советского Союза Ильдара Маннанова\" город  Набережные Республики Татарстан","Глухова","Вероника","Владимировна","ж",10,10,8,1.5,4.5,14,60,null,"нет","Стеганцева Ирина Петровна","Государственное бюджетное общеобразовательное учреждение \"Кадетская школа №82 имени Героя Советского Союза Ильдара Маннанова\" город  Набережные Республики Татарстан","Биология"]
[72,"263003_15970309891_27","Муниципальное бюджетное общеобразовательное учреждение \"Средняя общеобразовательная школа №3\" город Набережные Челны Республики Татарстан","Данилова","Аделина","Радиковна","ж",10,10,3,2,5,10,60,null,"нет","Ахметзянова Рамиля Асгатовна","Муниципальное бюджетное общеобразовательное учреждение \"Средняя общеобразовательная школа №3\" город Набережные Челны Республики Татарстан","Биология"]
[73,"261035_15954152791_27","Муниципальное автономное общеобразовательное учреждение \"Средняя общеобразовтельная школа №35 с углубленным изучением отдельных предметов\" город  Набережные Челны Республики Татарстан","Гайнуллина","Рушания","Эдуардовна","ж",10,10,3,1.5,3,7.5,60,null,"нет","Саетова Гульшат Вагизовна","Муниципальное автономное общеобразовательное учреждение \"Средняя общеобразовтельная школа №35 с углубленным изучением отдельных предметов\" город  Набережные Челны Республики Татарстан","Биология"]
[]
[]
[null,"не явились"]
[1,"261040_16144895177_27","МАОУ \"СОШ №40 с уиоп\"","Дмитриева","Анастасия","Максимовна","ж",10,10,{"$nulls":5},"нет","Шарипова Тазкира Халитовна","Муниципальное автономное общеобразовательное учреждение города Набережные Челны \"Средняя общеобразовательная школа №40 с углубленным изучением\"город  Набережные Челны Республики Татарстан","Биология"]
[2,"261055_16518096278_27","МАОУ \"Средняя общеобразовательная школа №55\"","Прохоров","Никита","Евгеньевич","м",10,10,{"$nulls":5},"нет","Оруджева Наталья Викторовна","Муниципальное автономное общеобразовательное учреждение  \"Средняя общеобразовательная школа №55\"город  Набережные Челны Республики Татарстан","Биология"]
[3,"261061_16330971963_27","МАОУ \"Гимназия №61\"","Марданова","Камилла","Радиковна","ж",10,10,{"$nulls":5},"нет","Степанова Елена Васильевна","Муниципальное автономное общеобразовательное учреждение \"Гимназия №61\"  город Набережные Челны Республики Татарстан","Биология"]
[4,"261061_16041714933_27","МАОУ \"Гимназия №61\"","Фархтдинова","Диана","Ильшатовна","ж",10,10,{"$nulls":5},"нет","Степанова Елена Васильевна","Муниципальное автономное общеобразовательное учреждение \"Гимназия №61\" город Набережные Челны Республики Татарстан","Биология"]
[5,"261010_14688734014_27","МБОУ \"СОШ №10\"","Еграшкина","Валерия","Александровна","ж",10,10,{"$nulls":5},"нет","Тукмачева Марина Михайловна","Муниципальное бюджетное общеобразовательное учреждение \"Средняя общеобразовательная школа №10\" город  Набережные Челны Республики Татарстан","Биология"]
[6,"261028_15976409925_27","МБОУ \"СОШ №28\"","Петров","Егор","Андреевич","м",10,10,{"$nulls":5},"нет","Ялалова Рита Адельшиновна","Муниципальное бюджетное общеобразовательное учреждение \"Средняя общеобразовательная школа №28\" город  Набережные Челны Республики Татарстан","Биология"]
[7,"261036_15992580321_27","МАОУ \"ЛИТ N36\"","Реут","Алена","Алексеевна","ж",10,10,{"$nulls":5},"нет","Пермякова Полина Александровна","Муниципальное автономное общеобразовательное учреждение \"Лицей инновационных технологий №36\" город Набережные Челны Республики Татарстан","Биология"]
[8,"261011_15769814323_27","МБОУ \"Средняя школа №11\"","Ахметзянова","Эльвина","Радиковна","ж",10,10,{"$nulls":5},"нет","Ахметшина Гузель Рустамовна","Муниципальное бюджетное общеобразовательное учреждение \"Средняя общеобразовательная школа № 11\" город  Набережные Челны Республики Татарстан","Биология"]
[9,"263054_16063167447_27","МБОУ \"Гимназия № 54\"","Харисова","Айзиля","Рамилевна","ж",10,10,{"$nulls":5},"нет","Забихуллина Айгуль Рафиковна","Муниципальное бюджетное общеобразовательное учреждение \"Гимназия №54\" город Набережные Челны Республика Татарстан","Биология"]
[10,"263058_16048639273_27","МБОУ \"СОШ №58\"","Хусаинова ","Алина","Айдаровна","ж",10,10,{"$nulls":5},"нет","Губьянова Оксана Михайловна","Муниципальное бюджетное общеобразовательное учреждение \" Средняя общеобразовательная школа №58\"город  Набережные Челны Республики Татарстан","Биология"]
[11,"261035_16021121490_27","МАОУ \"СОШ №35 с углубленным изучением отдельных предметов\"","Абдуллина","Аделина","Алмазовна","ж",10,10,{"$nulls":5},"нет","Саетова Гульшат Вагизовна","Муниципальное автономное общеобразовательное учреждение  \"Средняя общеобразовтельная школа №35 с углубленным изучением отдельных предметов\" город  Набережные Челны Республики Татарстан","Биология"]
[12,"263018_17120078020_27","МБОУ \"СОШ N18 с УИОП\"","Опарова","Валерия","Павловна","ж",10,10,{"$nulls":5},"нет","Алексашечкина Вера Владимировна","Муниципальное бюджетное общеобразовательное учреждение \"Средняя общеобразовательная школа №18 с углубленным изучением отдельных предметов\"город  Набережные Челны Республики Татарстан","Биология"]
[13,"263018_16027359351_27","МБОУ \"СОШ N18 с УИОП\"","Мурсалов","Ильдар","Габибович","м",10,10,{"$nulls":5},"нет","Алексашечкина Вера Владимировна","Муниципальное бюджетное общеобразовательное учреждение \"Средняя общеобразовательная школа №18 с углубленным изучением отдельных предметов\"город  Набережные Челны Республики Татарстан","Биология"]
[14,"261025_15954146796_27","МБОУ \"СОШ №25\"","Горбунова","Екатерина","Максимовна","ж",10,10,{"$nulls":5},"нет","Глусская Галина Викторовна","Муниципальное бюджетное общеобразовательное учреждение \"Средняя общеобразовательная школа №25\" город Набережные Челны Республики Татарстан","Биология"]
[15,"261041_15973724817_27","МБОУ \"СОШ №41\"","Кирилова","Виктория","Алексеевна","ж",10,10,{"$nulls":5},"нет","Ахметзянова Валентина Сергеевна","Муниципальное бюджетное общеобразовательное учреждение \" Средняя обшеобразовательная школа№ 41\" город Набережные челны Республики Татарстан","Биология"]

{"sheet":"11 класс","index":4,"n_rows":81,"n_cols":19,"rows_kept":81}
["№","Код участника","Название ОУ","Фамилия","Имя","Отчество","Пол","Класс","Класс участия","1задание","2 задание","3 задание","Балл","Макс. балл","Статус","Призер РЭ прошлого года","Учитель","Место работы учителя","Предмет"]
[1,"261019_16026481646_27","Муниципальное бюджетное общеобразовательное учреждение \"Средняя общеобразовательная школа №19 с углубленным изучением отдельных предметов\"город Набережные Челны Республики Татарстан","Иванова","София","Васильевна","ж",11,11,"21","23","10",54,69,"победитель","Да","Азовцева Альфия Мирзаяновна","Муниципальное бюджетное общеобразовательное учреждение \"Средняя общеобразовательная школа №19 с углубленным изучением отдельных предметов\"город Набережные Челны Республики Татарстан","Биология"]
[2,"261030_16026476047_27","Муниципальное бюджетное общеобразовательное учреждение \"Средняя общеобразовательная школа №30\" города Набережные Челны Республики Татарстан","Васюкова","Диана","Григорьевна","ж",11,11,"19","23,5","11",53.5,69,"призер","нет","Андрианова Альбина Абдулхатовна","Муниципальное бюджетное общеобразовательное учреждение \"Средняя общеобразовательная школа №30\" города Набережные Челны Республики Татарстан","Биология"]
[3,"261041_15976453221_27","Муниципальное бюджетное общеобразовательное учреждение \" Средняя обшеобразовательная школа№ 41\" город Набережные Челны Республики Татарстан","Мусаллимова","Рината","Айратовна","ж",11,11,"22","20,5","10",52.5,69,"призер","Да","Ахметзянова Валентина Сергеевна","Муниципальное бюджетное общеобразовательное учреждение \" Средняя обшеобразовательная школа№ 41\" город Набережные Челны Республики Татарстан","Биология"]
[4,"261035_15977850539_27","Муниципальное автономное общеобразовательное учреждение  \"Средняя общеобразовтельная школа №35 с углубленным изучением отдельных предметов\" город Набережные Челны Республики Татарстан","Гилязова","Самира","Азатовна","ж",11,11,"15","20","11",46,69,"призер","нет","Саетова Гульшат Вагизовна","Муниципальное автономное общеобразовательное учреждение  \"Средняя общеобразовтельная школа №35 с углубленным изучением отдельных предметов\" город Набережные Челны Республики Татарстан","Биология"]
[5,"261078_15960781101_27","Муниципальное автономное общеобразовательное учреждение \"Лицей №78 им. А. С. Пушкина\"город Набережные Челны Республики Татарстан","Бухарова","Кира","Александровна","ж",11,11,"19","19,5","7",45.5,69,"призер","нет","Каширина Татьяна Юрьевна","Муниципальное автономное общеобразовательное учреждение \"Лицей №78 им. А. С. Пушкина\"город Набережные Челны Республики Татарстан","Биология"]
[6,"261078_15976885149_27","Муниципальное автономное общеобразовательное учреждение \"Лицей №78 им. А. С. Пушкина\"город Набережные Челны Республики Татарстан","Несифорова","Софья","Олеговна","ж",11,11,"17","20","8,5",45.5,69,"призер","нет","Каширина Татьяна Юрьевна","Муниципальное автономное общеобразовательное учреждение \"Лицей №78 им. А. С. Пушкина\"город Набережные Челны Республики Татарстан","Биология"]
[7,"261078_17212386042_27","Муниципальное автономное общеобразовательное учреждение \"Лицей №78 им. А. С. Пушкина\"город Набережные Челны Республики Татарстан","Шомурадова","Дарья","Сергеевна","ж",11,11,"18","20","6,5",44.5,69,"призер","нет","Каширина Татьяна Юрьевна","Муниципальное автономное общеобразовательное учреждение \"Лицей №78 им. А. С. Пушкина\"город Набережные Челны Республики Татарстан","Биология"]
[8,"261026_15971261389_27","Муниципальное бюджетное общеобразовательное учреждение \"Гимназия №26\" город Набережные Челны Республики Татарстан","Абдуллина","Эльвина","Марселевна","ж",11,11,"19","16","8",43,69,"призер","нет","Моисеева Инна Анатольевна","Муниципальное бюджетное общеобразовательное учреждение \"Гимназия №26\" город Набережные Челны Республики Татарстан","Биология"]
[9,"261030_16028768373_27","Муниципальное бюджетное общеобразовательное учреждение \" Средняя общеобразовательная школа №30\"город Набережные Челны Республики Татарстан","Шулятьева","Софья","Петровна","ж",11,11,15,18.5,9.5,43,69,"призер","нет","Андрианова Альбина Абдулхатовна","Муниципальное бюджетное общеобразовательная учреждение \" Средняя общеобразовательная школа №30\"город Набережные Челны Республики Татарстан","Биология"]
[10,"261026_15960576807_27","Муниципальное бюджетное общеобразовательное учреждение \"Гимназия №26\" город Набережные Челны Республики Татарстан","Зидыбаева","Юлия","Александровна","ж",11,11,"13","21,5","8",42.5,69,"призер","нет","Моисеева Инна Анатольевна","Муниципальное бюджетное общеобразовательное учреждение \"Гимназия №26\" город Набережные Челны Республики Татарстан","Биология"]
[11,"261078_16078615883_27","Муниципальное автономное общеобразовательное учреждение \"Лицей №78 им. А. С. Пушкина\"город Набережные Челны Республики Татарстан","Султанова","Ралина","Камилевна","ж",11,11,"13","18","11",42,69,"призер","нет","Каширина Татьяна Юрьевна","Муниципальное автономное общеобразовательное учреждение \"Лицей №78 им. А. С. Пушкина\"город Набережные Челны Республики Татарстан","Биология"]
[12,"261024_16921134397_27","Муниципальное бюджетное общеобразовательное учреждение \"Средняя общеобразовательная школа №24 с углубленным изучением отдельных предметов\" город н Набережные Челны Республики Татарстан","Морозова","Анастасия","Александровна","ж",11,11,"16","17","9",42,69,"призер","нет","Смирнов Борис Александрович","Муниципальное бюджетное общеобразовательное учреждение \"Средняя общеобразовательная школа №24 с углубленным изучением отдельных предметов\" город н Набережные Челны Республики Татарстан","Биология"]
[13,"261019_16002636112_27","Муниципальное бюджетное общеобразовательное учреждение \"Средняя общеобразовательная школа №19 с углубленным изучением отдельных предметов\"город Набережные Челны Республики Татарстан","Гараев","Ильдар","Сергеевич","м",11,11,"17","22","10",49,69,"призер","нет","Азовцева Альфия Мирзаяновна","Муниципальное бюджетное общеобразовательная учреждение \" Средняя общеобразовательная школа №30\"город Набережные Челны Республики Татарстан","Биология"]
[14,"261019_16002636112_27","Муниципальное бюджетное общеобразовательное учреждение \"Средняя общеобразовательная школа №19 с углубленным изучением отдельных предметов\"город Набережные Челны Республики Татарстан","Строд","Нкита","Андреевич","м",11,11,"17","21","6,5",44.5,69,"призер","нет","Азовцева Альфия Мирзаяновна","Муниципальное бюджетное общеобразовательное учреждение \"Средняя общеобразовательная школа №19 с углубленным изучением отдельных предметов\"город Набережные Челны Республики Татарстан","Биология"]
[15,"261026_15971272192_27","Муниципальное бюджетное общеобразовательное учреждение \"Гимназия №26\" города Набережные Челны Республики Татарстан","Юсупов","Айсаф","Ильдарович","м",11,11,"15","20,5","8,5",44,69,"призер","да","Моисеева Инна Анатольевна","Муниципальное бюджетное общеобразовательное учреждение \"Гимназия №26\" города Набережные Челны Республики Татарстан","Биология"]
[16,"261026_16052522733_27","Муниципальное бюджетное общеобразовательное учреждение \"Гимназия №26\" город Набережные Челны Республики Татарстан","Насибуллин","Тимур","Талипович","м",11,11,"13","19","10,5",42.5,69,"призер","нет","Моисеева Инна Анатольевна","Муниципальное бюджетное общеобразовательное учреждение \"Гимназия №26\" город Набережные Челны Республики Татарстан","Биология"]
[17,"261030_16518095983_27","Муниципальное бюджетное общеобразовательное учреждение \" Средняя общеобразовательная школа №30\"город Набережные Челны Республики Татарстан","Габдуллин ","Райнур","Ильнурович","м",11,11,"19","17,5","6",42.5,69,"призер","нет","Андрианова Альбина Абдулхатовна","Муниципальное бюджетное общеобразовательная учреждение \" Средняя общеобразовательная школа №30\"город Набережные Челны Республики Татарстан","Биология"]
[18,"261026_15440698471_27","Муниципальное бюджетное общеобразовательное учреждение \"Гимназия №26\" город Набережные Челны Республики Татарстан","Таранова","Ксения","Алексеевна","ж",11,11,"13","19,5","9",41.5,69,null,"нет","Моисеева Инна Анатольевна","Муниципальное бюджетное общеобразовательное учреждение \"Гимназия №26\" город Набережные Челны Республики Татарстан","Биология"]
[19,"261076_16043648956_27","Муниципальное автономное общеобразовательное учреждение  \"Гимназия №76\"город Набережные Челны Республики Татарстан","Бородина","Анастасия","Сергеевна","ж",11,11,"16","16","9,5",41.5,69,null,"нет","Ахметова Елена Николаевна","Муниципальное автономное общеобразовательное учреждение  \"Гимназия №76\"город Набережные Челны Республики Татарстан","Биология"]
[20,"261026_15960569305_27","Муниципальное бюджетное общеобразовательное учреждение \"Гимназия №26\" город Набережные Челны Республики Татарстан","Аверьянова","Софья","Константиновна","ж",11,11,"16","17,5","7,5",41,69,null,"нет","Моисеева Инна Анатольевна","Муниципальное бюджетное общеобразовательное учреждение \"Гимназия №26\" город Набережные Челны Республики Татарстан","Биология"]
[21,"261056_14596209994_27","Муниципальное автономное общеобразовательное учреждение \"Средняя общеобразовательная школа №56\"город Набережные Челны Республики Татарстан","Белькова","Ангелина","Евгеньевна","ж",11,11,"15","19","7",41,69,null,"нет","Махмутова Ландыш Сабирзяновна","Муниципальное автономное общеобразовательное учреждение \"Средняя общеобразовательная школа №56\"город Набережные Челны Республики Татарстан","Биология"]
[22,"261078_15628684502_27","Муниципальное автономное общеобразовательное учреждение \"Лицей №78 им. А. С. Пушкина\"город Набережные Челны Республики Татарстан","Гарипова","Диляра","Азатовна","ж",11,11,"12","21,5","7,5",41,69,null,"нет","Каширина Татьяна Юрьевна","Муниципальное автономное общеобразовательное учреждение \"Лицей №78 им. А. С. Пушкина\"город Набережные Челны Республики Татарстан","Биология"]
[23,"261030_16043662647_27","Муниципальное бюджетное общеобразовательное учреждение \"Средняя общеобразовательная школа №30\" города Набережные Челны Республики Татарстан","Хайдаршина","Элина","Ильдаровна","ж",11,11,"15","19","6,5",40.5,69,null,"нет","Андрианова Альбина Абдулхатовна","Муниципальное бюджетное общеобразовательное учреждение \"Средняя общеобразовательная школа №30\" города Набережные Челны Республики Татарстан","Биология"]
[24,"261030_15960586709_27","Муниципальное бюджетное общеобразовательное учреждение \"Средняя общеобразовательная школа №30\" город Набережные Челны Республики Татарстан","Кулагина","Анастасия","Сергеевна","ж",11,11,"12","20","8,5",40.5,69,null,"нет","Андрианова Альбина Абдулхатовна","Муниципальное бюджетное общеобразовательное учреждение \"Средняя общеобразовательная школа №30\" город Набережные Челны Республики Татарстан","Биология"]
[25,"261024_16096161872_27","Муниципальное бюджетное общеобразовательное учреждение \"Средняя общеобразовательная школа №24 с углубленным изучением отдельных предметов\" город Набережные Челны Республики Татарстан","Хусаенова","Алина","Марселевна","ж",11,11,"17","14","9",40,69,null,"да","Смирнов Борис Александрович","Муниципальное бюджетное общеобразовательное учреждение \"Средняя общеобразовательная школа №24 с углубленным изучением отдельных предметов\" город Набережные Челны Республики Татарстан","Биология"]
[26,"261060_15504219032_27","Муниципальное бюджетное общеобразовательное учреждение \"Средняя общеобразовательная школа №60\"город Набережные Челны Республики Татарстан","Рыбалко","Вероника","Владимировна","ж",11,11,"11","20","9",40,69,null,"нет","Насибуллина Маргарита Сергеевна","Муниципальное бюджетное общеобразовательное учреждение \"Средняя общеобразовательная школа №60\"город Набережные Челны Республики Татарстан","Биология"]
[27,"263084_15224528844_27","Муниципальное автономное общеобразовательное учреждение \"Лицей-интернат №84 имени Гали Акыша\"город Набережные Челны Республики Татарстан","Замалтдинова","Рузия","Талгатовна","ж",11,11,"13","19,5","7",39,69,null,"нет","Хабибулина Алсу Сабирзяновна","Муниципальное автономное общеобразовательное учреждение \"Лицей-интернат №84 имени Гали Акыша\"город Набережные Челны Республики Татарстан","Биология"]
[28,"263084_15975368730_27","Муниципальное автономное общеобразовательное учреждение  \"Лицей-интернат №84 имени Гали Акыша\"город Набережные Челны Республики Татарстан","Исхакова","Диляра","Рафисовна","ж",11,11,"15","19","5",39,69,null,"нет","Хабибулина Алсу Сабирзяновна","Муниципальное автономное общеобразовательное учреждение  \"Лицей-интернат №84 имени Гали Акыша\"город Набережные Челны Республики Татарстан","Биология"]
[29,"261008_16042169636_27","Муниципальное бюджетное общеобразовательное учреждение \"Средняя общеобразовательная школа №8\"город Набережные Челны Республики Татарстан","Нуриева","Лиана","Ильназовна","ж",11,11,"12","16","10,5",38.5,69,null,"нет","Савенко Любовь Михайловна","Муниципальное бюджетное общеобразовательное учреждение \"Средняя общеобразовательная школа №8\"город Набережные Челны Республики Татарстан","Биология"]
[30,"261076_15940428578_27","Муниципальное автономное общеобразовательное учреждение  \"Гимназия №76\"город Набережные Челны Республики Татарстан","Валитова","Диана","Ильнаровна","ж",11,11,"11","18,5","8",37.5,69,null,"нет","Ахметова Елена Николаевна","Муниципальное автономное общеобразовательное учреждение  \"Гимназия №76\"город Набережные Челны Республики Татарстан","Биология"]
[31,"261041_15975377933_27","Муниципальное бюджетное общеобразовательное учреждение \" Средняя обшеобразовательная школа№ 41\"город Набережные Челны Республики Татарстан","Таипова","Диана","Ренатовна","ж",11,11,"12","17","8",37,69,null,"нет","Ахметзянова Валентина Сергеевна","Муниципальное бюджетное общеобразовательное учреждение \" Средняя обшеобразовательная школа№ 41\"город Набережные Челны Республики Татарстан","Биология"]
[32,"263052_15954113983_27","Муниципальное бюджетное общеобразовательное учреждение \"Средняя общеобразовательная школа №52\" города Набережные Челны Республики Татарстан","Сайфутдинова","Карина","Радиковна","ж",11,11,"11","19,5","5,5",36,69,null,"нет","Нургалиеаа Элмира Фанисовна","Муниципальное бюджетное общеобразовательное учреждение \"Средняя общеобразовательная школа №52\" города Набережные Челны Республики Татарстан","Биология"]
[33,"261040_16019316741_27","Муниципальное автономное общеобразовательное учреждение  \"Средняя общеобразовательная школа №40 с углубленным изучением\"город Набережные Челны Республики Татарстан","Гильман","Софья","Витальевна","ж",11,11,"10","16,5","9",35.5,69,null,"нет","Шарипова Тазкира Халитовна","Муниципальное автономное общеобразовательное учреждение  \"Средняя общеобразовательная школа №40 с углубленным изучением\"город Набережные Челны Республики Татарстан","Биология"]
[34,"261035_15944104774_27","Муниципальное автономное общеобразовательное учреждение  \"Средняя общеобразовтельная школа №35 с углубленным изучением отдельных предметов\" город Набережные Челны Республики Татарстан","Хуснутдинова","Элина","Ренатовна","ж",11,11,"9","18,5","8",35.5,69,null,"нет","Саетова Гульшат Вагизовна","Муниципальное автономное общеобразовательное учреждение  \"Средняя общеобразовтельная школа №35 с углубленным изучением отдельных предметов\" город Набережные Челны Республики Татарстан","Биология"]
[35,"261030_15994208715_27","Муниципальное бюджетное общеобразовательное учреждение \" Средняя общеобразовательная школа №30\"город Набережные Челны Республики Татарстан","Айметова","Анастасия","Андреевна","ж",11,11,"11","18","6,5",35.5,69,null,"нет","Андрианова Альбина Абдулхатовна","Муниципальное бюджетное общеобразовательная учреждение \" Средняя общеобразовательная школа №30\"город Набережные Челны Республики Татарстан","Биология"]
[36,"261055_16996918057_27","Муниципальное автономное общеобразовательное учреждение  \"Средняя общеобразовательная школа №55\"город Набережные Челны Республики Татарстан","Вафина","Адиля","Абдукадыровна","ж",11,11,"9","19","7,5",35.5,69,null,"нет","Оруджева Наталья Викторовна","Муниципальное автономное общеобразовательное учреждение  \"Средняя общеобразовательная школа №55\"город Набережные Челны Республики Татарстан","Биология"]
[37,"261060_15949144811_27","Муниципальное бюджетное общеобразовательное учреждение \"Средняя общеобразовательная школа №60\"город Набережные Челны Республики Татарстан","Бурганова","Эльза","Айратовна","ж",11,11,"10","18","7",35,69,null,"нет","Насибуллина Маргарита Сергеевна","Муниципальное бюджетное общеобразовательное учреждение \"Средняя общеобразовательная школа №60\"город Набережные Челны Республики Татарстан","Биология"]
[38,"261028_15843484596_27","Муниципальное бюджетное общеобразовательное учреждение \"Средняя общеобразовательная школа №28\"город Набережные Челны Республики Татарстан","Терентьева","Карина","Сергеевна","ж",11,11,"10","16,5","7,5",34,69,null,"нет","Ялалова Рита Адельшиновна","Муниципальное бюджетное общеобразовательное учреждение \"Средняя общеобразовательная школа №28\"город Набережные Челны Республики Татарстан","Биология"]
[39,"263054_16045510634_27","Муниципальное бюджетное общеобразовательное учреждение \"Гимназия №54\" город Набережные Челны Республика Татарстан","Шангараева","Алсу","Ильнуровна","ж",11,11,"11","16","7",34,69,null,"нет","Забихуллина Айгуль Рафиковна","Муниципальное бюджетное общеобразовательное учреждение \"Гимназия №54\" город Набережные Челны Республика Татарстан","Биология"]
[40,"261008_15405965873_27","Муниципальное бюджетное общеобразовательное учреждение \"Средняя общеобразовательная школа №8\"город Набережные Челны Республики Татарстан","Идрисова","Сабина","Равилевна","ж",11,11,"9","15,5","7,5",32,69,null,"нет","Савенко Любовь Михайловна","Муниципальное бюджетное общеобразовательное учреждение \"Средняя общеобразовательная школа №8\"город Набережные Челны Республики Татарстан","Биология"]
[41,"261053_15960785210_27","Муниципальное бюджетное общеобразовательное учреждение \"Средняя общеобразовательная школа №53\"город Набережные Челны Республики Татарстан","Жуковская","Каролина","Леонидовна","ж",11,11,"9","18","5",32,69,null,"нет","Муфахарова Лейсан Вакифовна","Муниципальное бюджетное общеобразовательное учреждение \"Средняя общеобразовательная школа №53\"город Набережные Челны Республики Татарстан","Биология"]
[42,"261035_15954157902_27","Муниципальное автономное общеобразовательное учреждение  \"Средняя общеобразовтельная школа №35 с углубленным изучением отдельных предметов\" город Набережные Челны Республики Татарстан","Мулюкова","Кристина","Андреевна","ж",11,11,"7","17,5","6,5",31,69,null,"нет","Саетова Гульшат Вагизовна","Муниципальное автономное общеобразовательное учреждение  \"Средняя общеобразовтельная школа №35 с углубленным изучением отдельных предметов\" город Набережные Челны Республики Татарстан","Биология"]
[43,"263054_15949126506_27","Муниципальное бюджетное общеобразовательное учреждение \"Гимназия №54\"город Набережные Челны Республика Татарстан","Нургалиева","Лиана","Инзиловна","ж",11,11,"8","16","7",31,69,null,"нет","Забихуллина Айгуль Рафиковна","Муниципальное бюджетное общеобразовательное учреждение \"Гимназия №54\"город Набережные Челны Республика Татарстан","Биология"]
[44,"261025_15425081241_27","Муниципальное бюджетное общеобразовательное учреждение \"Средняя общеобразовательная школа №25\" город Набережные Челны Республики Татарстан","Иванова","Анна","Антоновна","ж",11,11,"9","15","6",30,69,null,"нет","Глусская Галина Викторовна","Муниципальное бюджетное общеобразовательное учреждение \"Средняя общеобразовательная школа №25\" город Набережные Челны Республики Татарстан","Биология"]
[45,"261061_15990166402_27","Муниципальное автономное общеобразовательное учреждение \"Гимназия №61\" город Набережные Челны Республики Татарстан","Коновнина","Дарья","Александровна","ж",11,11,"10","11,5","5,5",27,69,null,"нет","Степанова Елена Васильевна","Муниципальное автономное общеобразовательное учреждение \"Гимназия №61\" город Набережные Челны Республики Татарстан","Биология"]
[46,"263002_16127831760_27","Муниципальное бюджетное общеобразовательное учреждение \"Гимназия №2 имени Мулланура Вахитова\"город Набережные Челны Республики Татарстан","Султанова","Гузель","Фандусовна","ж",11,11,"15","4","8",27,69,null,"нет","Сахбутдинова Раушания Робертовна","Муниципальное бюджетное общеобразовательное учреждение \"Гимназия №2 имени Мулланура Вахитова\" город Набережные Челны Республики Татарстан","Биология"]
[47,"261078_17503346607_27","Муниципальное автономное общеобразовательное учреждение \"Лицей №78 им. А. С. Пушкина\"город Набережные Челны Республики Татарстан","Фогт","Алекса","Андреевна","ж",11,11,"16","2,5","5,5",24,69,null,"нет","Каширина Татьяна Юрьевна","Муниципальное автономное общеобразовательное учреждение \"Лицей №78 им. А. С. Пушкина\"город Набережные Челны Республики Татарстан","Биология"]
[48,"261022_18036606662_27","Муниципальное бюджетное образовательное учреждение \"Средняя общеобразовательная школа№22\"город Набережные Челны Республики Татарстан","Пшеницина","Екатерина","Андреевна","ж",11,11,"15","2","6",23,69,null,"нет","Каримова Гузель Рамилевна","Муниципальное бюджетное образовательное учреждение \"Средняя общеобразовательная школа№22\"город Набережные Челны Республики Татарстан","Биология"]
[49,"261019_15960797621_27","Муниципальное бюджетное общеобразовательное учреждение \"Средняя общеобразовательная школа №19 с углубленным изучением отдельных предметов\"город Набережные Челны Республики Татарстан","Григорян","Лилиана","Арменовна","ж",11,11,"12","1,5","8,5",22,69,null,"нет","Азовцева Альфия Мирзаяновна","Муниципальное бюджетное общеобразовательное учреждение \"Средняя общеобразовательная школа №19 с углубленным изучением отдельных предметов\"город Набережные Челны Республики Татарстан","Биология"]
[50,"261060_16070649961_27","Муниципальное бюджетное общеобразовательное учреждение \"Средняя общеобразовательная школа №60\"город Набережные Челны Республики Татарстан","Саитбурханова","Эльвира","Римовна","ж",11,11,"8","2","6,5",16.5,69,null,"нет","Насибуллина Маргарита Сергеевна","Муниципальное бюджетное общеобразовательное учреждение \"Средняя общеобразовательная школа №60\"город Набережные Челны Республики Татарстан","Биология"]
[51,"261037_15891774019_27","Муниципальное бюджетное общеобразовательное учреждение\"Средняя общеобразовательное школа № 37 с углубленным изучением отдельных  предметов\" город Набережные Челны Республики Татарстан","Злоцкая","Елизавета","Андреевна","ж",11,11,"8","1,5","7",16.5,69,null,"нет","Сабирова Гузель Ракиповна","Муниципальное бюджетное общеобразовательное учреждение\"Средняя общеобразовательное школа № 37 с углубленным изучением отдельных  предметов\" город Набережные Челны Республики Татарстан","Биология"]
[52,"261008_14500443211_27","Муниципальное бюджетное общеобразовательное учреждение \"Средняя общеобразовательная школа №8\"город Набережные Челны Республики Татарстан","Хованова","Регина","Радисовна","ж",11,11,"5","2","5",12,69,null,"нет","Савенко Любовь Михайловна","Муниципальное бюджетное общеобразовательное учреждение \"Средняя общеобразовательная школа №8\"город Набережные Челны Республики Татарстан","Биология"]
[53,"261024_14823070944_27","Муниципальное бюджетное общеобразовательное учреждение \"Средняя общеобразовательная школа №24 с углубленным изучением отдельных предметов\" город Набережные Челны Республики Татарстан","Иоффе","Антон","Константинович","м",11,11,"14","22","5",41,69,null,"нет","Смирнов Борис Александрович","Муниципальное бюджетное общеобразовательное учреждение \"Средняя общеобразовательная школа №24 с углубленным изучением отдельных предметов\" город Набережные Челны Республики Татарстан","Биология"]
[54,"261008_15955336806_27","Муниципальное бюджетное общеобразовательное учреждение \"Средняя общеобразовательная школа №8\"город Набережные Челны Республики Татарстан","Храмов","Иван","Валерьевич","м",11,11,"13","19","8",40,69,null,"нет","Савенко Любовь Михайловна","Муниципальное бюджетное общеобразовательное учреждение \"Средняя общеобразовательная школа №8\"город Набережные Челны Республики Татарстан","Биология"]
[55,"261026_14591644179_27","Муниципальное бюджетное общеобразовательное учреждение \"Гимназия №26\" город Набережные Челны Республики Татарстан","Нефедьев","Захар","Дмитриевич","м",11,11,"13","19","6,5",38.5,69,null,"нет","Моисеева Инна Анатольевна","Муниципальное бюджетное общеобразовательное учреждение \"Гимназия №26\" город Набережные Челны Республики Татарстан","Биология"]
[56,"263054_16055810349_27","Муниципальное бюджетное общеобразовательное учреждение \"Гимназия №54\" город Набережные Челны Республика Татарстан","Шайдуллин","Тахир","Дамирович","м",11,11,"14","16","8",38,69,null,"нет","Забихуллина Айгуль Рафиковна","Муниципальное бюджетное общеобразовательное учреждение \"Гимназия №54\" город Набережные Челны Республика Татарстан","Биология"]
[57,"261042_17593344302_27","Муниципальное бюджетная общеобразовательное учреждение \"Средняя общеобразовательная школа № 42\"город Набережные Челны Республики Татарстан","Александренко","Илья","Николаевич","м",11,11,"9","21","8",38,69,null,"нет","Сайранова Алина Гаптенуровна","Муниципальное бюджетная общеобразовательное учреждение \"Средняя общеобразовательная школа № 42\"город Набережные Челны Республики Татарстан","Биология"]
[58,"261006_16042347533_27","Муниципальное бюджетное общеобразовательное учреждение \"Средняя общеобразовательная школа №6\" город Набережные Челны Республики Татарстан","Голев","Андрей","Дмитриевич","м",11,11,"13","15","10",38,69,null,"нет","Абдуллаева Ольга Николаевна","Муниципальное бюджетное общеобразовательное учреждение \"Средняя общеобразовательная школа №6\" город Набережные Челны Республики Татарстан","Биология"]
[59,"261061_15491441166_27","Муниципальное автономное общеобразовательное учреждение \"Гимназия №61\"город Набережные Челны Республики Татарстан","Хамитов","Рафкат","Робертович","м",11,11,"15","15","7,5",37.5,69,null,"нет","Степанова Елена Васильевна","Муниципальное автономное общеобразовательное учреждение \"Гимназия №61\"город Набережные Челны Республики Татарстан","Биология"]
[60,"261049_16088144169_27","Муниципальное автономное общеобразовательное учреждение \"Кадетская школа №49\"город Набережные Челны Республики Татарстан","Дмитриев","Дмитрий","Александрович","м",11,11,"12","17,5","8",37.5,69,null,"нет","Закирова Фирдавус Завитовна","Муниципальное автономное общеобразовательное учреждение \"Кадетская школа №49\"город Набережные Челны Республики Татарстан","Биология"]
[61,"263079_16164557270_27","Муниципальное бюджетное общеобразовательное учереждение \"Лицей-интернат №79\"город Набережные Челны Республики Татарстан","Стекольщиков","Руслан","Евгеньевич","м",11,11,"10","18","7",35,69,null,"нет","Бариева Назия Галимулловна","Муниципальное бюджетное общеобразовательное учереждение \"Лицей-интернат №79\"город Набережные Челны Республики Татарстан","Биология"]
[62,"263084_15994224716_27","Муниципальное автономное общеобразовательное учреждение  \"Лицей-интернат №84 имени Гали Акыша\" город Набережные ЧелныРеспублики Татарстан","Халимов","Альмир","Рамилевич","м",11,11,"14","12","7",33,69,null,"нет","Хабибулина Алсу Сабирзяновна","Муниципальное автономное общеобразовательное учреждение  \"Лицей-интернат №84 имени Гали Акыша\" город Набережные ЧелныРеспублики Татарстан","Биология"]
[63,"261042_15980574108_27","Муниципальное бюджетная общеобразовательное учреждение \"Средняя общеобразовательная школа № 42\"город Набережные Челны Республики Татарстан","Любецкий","Артемий","Олегович","м",11,11,"10","17","5,5",32.5,69,null,"нет","Сайранова Алина Гаптенуровна","Муниципальное бюджетная общеобразовательное учреждение \"Средняя общеобразовательная школа № 42\"город Набережные Челны Республики Татарстан","Биология"]
[64,"261026_16045507241_27","Муниципальное бюджетное общеобразовательное учреждение \"Гимназия №26\" город Набережные Челны Республики Татарстан","Снарский","Лев","Константинович","м",11,11,"8","16","7,5",31.5,69,null,"нет","Моисеева Инна Анатольевна","Муниципальное бюджетное общеобразовательное учреждение \"Гимназия №26\" город Набережные Челны Республики Татарстан","Биология"]
[]
[]
[null,"не явились"]
[1,"261006_17235359066_27","Муниципальное бюджетное общеобразовательное учреждение \"Средняя общеобразовательная школа №6\" город Набережные Челны Республики Татарстан","Арасланов","Матвей","Михайлович","м",11,11,{"$nulls":4},69,null,"нет","Абдуллаева Ольга Николаевна","Муниципальное бюджетное общеобразовательное учреждение \"Средняя общеобразовательная школа №6\" город Набережные Челны Республики Татарстан","Биология"]
[2,"261006_16042349941_27","Муниципальное бюджетное общеобразовательное учреждение \"Средняя общеобразовательная школа №6\" город Набережные Челны Республики Татарстан","Имашев","Марк","Ильфакович","м",11,11,{"$nulls":4},69,null,"нет","Абдуллаева Ольга Николаевна","Муниципальное бюджетное общеобразовательное учреждение \"Средняя общеобразовательная школа №6\" город Набережные Челны Республики Татарстан","Биология"]
[3,"261055_16048699392_27","Муниципальное автономное общеобразовательное учреждение  \"Средняя общеобразовательная школа №55\"город Набережные Челны Республики Татарстан","Хасаншин","Артур","Ильсурович","м",11,11,{"$nulls":4},69,null,"нет","Оруджева Наталья Викторовна","Муниципальное автономное общеобразовательное учреждение  \"Средняя общеобразовательная школа №55\"город Набережные Челны Республики Татарстан","Биология"]
[4,"261055_16021132900_27","Муниципальное автономное общеобразовательное учреждение  \"Средняя общеобразовательная школа №55\"город Набережные Челны Республики Татарстан","Мазитова","Алия","Маратовна","ж",11,11,{"$nulls":4},69,null,"нет","Оруджева Наталья Викторовна","Муниципальное автономное общеобразовательное учреждение  \"Средняя общеобразовательная школа №55\"город Набережные Челны Республики Татарстан","Биология"]
[5,"261049_15809898528_27","Муниципальное автономное общеобразовательное учреждение \"Кадетская школа №49\"город Набережные Челны Республики Татарстан","Зиганшин","Амир","Алмазович","м",11,11,{"$nulls":4},69,null,"нет","Закирова Фирдавус Завитовна","Муниципальное автономное общеобразовательное учреждение \"Кадетская школа №49\"город Набережные Челны Республики Татарстан","Биология"]
[6,"261049_16421778066_27","Муниципальное автономное общеобразовательное учреждение \"Кадетская школа №49\"город Набережные Челны Республики Татарстан","Северюхин","Дмитрий","Александрович","м",11,11,{"$nulls":4},69,null,"нет","Закирова Фирдавус Завитовна","Муниципальное автономное общеобразовательное учреждение \"Кадетская школа №49\"город Набережные Челны Республики Татарстан","Биология"]
[7,"261019_15963890727_27","Муниципальное бюджетное общеобразовательное учреждение \"Средняя общеобразовательная школа №19 с углубленным изучением отдельных предметов\"город Набережные Челны Республики Татарстан","Аверкина","Юлия","Сергеевна","ж",11,11,{"$nulls":4},69,null,"нет","Азовцева Альфия Мирзаяновна","Муниципальное бюджетное общеобразовательное учреждение \"Средняя общеобразовательная школа №19 с углубленным изучением отдельных предметов\"город Набережные Челны Республики Татарстан","Биология"]
[8,"261041_15994228822_27","Муниципальное бюджетное общеобразовательное учреждение \" Средняя обшеобразовательная школа№ 41\" город Набережные Челны Республики Татарстан","Шайхутдинова","Диана","Данияровна","ж",11,11,{"$nulls":4},69,null,"нет","Ахметзянова Валентина Сергеевна","Муниципальное бюджетное общеобразовательное учреждение \" Средняя обшеобразовательная школа№ 41\" город Набережные Челны Республики Татарстан","Биология"]
[9,"261041_15960564699_27","Муниципальное бюджетное общеобразовательное учреждение \" Средняя обшеобразовательная школа№ 41\" город Набережные Челны Республики Татарстан","Салимгараева","Амира","Айдаровна","ж",11,11,{"$nulls":4},69,null,"нет","Ахметзянова Валентина Сергеевна","Муниципальное бюджетное общеобразовательное учреждение \" Средняя обшеобразовательная школа№ 41\" город Набережные Челны Республики Татарстан","Биология"]
[10,"263029_15955342801_27","Муниципальное бюджетное общеобразовательное учреждение \"Гимназия №29\" город Набережные Челны Республики Татарстан","Галимова","Эльвина","Ильгизовна","ж",11,11,{"$nulls":4},69,null,"нет","Газизова Ильсеяр Халисовна","Муниципальное бюджетное общеобразовательное учреждение \"Гимназия №29\" город Набережные Челны Республики Татарстан","Биология"]
[11,"263029_15954154795_27","Муниципальное бюджетное общеобразовательное учреждение \"Гимназия №29\" город Набережные Челны Республики Татарстан","Зайнуллина","Аделина","Вахитовна","ж",11,11,{"$nulls":4},69,null,"нет","Газизова Ильсеяр Халисовна","Муниципальное бюджетное общеобразовательное учреждение \"Гимназия №29\" город Набережные Челны Республики Татарстан","Биология"]
[12,"263029_16164551460_27","Муниципальное бюджетное общеобразовательное учреждение \"Гимназия №29\" город Набережные Челны Республики Татарстан","Насибуллина","Алия","Ильдаровна","ж",11,11,{"$nulls":4},69,null,"нет","Газизова Ильсеяр Халисовна","Муниципальное бюджетное общеобразовательное учреждение \"Гимназия №29\" город Набережные Челны Республики Татарстан","Биология"]
[13,"261001_15960552490_27","Муниципальное автономное общеобразовательное учреждение \"Средняя общеобразовательная школа №1\"город Набережные Челны Республики Татарстан","Курбанов","Тимур","Ленарович","м",11,11,{"$nulls":4},69,null,"нет","Садыкова Рамзия Рафгатовна","Муниципальное автономное общеобразовательное учреждение \"Средняя общеобразовательная школа №1\"город Набережные Челны Республики Татарстан","Биология"]

{"sheet":"предв.биология","index":5,"n_rows":303,"n_cols":22,"rows_kept":303}
["№","Код участника","Название ОУ","СНИЛС","Фамилия","Имя","Отчество","Пол","Дата рождения","Участник с ОВЗ","Класс","Класс участия","задание 1","Первичный балл","Добавлено по итогам апелляций","Итоговый балл","Максимальный балл","статус","призер РЭ прошлого года","Учитель","Место работы учителя","Предмет"]
[1,"261078_16329321963_27","Муниципальное автономное общеобразовательное учреждение \"Лицей №78 им. А. С. Пушкина\" города Набережные Челны Республики Татарсан",16329321963,"Хабиров","Нурислам","Рамилевич","м","23.04.2010","нет",7,7,11,21,null,21,30.5,"победитель","нет","Акманаева Светлана Витальевна","Муниципальное автономное общеобразовательное учреждение \"Лицей №78 им. А. С. Пушкина\" города Набережные Челны Республики Татарсан","Биология"]
[2,"261033_15971281092_27","Муниципальное бюджетное общеобразовательное учреждение \"Средняя общеобразовательная школа №33\" города Набережные Челны Республики Татарстан",15971281092,"Галемянова","Налия","Закиржановна","ж","05.03.2010","нет",7,7,8,19.5,null,19.5,30.5,"призёр","нет","Гарифуллина Эльвира Флюровна","Муниципальное бюджетное общеобразовательное учреждение \"Средняя общеобразовательная школа №33\" города Набережные Челны Республики Татарстан","Биология"]
[3,"261009_17247630070_27","Муниципальное бюджетное общеобразовательное учреждение \"Средняя школа №9\" города Набережные Челны Республики Татарстан",17247630070,"Нургалиев","Амир","Алмазович","м","2010-09-19","нет",7,7,9,19,null,19,30.5,"призёр","нет","Якупова Наталья Валерьевна","Муниципальное бюджетное общеобразовательное учреждение \"Средняя школа №9\" города Набережные Челны Республики Татарстан","Биология"]
[4,"261026_17207835266_27","Муниципальное бюджетное общеобразовательное учреждение \"Гимназия №26\" города Набережные Челны Республики Татарстан",17207835266,"Калашников","Артур","Олегович","м","08.05.2010","нет",7,7,6,19,null,19,30.5,"призёр","нет","Белова Алена Федоровна","Муниципальное бюджетное общеобразовательное учреждение \"Гимназия №26\" города Набережные Челны Республики Татарстан","Биология"]
[5,"261021_19182011050_27","Муниципальное автономное общеобразовательное учреждение города Набережные Челны \"Средняя общеобразовательная школа №21\" Республики Татарстан",19182011050,"Урасин","Михаил","Андреевич","м","16.06.2010","нет",7,7,10,19,null,19,30.5,"призёр","нет","Галиулина Альфира Харисовна","Муниципальное автономное общеобразовательное учреждение города Набережные Челны \"Средняя общеобразовательная школа №21\" Республики Татарстан","Биология"]
[6,"265001_17667883341_27","Муниципальное автономное общеооразовательное учреждение \"Гимназия №77\" города Набережные челны Республики Татарстан",17667883341,"Шамбуллин","Артемий","Дмитриевич","м","28.06.2010","нет",7,7,8,18.5,null,18.5,30.5,"призёр","нет","Ахметшина Лилия Расиховна","Муниципальное автономное общеооразовательное учреждение \"Гимназия №77\" города Набережные челны Республики Татарстан","Биология"]
[7,"261039_17617810082_27","Муниципальное бюджетное общеобразовательное учреждение \"Средняя общеобразовательная школа №39\" города Набережные Челны Республики Татарстан",17617810082,"Юлдашев","Раиль","Артурович","м","30.06.2010","нет",7,7,8,18,null,18,30.5,"призёр","нет","Данченко Марина Михайловна","Муниципальное бюджетное общеобразовательное учреждение \"Средняя общеобразовательная школа №39\" города Набережные Челны Республики Татарстан","Биология"]
[8,"261078_17247630272_27","Муниципальное автономное общеобразовательное учреждение \"Лицей №78 им. А. С. Пушкина\"  города  Набережные Челны Республики Татарстан",17247630272,"Галлямова","Алия","Айдаровна","ж","30.01.2010","нет",7,7,6,17.5,null,17.5,30.5,"призёр","нет","Сальникова Гульзера Рустамовна","Муниципальное автономное общеобразовательное учреждение \"Лицей №78 им. А. С. Пушкина\"  города  Набережные Челны Республики Татарстан","Биология"]
[9,"261031_15963342696_27","Муниципальное бюджетное общеобразовательное учреждение \"Средняя общеобразовательная школа №31 с углубленным изучением отдельных предметов\" города Набережные Челны Республики Татарстан",15963342696,"Максимова","Маргарита","Анатольевна","ж","20.04.2010","нет",7,7,6,17.5,null,17.5,30.5,"призёр","нет","Третьякова Ирина Михайловна","Муниципальное бюджетное общеобразовательное учреждение \"Средняя общеобразовательная школа №31 с углубленным изучением отдельных предметов\" города Набережные Челны Республики Татарстан","Биология"]
[10,"261039_17486545314_27","Муниципальное бюджетное общеобразовательное учреждение \"Средняя общеобразовательная школа №39\" города Набережные Челны Республики Татарстан",17486545314,"Газиятов","Самуэль","Рафаэлевич","м","29.12.2009","нет",7,7,8,17,null,17,30.5,"призёр","нет","Данченко Марина Михайловна","Муниципальное бюджетное общеобразовательное учреждение \"Средняя общеобразовательная школа №39\" города Набережные Челны Республики Татарстан","Биология"]
[11,"261041_15800825058_27","Муниципальное бюджетное общеобразовательное учреждение \" Средняя обшеобразовательная школа№ 41\"  города Набережные Челны Республики Татарстан",15800825058,"Сизова","Лейла","Руслановна","ж","11.01.2010","нет",7,7,7,17,null,17,30.5,"призёр","нет","Ахметзянова Валентина Сергеевна","Муниципальное бюджетное общеобразовательное учреждение \" Средняя обшеобразовательная школа№ 41\"  города Набережные Челны Республики Татарстан","Биология"]
[12,"261062_17253054450_27","Муниципальное бюджетное общеобразовательное учреждение «Средняя общеобразовательная школа \"Центр образования № 62\" города Набережные Челны Республики Татарстан",17253054450,"Салахова","Ясмина","Дамировна","ж","08.01.2010","нет",7,7,6,16.5,null,16.5,30.5,"призёр","нет","Хромова Оксана Сергеевна","Муниципальное бюджетное общеобразовательное учреждение «Средняя общеобразовательная школа \"Центр образования № 62\" города Набережные Челны Республики Татарстан","Биология"]
[13,"261036_15954368915_27","Муниципальное автономное общеобразовательное учреждение \"Лицей инновационных технологий №36\" город Набережные Челны Республики Татарстан",15954368915,"Мерц","Марта","Андреевна","ж","29.03.2010","нет",7,7,7,16.5,null,16.5,30.5,"призёр","нет","Пермякова Полина Александровна","Муниципальное автономное общеобразовательное учреждение \"Лицей инновационных технологий №36\" город Набережные Челны Республики Татарстан","Биология"]
[14,"261021_17639521299_27","Муниципальное автономное общеобразовательное учреждение города Набережные Челны \"Средняя общеобразовательная школа №21\" Республики Татарстан",17639521299,"Рязанова","Карина","Максимовна","ж","26.11.2009","нет",7,7,6,16.5,null,16.5,30.5,"призёр","нет","Галиулина Альфира Харисовна","Муниципальное автономное общеобразовательное учреждение города Набережные Челны \"Средняя общеобразовательная школа №21\"","Биология"]
[15,"261010_17396299425_27","Муниципальное бюджетное общеобразовательное учреждение \"Средняя общеобразовательная школа №10\" города Набережные Челны Республики Татарстан",17396299425,"Вахитова","Диляра","Айдаровна","ж","21.07.2010","нет",7,7,7,16,null,16,30.5,"участник","нет","Корчагин Дмитрий Сергеевич","Муниципальное бюджетное общеобразовательное учреждение \"Средняя общеобразовательная школа №10\" города Набережные Челны Республики Татарстан","Биология"]
[16,"261050_17308152048_27","Муниципальное автономное общеобразовательное учреждение города Набережные Челны \"Средняя общеобразовательная школа №50 с углубленным изучением отдельных предметов\" Республики Татарстан",17308152048,"Корабаев","Данияр","Акмалович","м","10.03.2010","нет",7,7,7,16,null,16,30.5,"участник","нет","Хуснутдинова Алия Фанусовна","Муниципальное автономное общеобразовательное учреждение города Набережные Челны \"Средняя общеобразовательная школа №50 с углубленным изучением отдельных предметов\" Республики Татарстан","Биология"]
[17,"261059_17044982880_27","Муниципальное бюджетное общеобразовательное учреждение «Полилингвальная гимназия № 59 «Адымнар-Чаллы»",17044982880,"Нигматуллина","Амелия","Руслановна","ж","12.05.2010","нет",7,7,8,16,null,16,30.5,"участник","нет","Лутфуллина Гулюза Магъфуровна","Муниципальное бюджетное общеобразовательное учреждение «Полилингвальная гимназия № 59 «Адымнар-Чаллы»","Биология"]
[18,"261024_17224108535_27","Муниципальное бюджетное общеобразовательное учреждение \"Средняя общеобразовательная школа №24 с углубленным изучением отдельных предметов\" г. Набережные Челны Республики Татарстан",17224108535,"Рахманкулова","Варвара","Алексеевна","ж","20.10.2010","нет",7,7,6,16,null,16,30.5,"участник","нет","Шайхайдарова Айзиряк Альбертовна","Муниципальное бюджетное общеобразовательное учреждение \"Средняя общеобразовательная школа №24 с углубленным изучением отдельных предметов\" г. Набережные Челны Республики Татарстан","Биология"]
[19,"261078_16130153006_27","Муниципальное автономное общеобразовательное учреждение \"Лицей №78 им. А. С. Пушкина\" грорда Набережные Челны Республики Татарстан",16130153006,"Карпов","Георгий","Александрович","м","20.05.2010","нет",7,7,5,15.5,null,15.5,30.5,"участник","нет","Акманаева Светлана Витальевна","Муниципальное автономное общеобразовательное учреждение \"Лицей №78 им. А. С. Пушкина\" грорда Набережные Челны Республики Татарстан","Биология"]
[20,"261062_17529746916_27","Муниципальное бюджетное общеобразовательное учреждение «Средняя общеобразовательная школа \"Центр образования № 62\" города Набережные Челны Республики Татарстан",17529746916,"Захарова","Азалия","Александровна","ж","22.05.2010","нет",7,7,4,15.5,null,15.5,30.5,"участник","нет","Хромова Оксана Сергеевна","Муниципальное бюджетное общеобразовательное учреждение «Средняя общеобразовательная школа \"Центр образования № 62\" города Набережные Челны Республики Татарстан","Биология"]
[21,"261059_18973532024_27","Муниципальное бюджетное общеобразовательное учреждение \"Полилингвальная гимназия № 59 «Адымнар-Чаллы\"  города Набережные Челны Республики Татарстан",18973532024,"Фаизов","Данияр","Ильнурович","м","07.10.2009","нет",7,7,7,15.5,null,15.5,30.5,"участник","нет","Казакова Ирина Викторовна","Муниципальное бюджетное общеобразовательное учреждение \"Полилингвальная гимназия № 59 \"Адымнар-Чаллы\" города Набережные Челны Республики Татарстан","Биология"]
[22,"261025_17670733899_27","Муниципальное бюджетное общеобразовательное учреждение \"Средняя общеобразовательная школа №25\" города Набережные Челны Республики Татарстан",17670733899,"Никитина","Василиса","Валерьевна","ж","20.04.2010","нет",7,7,5,15,null,15,30.5,"участник","нет","Глусская Галина Викторовна","Муниципальное бюджетное общеобразовательное учреждение \"Средняя общеобразовательная школа №25\" города Набережные Челны Республики Татарстан","Биология"]
[23,"261056_16042188236_27","Муниципальное автономное общеобразовательное учреждение города Набережные Челны \"Средняя общеобразовательная школа № 56\"  Республики Татарстан",16042188236,"Галлямов","Ролан","Русланович","м","17.03.2010","нет",7,7,5,15,null,15,30.5,"участник","нет","Гибадуллина Чулпан Глюмовна","Муниципальное автономное общеобразовательное учреждение города Набережные Челны \"Средняя общеобразовательная школа № 56\"  Республики Татарстан","Биология"]
[24,"263003_16022587743_27","Муниципальное бюджетное общеобразовательное учреждение \"Средняя общеобразовательная школа №3\" города Набережные Челны Республики Татарстан",16022587743,"Фархутдинова","Разина","Ильдаровна","ж","10.04.2010","нет",7,7,4,15,null,15,30.5,"участник","нет","Ахметзянова Рамиля Асгатовна","Муниципальное бюджетное общеобразовательное учреждение \"Средняя общеобразовательная школа №3\" города Набережные Челны Республики Татарстан","Биология"]
[25,"261057_15714658886_27","Муниципальное бюджетное общеобразовательное учреждение \"Центр образования - Гимназия №57 \"Притяжение\" город Набережные Челны Республики Татарстан",15714658886,"Биканова","Арина","Евгеньевна","ж","06.01.2010","нет",7,7,5,14.5,null,14.5,30.5,"участник","нет","Юскаева Чулпан Мухаметнуровна","Муниципальное бюджетное общеобразовательное учреждение \"Центр образования - Гимназия №57 \"Притяжение\" город Набережные Челны Республики Татарстан","Биология"]
[26,"263004_16912656894_27","Муниципальное автономное общеобразовательное учреждение города Набережные Челны \"Средняя общеобразовательная школа №4\" Республики Татарстан",16912656894,"Сарвартдинова","Алия","Разифовна","ж","04.06.2010","нет",7,7,4,14.5,null,14.5,30.5,"участник","нет","Агзамова Алия Василовна","Муниципальное автономное общеобразовательное учреждение города Набережные Челны \"Средняя общеобразовательная школа №4\" Республики Татарстан","Биология"]
[27,"261023_16164594680_27","Муниципальное бюджетное общеобразовательное учреждение \"Средняя общеобразовательная школа №23\" города Набережные Челны Республики Татарстан",16164594680,"Алексеева","Аделина","Михайловна","ж","22.07.2010","нет",7,7,5,14.5,null,14.5,30.5,"участник","нет","Осипова Ирина Александровна","Муниципальное бюджетное общеобразовательное учреждение \"Средняя общеобразовательная школа №23\" города Набережные Челны Республики Татарстан","Биология"]
[28,"261076_18966747963_27","Муниципальное автономное общеобразовательное учреждение города Набережные Челны \"Гимназия №76\" Республики Татарстан",18966747963,"Садыкова","Ольга","Александровна","ж","10.02.2010","нет",7,7,8,14,null,14,30.5,"участник","нет","Ахметова Елена Николаевна","Муниципальное автономное общеобразовательное учреждение города Набережные Челны \"Гимназия №76\" Республики Татарстан","Биология"]
[29,"261051_17471915694_27","Муниципальное автономное общеобразовательное учреждение города Набережные Челны \"Средняя общеобразовательная школа №51\" Республики Татарстан",17471915694,"Короткова","Виктория","Николаевна","ж","25.06.2010","нет",7,7,3,14,null,14,30.5,"участник","нет","Лазарева Нататья Ивановна","Муниципальное автономное общеобразовательное учреждение города Набережные Челны \"Средняя общеобразовательная школа №51\" Республики Татарстан","Биология"]
[30,"261076_17132579159_27","Муниципальное автономное общеобразовательное учреждение города Набережные Челны \"Гимназия №76\" Республики Татарстан",17132579159,"Вахитова","Элина","Ленаровна","ж","06.12.2009","нет",7,7,5,14,null,14,30.5,"участник","нет","Ахметова Елена Николаевна","Муниципальное автономное общеобразовательное учреждение города Набережные Челны \"Гимназия №76\" Республики Тататрстан","Биология"]
[31,"261035_17235359773_27","Муниципальное автономное общеобразовательное учреждение города Набережные Челны \"Средняя общеобразовтельная школа №35 с углубленным изучением отдельных предметов\" Республики Татарстан",17235359773,"Журавлева","Виктория","Артуровна","ж","28.06.2010","нет",7,7,4,14,null,14,30.5,"участник","нет","Саетова Гульшат Вагизовна","Муниципальное автономное общеобразовательное учреждение города Набережные Челны \"Средняя общеобразовтельная школа №35 с углубленным изучением отдельных предметов\" Республики Татарстан","Биология"]
[32,"261009_15929558826_27","Муниципальное бюджетное общеобразовательное учреждение \"Средняя школа №9\" города Набережные Челны Республики Татарстан",15929558826,"Мерзловская","Алиса","Евгеньевна","ж","2010-03-10","нет",7,7,6,14,null,14,30.5,"участник","нет","Якупова Наталья Валерьевна","Муниципальное бюджетное общеобразовательное учреждение \"Средняя школа №9\" города Набережные Челны Республики Татарстан","Биология"]
[33,"263052_15929345910_27","Муниципальное бюджетное общеобразовательное учреждение \"Средняя общеобразовательная школа №52\" города Набережные Челны Республики Татарстан",15929345910,"Хан","Камилла","Динаровна","ж","24.01.2010","нет",7,7,5,13.5,null,13.5,30.5,"участник","нет","Нургалиеаа Элмира Фанисовна","Муниципальное бюджетное общеобразовательное учреждение \"Средняя общеобразовательная школа №52\" города Набережные Челны Республики Татарстан","Биология"]
[34,"263003_16767686035_27","Муниципальное бюджетное общеобразовательное учреждение \"Средняя общеобразовательная школа №3\" города Набережные Челны Республики Татарстан",16767686035,"Сыркина","Азалия","Алексеевна","ж","30.10.2009","нет",7,7,6,13.5,null,13.5,30.5,"участник","нет","Ахметзянова Рамиля Асгатовна","Муниципальное бюджетное общеобразовательное учреждение \"Средняя общеобразовательная школа №3\" города Набережные Челны Республики Татарстан","Биология"]
[35,"261049_17031080819_27","Муниципальное автономное общеобразовательное учреждение \"Кадетская школа №49\" города Набережные Челны Республики Татарстан",17031080819,"Баранов","Дмитрий","Андреевич","м","29.09.2010","нет",7,7,4,13.5,null,13.5,30.5,"участник","нет","Закирова Фирдавус Завитовна","Муниципальное автономное общеобразовательное учреждение \"Кадетская школа №49\" города Набережные Челны Республики Татарстан","Биология"]
[36,"261040_17120081918_27","Муниципальное автономное общеобразовательное учреждение города Набережные Челны \"Средняя общеобразовательная школа №40 с углубленным изучением\"",17120081918,"Тищенко","Максим","Антонович","м","16.11.2009","нет",7,7,4,13,null,13,30.5,"участник","нет","Шарипова Тазкира Халитовна","Муниципальное автономное общеобразовательное учреждение города Набережные Челны \"Средняя общеобразовательная школа №40 с углубленным изучением\"","Биология"]
[37,"263079_17671298104_27","Муниципальное бюджетное общеобразовательное учереждение \"Лицей-интернат №79\" города Набережные Челны Республики Татарстан",17671298104,"Ганиев","Реналь","Рамилевич","м","26.07.2010","нет",7,7,4,13,null,13,30.5,"участник","нет","Бариева Назия Галимулловна","Муниципальное бюджетное общеобразовательное учереждение \"Лицей-интернат №79\" города Набережные Челны Республики Татарстан","Биология"]
[38,"261033_15828152786_27","муниципальное бюджетное общеобразовательное учреждение \"Средняя общеобразовательная школа №33\" города Набережные Челны Республики Татарстан",15828152786,"Салихова","Эльвина","Инзелевна","ж","18.03.2010","нет",7,7,4,13,null,13,30.5,"участник","нет","Гарифуллина Эльвира Флюровна","муниципальное бюджетное общеобразовательное учреждение \"Средняя общеобразовательная школа №33\" города Набережные Челны Республики Татарстан","Биология"]
[39,"261055_15929567322_27","Муниципальное автономное общеобразовательное учреждение города Набережные Челны \"Средняя общеобразовательная школа №55\" Республики Татарстан",15929567322,"Косарева","Сабина","Денисовна","ж","23.04.2010","нет",7,7,3,13,null,13,30.5,"участник","нет","Оруджева Наталья Викторовна","Муниципальное автономное общеобразовательное учреждение города Набережные Челны \"Средняя общеобразовательная школа №55\" Республики Татарстан","Биология"]
[40,"263054_16009893470_27","Муниципальное бюджетное общеобразовательное учреждение \"Гимназия №54\" города Набережные Челны Республика Татарстан",16009893470,"Шайхуллина","Амина","Руслановна","ж","26.02.2010","нет",7,7,5,13,null,13,30.5,"участник","нет","Забихуллина Айгуль Рафиковна","Муниципальное бюджетное общеобразовательное учреждение \"Гимназия №54\" города Набережные Челны Республика Татарстан","Биология"]
[41,"261016_16290320345_27","Муниципальное бюджетное общеобразовательное учреждение \"Средняя общеобразовательная школа \"Центр образования №16\" города Набережные Челны Республики татарстан",16290320345,"Ахметшина","Аделина","Азаматовна","ж","31.10.2010","нет",7,7,2,12.5,null,12.5,30.5,"участник","нет","Фазуллина Светлана Владимировна","Муниципальное бюджетное общеобразовательное учреждение \"Средняя общеобразовательная школа \"Центр образования №16\" города Набережные Челны Республики татарстан","Биология"]
[42,"261082_17282820882_27","Государственное бюджетное общеобразовательное учреждение \"Кадетская школа №82 имени Героя Советского Союза Ильдара Маннанова\" города Набережные Челны Республики Татарстан",17282820882,"Чернышов","Кирилл","Дмитриевич","м","15.10.2010","нет",7,7,3,12.5,null,12.5,30.5,"участник","нет","Стеганцева Ирина Петровна","Государственное бюджетное общеобразовательное учреждение \"Кадетская школа №82 имени Героя Советского Союза Ильдара Маннанова\" города Набережные Челны Республики Татарстан","Биология"]
[43,"261021_17224121830_27","Муниципальное автономное общеобразовательное учреждение города Набережные Челны \"Средняя общеобразовательная школа №21\"",17224121830,"Хуснутдинов","Марат","Рамилевич","м","11.09.2010","нет",7,7,3,12,null,12,30.5,"участник","нет","Галиулина Альфира Харисовна","Муниципальное автономное общеобразовательное учреждение города Набережные Челны \"Средняя общеобразовательная школа №21\"","Биология"]
[44,"261007_17307621052_27","Муниципальное бюджетное общеобразовательное учреждение \"Средняя общеобразовательная школа №7\" город Набережные Челны Республики Татарстан",17307621052,"Торопова","Амалия","Вадимовна","ж","31.08.2010","нет",7,7,3,11.5,null,11.5,30.5,"участник","нет","Махмутова Расимя Самигулловна","Муниципальное бюджетное общеобразовательное учреждение \"Средняя общеобразовательная школа №7\" город Набережные Челны Республики Татарстан","Биология"]
[45,"261030_16844007171_27","Муниципальное бюджетное общеобразовательное учреждение \"Средняя общеобразовательная школа №30\" города Набережные Челны Республики Татарстан",16844007171,"Хуснетдинов","Карим","Ильдарович","м","09.12.2009","нет",7,7,3,11.5,null,11.5,30.5,"участник","нет","Ахмедова Зарема Насрудиновна","Муниципальное бюджетное общеобразовательное учреждение \"Средняя общеобразовательная школа №30\" города Набережные Челны Республики Татарстан","Биология"]
[46,"261035_17327373273_27","Муниципальное автономное общеобразовательное учреждение города Набережные Челны \"Средняя общеобразовтельная школа №35 с углубленным изучением отдельных предметов\" Республики Татарстан",17327373273,"Востокова","Анастасия","Евгеньевна","ж","2010-01-03","нет",7,7,1,10.5,null,10.5,30.5,"участник","нет","Саетова Гульшат Вагизовна","Муниципальное автономное общеобразовательное учреждение города Набережные Челны \"Средняя общеобразовтельная школа №35 с углубленным изучением отдельных предметов\" Республики Татарстан","Биология"]
[47,"263002_16192994704_27","Муниципальное бюджетное общеобразовательное учреждение \"Гимназия №2 имени Мулланура Вахитова\" города Набережные Челны Республики Татарстан",16192994704,"Гасимова","Сафия","Исламовна","ж","04.06.2010","нет",7,7,7,10.5,null,10.5,30.5,"участник","нет","Хабриева Светлана Ивановна","Муниципальное бюджетное общеобразовательное учреждение \"Гимназия №2 имени Мулланура Вахитова\" города Набережные Челны Республики Татарстан","Биология"]
[48,"263084_16198144081_27","Муниципальное автономное общеобразовательное учреждение города Набережные Челны \"Лицей-интернат №84 имени Гали Акыша\" Республики Татарстан",16198144081,"Вафин","Адель","Марсович","м","10.06.2010","нет",7,7,1,"10,5",null,"10,5",30.5,"участник","нет","Хабибулина Алсу Сабирзяновна","Муниципальное автономное общеобразовательное учреждение города Набережные Челны \"Лицей-интернат №84 имени Гали Акыша\" Республики Татарстан","Биология"]
[49,"261028_17272557079_27","Муниципальное бюджетное общеобразовательное учреждение \"Средняя общеобразовательная школа №28\" города Набережные Челны Республики Татарстан",17272557079,"Гайнутдинов","Амир","Айратович","м","09.08.2010","нет",7,7,5,10,null,10,30.5,"участник","нет","Малова Наталья Александровна","Муниципальное бюджетное общеобразовательное учреждение \"Средняя общеобразовательная школа №28\" города Набережные Челны Республики Татарстан","Биология"]
[50,"261051_17247477694_27","Муниципальное автономное общеобразовательное учреждение города Набережные Челны \"Средняя общеобразовательная школа №51\" Республики Татарстан",17247477694,"Рыбьякова","Влада","Игоревна","ж","01.09.2009","нет",7,7,7,10,null,10,30.5,"участник","нет","Лазарева Нататья Ивановна","Муниципальное автономное общеобразовательное учреждение города Набережные Челны \"Средняя общеобразовательная школа №51\" Республики Татарстан","Биология"]
[51,"263018_17276267393_27","Муниципальное бюджетное общеобразовательное учреждение \"Средняя общеобразовательная школа №18 с углубленным изучением отдельных предметов»\" города Набережные Челны Республики Татарстан",17276267393,"Хамидуллина","Милана","Ринатовна","ж","27.04.2010","нет",7,7,6,9.5,null,9.5,30.5,"участник","нет","Алексашечкина Вера Владимировна","Муниципальное бюджетное общеобразовательное учреждение \"Средняя общеобразовательная школа №18 с углубленным изучением отдельных предметов\" города Набережные Челны Республики Татарстан","Биология"]
[52,"261006_17324124843_27","Муниципальное бюджетное общеобразовательное учреждение «Средняя общеобразовательная школа №6» город Набережные Челны Республики Татарстан",17324124843,"Хасаншина","Милана","Руслановна","ж","16.09.2010","нет",7,7,6,9.5,null,9.5,30.5,"участник","нет","Абдуллаева Ольга Николаевна","Муниципальное бюджетное общеобразовательное учреждение «Средняя общеобразовательная школа №6» город Набережные Челны Республики Татарстан","Биология"]
[53,"261037_15895707024_27","Муниципальное бюджетное общеобразовательное учреждение\"Средняя общеобразовательное школа № 37 с углубленным изучением отдельных предметов\" города Набережные Челны Республики Татарстан",15895707024,"Валеева","Гузель","Ильназовна","ж","14.04.2010","нет",7,7,3,9,null,9,30.5,"участник","нет","Сабирова Гузель Ракиповна","Муниципальное бюджетное общеобразовательное учреждение\"Средняя общеобразовательное школа № 37 с углубленным изучением отдельных предметов\" города Набережные Челны Республики Татарстан","Биология"]
[54,"263058_17804700169_27","Муниципальное бюджетное общеобразовательное учреждение \" Средняя общеобразовательная школа №58\"",17804700169,"Гибадуллин","Шамиль","Рамилевич","м","11.09.2010","нет",7,7,2,9,null,9,30.5,"участник","нет","Хасанова Диляра Флюсовна","Муниципальное бюджетное общеобразовательное учреждение \" Средняя общеобразовательная школа №58\"","Биология"]
[55,"261036_15875257411_27","Муниципальное автономное общеобразовательное учреждение \"Лицей инновационных технологий №36\" города Набережные Челны Республики Татарстан",15875257411,"Дючкова","Кира","Юрьевна","ж","27.12.2009","нет",7,7,6,9,null,9,30.5,"участник","нет","Пермякова Полина Александровна","Муниципальное автономное общеобразовательное учреждение \"Лицей инновационных технологий №36\" города Набережные Челны Республики Татарстан","Биология"]
[56,"261042_15805674385_27","Муниципальное бюджетная общеобразовательное учреждение \"Средняя общеобразовательная школа № 42\" города Набережные Челны Республики Татарстан",15805674385,"Аносов","Алексей","Витальевич","м","11.11.2009","нет",7,7,5,8.5,null,8.5,30.5,"участник","нет","Садыкова Валерия Александровна","Муниципальное бюджетная общеобразовательное учреждение \"Средняя общеобразовательная школа № 42\" города Набережные Челны Республики Татарстан","Биология"]
[57,"261034_15839635110_27","Муниципальное автономное образовательное учреждение \"СОШ №34 с углубленным изучением отдельных предметов\" города Набережные Челны Республики Татарстан",15839635110,"Костромидина","Мария","Дмитриевна","ж","18.02.2010","нет",7,7,2,8.5,null,8.5,30.5,"участник","нет","Бариева Назия Галимулловна","Муниципальное автономное образовательное учреждение \"СОШ №34 с углубленным изучением отдельных предметов\" города Набережные Челны Республики Татарстан","Биология"]
[58,"261060_17105064325_27","Муниципальное бюджетное общеобразовательное учреждение \"Средняя общеобразовательная школа №60\" города Набережные Челны Республики Татарстан",17105064325,"Баязитова","Алина","Салаватовна","ж","28.05.2010","нет",7,7,4,8.5,null,8.5,30.5,"участник","нет","Насибуллина Маргарита Сергеевна","Муниципальное бюджетное общеобразовательное учреждение \"Средняя общеобразовательная школа №60\" города Набережные Челны Республики Татарстан","Биология"]
[59,"261009_16255347164_27","Муниципальное бюджетное общеобразовательное учреждение \"Средняя школа №9\"   города Набережные Челны Республики Татарстан",16255347164,"Мустафина","Дарина","Рамисовна","ж","2010-09-14","нет",7,7,5,8.5,null,8.5,30.5,"участник","нет","Якупова Наталья Валерьевна","Муниципальное бюджетное общеобразовательное учреждение \"Средняя школа №9\"   города Набережные Челны Республики Татарстан","Биология"]
[60,"263012_19262269589_27","Муниципальное бюджетное общеобразовательное учреждение \"Средняя общеобразовательная школа №12\" города Набережные Челны Республики Тататрстан",19262269589,"Шайгарданова","Камиля","Ильнуровна","ж","28.06.2010","нет",7,7,4,8,null,8,30.5,"участник","нет","Сабирова Фидалия Минсалиховна","Муниципальное бюджетное общеобразовательное учреждение \"Средняя общеобразовательная школа №12\" города Набережные Челны Республики Тататрстан","Биология"]
[61,"261046_17157427274_27","Муниципальное бюджетное общеобразовательное учреждение \"Средняя общеобразовательная школа №46 имени кавалера ордена Мужества Дмитрия Бадретдинова\" города Набережные Челны  Республики Татарстан",17157427274,"Летова","Анна","Сергеевна","ж","02.02.2010","нет",7,7,3,7,null,7,30.5,"участник","нет","Мирошев Александр Владимирович","Муниципальное бюджетное общеобразовательное учреждение \"Средняя общеобразовательная школа №46 имени кавалера ордена Мужества Дмитрия Бадретдинова\" города Набережные Челны  Республики Татарстан","Биология"]
[62,"263029_17224131868_27","Муниципальное бюджетное общеобразовательное учреждение \"Гимназия №29\" города Набережные Челны Республики Татарстан",17224131868,"Галимзянова","Мадина","Айдаровна","ж","27.07.2010","нет",7,7,4,6.5,null,6.5,30.5,"участник","нет","Тимофеева Анастасия Владимировна","Муниципальное бюджетное общеобразовательное учреждение \"Гимназия №29\" города Набережные Челны Республики Татарстан","Биология"]
[63,"261042_17132572347_27","Муниципальное бюджетная общеобразовательное учреждение \"Средняя общеобразовательная школа № 42\"города Набережные Челны Республики Татарстан",17132572347,"Кириллова","Виктория","Дмитриевна","ж","30.07.2010","нет",7,7,2,4.5,null,4.5,30.5,"участник","нет","Садыкова Валерия Александровна","Муниципальное бюджетная общеобразовательное учреждение \"Средняя общеобразовательная школа № 42\"города Набережные Челны Республики Татарстан","Биология"]
[64,"261078_15813079771_27","Муниципальное автономное общеобразовательное учреждение \"Лицей №78 им. А. С. Пушкина\" город Набережные Челны Республики Татарстан",15813079771,"Храмова","Арина","Сергеевна","ж","16.02.2009","нет",8,8,11,{"$f":"SUM(M65:M65)","v":11},null,{"$f":"SUM(N65:O65)","v":11},33,"участник","нет","Сальникова Гульзера Рустамовна","Муниципальное автономное общеобразовательное учреждение \"Лицей №78 им. А. С. Пушкина\" город Набережные Челны Республики Татарстан","Биология"]
[65,"261026_18092002242_27","Муниципальное бюджетное общеобразовательное учреждение \"Гимназия №26\" город  Набережные Челны Республики Татарстан",18092002242,"Кузнецов","Денис","Дмитриевич","м","29.09.2009","нет",8,8,9,{"$f":"SUM(M66:M66)","v":9},null,{"$f":"SUM(N66:O66)","v":9},33,"участник","нет","Моисеева Инна Анатольевна","Муниципальное бюджетное общеобразовательное учреждение \"Гимназия №26\" город  Набережные Челны Республики Татарстан","Биология"]
[66,"261078_16844005268_27","Муниципальное автономное общеобразовательное учреждение \"Лицей №78 им. А. С. Пушкина\" город Набережные Челны Республики Татарстан",16844005268,"Кулагина","Дарья","Александровна","ж","15.01.2009","нет",8,8,10,{"$f":"SUM(M67:M67)","v":10},null,{"$f":"SUM(N67:O67)","v":10},33,"участник","нет","Сальникова Гульзера Рустамовна","Муниципальное автономное общеобразовательное учреждение \"Лицей №78 им. А. С. Пушкина\" город Набережные Челны Республики Татарстан","Биология"]
[67,"261081_15641329459_27","Государственное бюджетное общеобразовательное учреждение \"Кадетская школа полиции \"Калкан\" города Набережные Челны Республики Татарстан",15641329459,"Амитов","Амин","Алмазович","м","14.10.2009","нет",8,8,9,{"$f":"SUM(M68:M68)","v":9},null,{"$f":"SUM(N68:O68)","v":9},33,"участник","нет","Хайдарова Зиля Равиловна","Государственное бюджетное общеобразовательное учреждение \"Кадетская школа полиции \"Калкан\" города Набережные Челны Республики Татарстан","Биология"]
[68,"261026_17157428276_27","Муниципальное бюджетное общеобразовательное учреждение \"Гимназия №26\" город Набережные Челны Республики Татарстан",17157428276,"Нурышева","Диляра","Ленаровна","ж","10.09.2006","нет",8,8,9,{"$f":"SUM(M69:M69)","v":9},null,{"$f":"SUM(N69:O69)","v":9},33,"участник","нет","Моисеева Инна Анатольевна","Муниципальное бюджетное общеобразовательное учреждение \"Гимназия №26\" город Набережные Челны Республики Татарстан","Биология"]
[69,"261019_15813079165_27","Муниципальное бюджетное общеобразовательное учреждение \"Средняя общеобразовательная школа №19\" город Набережные Челны Республики Татарстан","15813079165","Шакирьянова","Фарида","Рустамовна","ж","2008-11-26","нет",8,8,9,{"$f":"SUM(M70:M70)","v":9},null,{"$f":"SUM(N70:O70)","v":9},33,"участник","нет","Азовцева Альфия Мирзаяновна","Муниципальное бюджетное общеобразовательное учреждение \"Средняя общеобразовательная школа №19\" город Набережные Челны Республики Татарстан","Биология"]
[70,"261078_17094593697_27","Муниципальное автономное общеобразовательное учреждение \"Лицей №78 им. А. С. Пушкина\" город Набережные Челны Республики Татарстан",17094593697,"Галиуллина","Маргарита","Ринасовна","ж","16.11.2008","нет",8,8,11,{"$f":"SUM(M71:M71)","v":11},null,{"$f":"SUM(N71:O71)","v":11},33,"участник","нет","Сальникова Гульзера Рустамовна","Муниципальное автономное общеобразовательное учреждение \"Лицей №78 им. А. С. Пушкина\" город Набережные Челны Республики Татарстан","Биология"]
[71,"261078_16900369269_27","Муниципальное автономное общеобразовательное учреждение \"Лицей №78 им. А. С. Пушкина\" город Набережные Челны Республики Татарстан",16900369269,"Хайдаров","Данис","Маратович","м","19.05.2009","нет",8,8,9,{"$f":"SUM(M72:M72)","v":9},null,{"$f":"SUM(N72:O72)","v":9},33,"участник","нет","Сальникова Гульзера Рустамовна","Муниципальное автономное общеобразовательное учреждение \"Лицей №78 им. А. С. Пушкина\" город Набережные Челны Республики Татарстан","Биология"]
[72,"263079_17139109056_27","Муниципальное бюджетное общеобразовательное учереждение \"Лицей-интернат №79\" город Набережные Челны Республики Татарстан",17139109056,"Фатихов","Нурислам","Русланович","м","23.09.2009","нет",8,8,10,{"$f":"SUM(M73:M73)","v":10},null,{"$f":"SUM(N73:O73)","v":10},33,"участник","нет","Бариева Назия Галимулловна","Муниципальное бюджетное общеобразовательное учереждение \"Лицей-интернат №79\" город Набережные Челны Республики Татарстан","Биология"]
[73,"261042_17149961904_27","Муниципальное бюджетная общеобразовательное учреждение \"Средняя общеобразовательная школа № 42\" город Набережные Челны Республики Татарстан",17149961904,"Бекетова","Софья","Матвеевна","ж","30.04.2009","нет",8,8,9,{"$f":"SUM(M74:M74)","v":9},null,{"$f":"SUM(N74:O74)","v":9},33,"участник","нет","Сайранова Алина Гаптенуровна","Муниципальное бюджетная общеобразовательное учреждение \"Средняя общеобразовательная школа № 42\" город Набережные Челны Республики Татарстан","Биология"]
[74,"261078_19074498202_27","Муниципальное автономное общеобразовательное учреждение \"Лицей №78 им. А. С. Пушкина\"город Набережные Челны Республики Татарстан",19074498202,"Камашев","Динар","Артурович","м","13.12.2008","нет",8,8,5,{"$f":"SUM(M75:M75)","v":5},null,{"$f":"SUM(N75:O75)","v":5},33,"участник","нет","Сальникова Гульзера Рустамовна","Муниципальное автономное общеобразовательное учреждение \"Лицей №78 им. А. С. Пушкина\"город Набережные Челны Республики Татарстан","Биология"]
[75,"261030_17157453982_27","Муниципальное бюджетное общеобразовательное учреждение \"Средняя общеобразовательная школа №30\" города Набережные Челны Республики Татарстан",17157453982,"Хафизов","Камиль","Азатович","м","28.06.2009","нет",8,8,8,{"$f":"SUM(M76:M76)","v":8},null,{"$f":"SUM(N76:O76)","v":8},33,"участник","нет","Салихов Марат Ялилович","Муниципальное бюджетное общеобразовательное учреждение \"Средняя общеобразовательная школа №30\" города Набережные Челны Республики Татарстан","Биология"]
[76,"261034_16914772098_27","Муниципальное автономное образовательное учреждение \"СОШ №34 с углубленным изучением отдельных предметов\" город Набережные Челны Республики Татарстан",16914772098,"Трофимов","Михаил","Сергеевич","м","18.11.2008","нет",8,8,10,{"$f":"SUM(M77:M77)","v":10},null,{"$f":"SUM(N77:O77)","v":10},33,"участник","нет","Бариева Назия Галимулловна","Муниципальное автономное образовательное учреждение \"СОШ №34 с углубленным изучением отдельных предметов\" город Набережные Челны Республики Татарстан","Биология"]
[77,"261019_16213298642_27","МБОУ \"Средняя общеобразовательная школа №19 с углубленным изучением отдельных предметов\"город Набережные Челны Республики Татарстан",16213298642,"Шарифуллина","Адиля","Радиковна","ж","13.02.2009","нет",8,8,8,{"$f":"SUM(M78:M78)","v":8},null,{"$f":"SUM(N78:O78)","v":8},33,"участник","нет","Азовцева Альфия Мирзаяновна","МБОУ \"Средняя общеобразовательная школа №19 с углубленным изучением отдельных предметов\"город Набережные Челны Республики Татарстан","Биология"]
[78,"261051_17069969319_27","Муниципальное автономное общеобразовательное учреждение города Набережные Челны \"Средняя общеобразовательная школа №51\"Республики Татарстан",17069969319,"Брекоткина","Маргарита","Сергеевна","ж","22.02.2010","нет",8,8,7,{"$f":"SUM(M79:M79)","v":7},null,{"$f":"SUM(N79:O79)","v":7},33,"участник","нет","Лазарева Нататья Ивановна","Муниципальное автономное общеобразовательное учреждение города Набережные Челны \"Средняя общеобразовательная школа №51\"Республики Татарстан","Биология"]
[79,"261078_17334813569_27","Муниципальное автономное общеобразовательное учреждение \"Лицей №78 им. А. С. Пушкина\" город Набережные Челны Республики Татарстан",17334813569,"Шарыкова","Анастасия","Сергеевна","ж","19.02.2009","нет",8,8,7,{"$f":"SUM(M80:M80)","v":7},null,{"$f":"SUM(N80:O80)","v":7},33,"участник","нет","Сальникова Гульзера Рустамовна","Муниципальное автономное общеобразовательное учреждение \"Лицей №78 им. А. С. Пушкина\" город Набережные Челны Республики Татарстан","Биология"]
[80,"261078_16312835650_27","Муниципальное автономное общеобразовательное учреждение \"Лицей №78 им. А. С. Пушкина\"город Набережные Челны Республики Татарстан",16312835650,"Высоцкая","Софья","Егоровна","ж","06.09.2009","нет",8,8,7,{"$f":"SUM(M81:M81)","v":7},null,{"$f":"SUM(N81:O81)","v":7},33,"участник","нет","Сальникова Гульзера Рустамовна","Муниципальное автономное общеобразовательное учреждение \"Лицей №78 им. А. С. Пушкина\"город Набережные Челны Республики Татарстан","Биология"]
[81,"261040_17089088501_27","Муниципальное автономное общеобразовательное учреждение города Набережные Челны \"Средняя общеобразовательная школа №40 с углубленным изучением\"Республики Татарстан",17089088501,"Чурбанов","Тихон","Андреевич","м","28.05.2009","нет",8,8,7,{"$f":"SUM(M82:M82)","v":7},null,{"$f":"SUM(N82:O82)","v":7},33,"участник","нет","Шарипова Тазкира Халитовна","Муниципальное автономное общеобразовательное учреждение города Набережные Челны \"Средняя общеобразовательная школа №40 с углубленным изучением\"Республики Татарстан","Биология"]
[82,"261001_17260116538_27","Муниципальное автономное общеобразовательное учреждение города Набережные Челны \"Средняя общеобразовательная школа №1\"Республики Татарстан",17260116538,"Нуртдинова","Азалия","Рамилевна","ж","08.09.2009","нет",8,8,4,{"$f":"SUM(M83:M83)","v":4},null,{"$f":"SUM(N83:O83)","v":4},33,"участник","нет","Тихонова Наталья Сергеевна","Муниципальное автономное общеобразовательное учреждение города Набережные Челны \"Средняя общеобразовательная школа №1\"Республики Татарстан","Биология"]
[83,"261028_17295478413_27","Муниципальное бюджетное общеобразовательное учреждение \"Средняя общеобразовательная школа №28\" город Набережные Челны Республики Татарстан",17295478413,"Иванова","Любовь","Борисовна","ж","17.01.2009","нет",8,8,5,{"$f":"SUM(M84:M84)","v":5},null,{"$f":"SUM(N84:O84)","v":5},33,"участник","нет","Ялалова Рита Адельшиновна","Муниципальное бюджетное общеобразовательное учреждение \"Средняя общеобразовательная школа №28\" город Набережные Челны Республики Татарстан","Биология"]
[84,"261041_17105062927_27","Муниципальное бюджетное общеобразовательное учреждение \" Средняя обшеобразовательная школа№ 41\" город Набережные челны Республики Татарстан",17105062927,"Калимуллин","Фаниль","Шамилевич","м","16.02.2009","нет",8,8,5,{"$f":"SUM(M85:M85)","v":5},null,{"$f":"SUM(N85:O85)","v":5},33,"участник","нет","Хуснутдинова Кристина Вячеславовна","Муниципальное бюджетное общеобразовательное учреждение \" Средняя обшеобразовательная школа№ 41\" город Набережные челны Республики Татарстан","Биология"]
[85,"265001_17295475407_27","Муниципальное автономное общеобразовательное учреждение \"Гимназия №77\" город Набережные Челны Республики Татарстан",17295475407,"Белякаева","Дарья","Борисовна","ж","14.02.2009","нет",8,8,5,{"$f":"SUM(M86:M86)","v":5},null,{"$f":"SUM(N86:O86)","v":5},33,"участник","нет","Ахметшина Лилия Расиховна","Муниципальное автономное общеобразовательное учреждение \"Гимназия №77\" город Набережные Челны Республики Татарстан","Биология"]
[86,"261010_17272558586_27","Муниципальное бюджетное общеобразовательное учреждение \"Средняя общеобразовательная школа №10\" город Набережные Челны Республики Татарстан",17272558586,"Сунгатуллина","Ильзира","Ирековна","ж","29.01.2009","нет",8,8,7,{"$f":"SUM(M87:M87)","v":7},null,{"$f":"SUM(N87:O87)","v":7},33,"участник","нет","Тукмачева Марина Михайловна","Муниципальное бюджетное общеобразовательное учреждение \"Средняя общеобразовательная школа №10\" город Набережные Челны Республики Татарстан","Биология"]
[87,"261031_19171352671_27","Муниципальное бюджетное общеобразовательное учреждение \"Средняя общеобразовательная школа №31 с углубленным изучением отдельных предметов\" город Набережные Челны Республики Татарстан",19171352671,"Кашапов","Георгий","Радикович","м","29.08.2009","нет",8,8,5,{"$f":"SUM(M88:M88)","v":5},null,{"$f":"SUM(N88:O88)","v":5},33,"участник","нет","Третьякова Ирина Михайловна","Муниципальное бюджетное общеобразовательное учреждение \"Средняя общеобразовательная школа №31 с углубленным изучением отдельных предметов\" город Набережные Челны Республики Татарстан","Биология"]
[88,"261035_17140107114_27","Муниципальное автономное общеобразовательное учреждение города Набережные Челны \"Средняя общеобразовтельная школа №35 с углубленным изучением отдельных предметов\" Республики Татарстан",17140107114,"Мещерякова","Дарья","Владимировна","ж","13.02.2009","нет",8,8,5,{"$f":"SUM(M89:M89)","v":5},null,{"$f":"SUM(N89:O89)","v":5},33,"участник","нет","Саетова Гульшат Вагизовна","Муниципальное автономное общеобразовательное учреждение города Набережные Челны \"Средняя общеобразовтельная школа №35 с углубленным изучением отдельных предметов\" Республики Татарстан","Биология"]
[89,"261076_17393342789_27","Муниципальное автономное общеобразовательное учреждение города Набережные Челны \"Гимназия №76\" Республики Татарстан",17393342789,"Кузнецова","Диела","Сергеевна","ж","12.04.2009","нет",8,8,5,{"$f":"SUM(M90:M90)","v":5},null,{"$f":"SUM(N90:O90)","v":5},33,"участник","нет","Ахметова Елена Николаевна","Муниципальное автономное общеобразовательное учреждение города Набережные Челны \"Гимназия №76\" Республики Татарстан","Биология"]
[90,"263054_17542967000_27","Муниципальное бюджетное общеобразовательное учреждение \"Гимназия №54\" город  Набережные Челны Республика Татарстан",17542967000,"Галиев","Айрат","Булатович","м","27.03.2009","нет",8,8,4,{"$f":"SUM(M91:M91)","v":4},null,{"$f":"SUM(N91:O91)","v":4},33,"участник","нет","Забихуллина Айгуль Рафиковна","Муниципальное бюджетное общеобразовательное учреждение \"Гимназия №54\" город  Набережные Челны Республика Татарстан","Биология"]
[91,"261037_17157434170_27","Муниципальное бюджетное общеобразовательное учреждение\"Средняя общеобразовательное школа № 37 с углубленным изучением отдельных предметов\"город Набережные Челны Республики Татарстан",17157434170,"Кудрявцева","Ирина","Алексеевна","ж","10.07.2009","нет",8,8,4,{"$f":"SUM(M92:M92)","v":4},null,{"$f":"SUM(N92:O92)","v":4},33,"участник","нет","Сабирова Гузель Ракиповна","Муниципальное бюджетное общеобразовательное учреждение\"Средняя общеобразовательное школа № 37 с углубленным изучением отдельных предметов\"город Набережные Челны Республики Татарстан","Биология"]
[92,"263058_15779638133_27","Муниципальное бюджетное общеобразовательное учреждение \" Средняя общеобразовательная школа №58\" город Набережные Челны Республики Татарстан",15779638133,"Алтынбаев","Юсуф","Маратович","м","21.01.2010","нет",8,8,4,{"$f":"SUM(M93:M93)","v":4},null,{"$f":"SUM(N93:O93)","v":4},33,"участник","нет","Губьянова Оксана Михайловна","Муниципальное бюджетное общеобразовательное учреждение \" Средняя общеобразовательная школа №58\" город Набережные Челны Республики Татарстан","Биология"]
[93,"261057_16965981950_27","Муниципальное бюджетное общеобразовательное учреждение \" Центр образования - Гимназия №57 \"Притяжение\"город Набережные Челны Республики Татарстан",16965981950,"Сильченко","Полина","Александровна","ж","16.04.2009","нет",8,8,7,{"$f":"SUM(M94:M94)","v":7},null,{"$f":"SUM(N94:O94)","v":7},33,"участник","нет","Сальникова Гульзера Рустамовна","Муниципальное бюджетное общеобразовательное учреждение \" Центр образования - Гимназия №57 \"Притяжение\"город Набережные Челны Республики Татарстан","Биология"]
[94,"261036_15886994254_27","Муниципальное автономное общеобразовательное учреждение \"Лицей инновационных технологий №36\" город Набережные Челны Республики Татарстан",15886994254,"Латфуллина","Лиана","Ришатовна","ж","15.07.2009","нет",8,8,7,{"$f":"SUM(M95:M95)","v":7},null,{"$f":"SUM(N95:O95)","v":7},33,"участник","нет","Пермякова Полина Александровна","Муниципальное автономное общеобразовательное учреждение \"Лицей инновационных технологий №36\" город Набережные Челны Республики Татарстан","Биология"]
[95,"261076_17525411966_27","Муниципальное автономное общеобразовательное учреждение города Набережные Челны \"Гимназия №76\" Республики Татарстан",17525411966,"Сыртланова","Амира","Эдуардовна","ж","10.11.2008","нет",8,8,6,{"$f":"SUM(M96:M96)","v":6},null,{"$f":"SUM(N96:O96)","v":6},33,"участник","нет","Ахметова Елена Николаевна","Муниципальное автономное общеобразовательное учреждение города Набережные Челны \"Гимназия №76\" Республики Татарстан","Биология"]
[96,"261049_15622549567_27","Муниципальное автономное общеобразовательное учреждение \"Кадетская школа №49\" город Набережные Челны Республики Татарстан",15622549567,"Шуматова","Кира","Георгиевна","ж","04.09.2009","нет",8,8,4,{"$f":"SUM(M97:M97)","v":4},null,{"$f":"SUM(N97:O97)","v":4},33,"участник","нет","Закирова Фирдавус Завитовна","Муниципальное автономное общеобразовательное учреждение \"Кадетская школа №49\" город Набережные Челны Республики Татарстан","Биология"]
[97,"261051_17531445173_27","Муниципальное автономное общеобразовательное учреждение города Набережные Челны \"Средняя общеобразовательная школа №51\"Республики Татарстан",17531445173,"Хикматуллин","Булат","Азатович","м","14.05.2009","нет",8,8,4,{"$f":"SUM(M98:M98)","v":4},null,{"$f":"SUM(N98:O98)","v":4},33,"участник","нет","Лазарева Нататья Ивановна","Муниципальное автономное общеобразовательное учреждение города Набережные Челны \"Средняя общеобразовательная школа №51\"Республики Татарстан","Биология"]
[98,"261006_18563697830_27","Муниципальное бюджетное общеобразовательное учреждение \"Средняя общеобразовательная школа №6\" город Набережные Челны Республики Татарстан",18563697830,"Абдуллаев","Иван","Андреевич","м","30.09.2009","нет",8,8,3,{"$f":"SUM(M99:M99)","v":3},null,{"$f":"SUM(N99:O99)","v":3},33,"участник","нет","Филонова Ирина Михайловна","Муниципальное бюджетное общеобразовательное учреждение \"Средняя общеобразовательная школа №6\" город Набережные Челны Республики Татарстан","Биология"]
[99,"261033_15591858812_27","муниципальное бюджетное общеобразовательное учреждение \"Средняя общеобразовательная школа №33\" город Набережные Челны Республики Татарстан",15591858812,"Батулин","Арсений","Андреевич","м","19.05.2009","нет",8,8,3,{"$f":"SUM(M100:M100)","v":3},null,{"$f":"SUM(N100:O100)","v":3},33,"участник","нет","Гарифуллина Эльвира Флюровна","муниципальное бюджетное общеобразовательное учреждение \"Средняя общеобразовательная школа №33\" город Набережные Челны Республики Татарстан","Биология"]
[100,"263052_19269563220_27","Муниципальное бюджетное общеобразовательное учреждение \"Средняя общеобразовательная школа №52\" города Набережные Челны Республики Татарстан",19269563220,"Миркасимова","Алина","Маратовна","ж","18.02.2009","нет",8,8,6,{"$f":"SUM(M101:M101)","v":6},null,{"$f":"SUM(N101:O101)","v":6},33,"участник","нет","Нургалиеаа Элмира Фанисовна","Муниципальное бюджетное общеобразовательное учреждение \"Средняя общеобразовательная школа №52\" города Набережные Челны Республики Татарстан","Биология"]
[101,"261025_17120081211_27","Муниципальное бюджетное общеобразовательное учреждение \"Средняя общеобразовательная школа №25\" город Набережные Челны Республики Татарстан",17120081211,"Чернова","Елизавета","Евгеньевна","ж","21.05.2009","нет",8,8,9,{"$f":"SUM(M102:M102)","v":9},null,{"$f":"SUM(N102:O102)","v":9},33,"участник","нет","Глусская Галина Викторовна","Муниципальное бюджетное общеобразовательное учреждение \"Средняя общеобразовательная школа №25\" город Набережные Челны Республики Татарстан","Биология"]
[102,"261035_15880057283_27","Муниципальное автономное общеобразовательное учреждение города Набережные Челны \"Средняя общеобразовтельная школа №35 с углубленным изучением отдельных предметов\" Республики Татарстан",15880057283,"Казарцева","София","Ивановна","ж","11.08.2009","нет",8,8,3,{"$f":"SUM(M103:M103)","v":3},null,{"$f":"SUM(N103:O103)","v":3},33,"участник","нет","Саетова Гульшат Вагизовна","Муниципальное автономное общеобразовательное учреждение города Набережные Челны \"Средняя общеобразовтельная школа №35 с углубленным изучением отдельных предметов\" Республики Татарстан","Биология"]
[103,"261060_17454035566_27","муниципальное бюджетное общеобразовательное учреждение \"Средняя общеобразовательная школа №60\" город Набережные Челны Республики Татарстан",17454035566,"Мордовина","Оксана","Павловна","ж","24.10.2009","нет",8,8,8,{"$f":"SUM(M104:M104)","v":8},null,{"$f":"SUM(N104:O104)","v":8},33,"участник","нет","Насибуллина Маргарита Сергеевна","муниципальное бюджетное общеобразовательное учреждение \"Средняя общеобразовательная школа №60\"город Набережные Челны Республики Татарстан","Биология"]
[104,"261055_16878821033_27","Муниципальное автономное общеобразовательное учреждение города Набережные Челны \"Средняя общеобразовательная школа №55\" Республики Татарстан",16878821033,"Нигматзянова","Айсылу","Айдаровна","ж","13.04.2009","нет",8,8,4,{"$f":"SUM(M105:M105)","v":4},null,{"$f":"SUM(N105:O105)","v":4},33,"участник","нет","Оруджева Наталья Викторовна","Муниципальное автономное общеобразовательное учреждение города Набережные Челны \"Средняя общеобразовательная школа №55\" Республики Татарстан","Биология"]
[105,"261053_15417088259_27","Муниципальное бюджетное общеобразовательное учреждение \"Средняя общеобразовательная школа №53\" город Набережные Челны Республики Татарстан",15417088259,"Грибкова","Дана","Олеговна","ж","14.03.2009","нет",8,8,4,{"$f":"SUM(M106:M106)","v":4},null,{"$f":"SUM(N106:O106)","v":4},33,"участник","нет","Муфахарова Лейсан Вакифовна","Муниципальное бюджетное общеобразовательное учреждение \"Средняя общеобразовательная школа №53\" город Набережные Челны Республики Татарстан","Биология"]
[106,"261048_17157435576_27","Муниципальное автономное общеобразовательное учреждение города Набережные Челны \"Средняя общеобразовательная школа №48\" Республики Татарстан",17157435576,"Харисова","Азалия","Римовна","ж","06.08.2009","нет",8,8,3,{"$f":"SUM(M107:M107)","v":3},null,{"$f":"SUM(N107:O107)","v":3},33,"участник","нет","Назырова Аделя Азатовна","Муниципальное автономное общеобразовательное учреждение города Набережные Челны \"Средняя общеобразовательная школа №48\" Республики Татарстан","Биология"]
[107,"261022_15500203603_27","Муниципальное бюджетное образовательное учреждение \"Средняя общеобразовательная школа№22\"",15500203603,"Балобанова","Арина","Артемовна","ж","27.04.2009","нет",8,8,3,{"$f":"SUM(M108:M108)","v":3},null,{"$f":"SUM(N108:O108)","v":3},33,"участник","нет","Каримова Гузель Рамилевна","Муниципальное бюджетное образовательное учреждение \"Средняя общеобразовательная школа№22\"","Биология"]
[108,"261049_17091996502_27","Муниципальное автономное общеобразовательное учреждение \"Кадетская школа №49\" город Набережные Челны Республики Татарстан",17091996502,"Иванова","Эльвина","Сергеевна","ж","12.02.2009","нет",8,8,4,{"$f":"SUM(M109:M109)","v":4},null,{"$f":"SUM(N109:O109)","v":4},33,"участник","нет","Закирова Фирдавус Завитовна","Муниципальное автономное общеобразовательное учреждение \"Кадетская школа №49\" город Набережные Челны Республики Татарстан","Биология"]
[109,"261046_17189271701_27","Муниципальное бюджетное общеобразовательное учреждение \"Средняя общеобразовательная школа №46 имени кавалера ордена Мужества Дмитрия Бадретдинова\" город Набережные Челны Республики Татарстан",17189271701,"Люкин","Арсений","Александрович","м","18.02.2009","нет",8,8,3,{"$f":"SUM(M110:M110)","v":3},null,{"$f":"SUM(N110:O110)","v":3},33,"участник","нет","Мирошев Александр Владимирович","Муниципальное бюджетное общеобразовательное учреждение \"Средняя общеобразовательная школа №46 имени кавалера ордена Мужества Дмитрия Бадретдинова\" город Набережные Челны Республики Татарстан","Биология"]
[110,"261019_17134985079_27","МБОУ \"Средняя общеобразовательная школа №19 с углубленным изучением отдельных предметов\"город Набережные Челны Республики Татарстан",17134985079,"Мухаметзянова","Малика","Наилевна","ж","12.07.2009","нет",8,8,4,{"$f":"SUM(M111:M111)","v":4},null,{"$f":"SUM(N111:O111)","v":4},33,"участник","нет","Азовцева Альфия Мирзаяновна","МБОУ \"Средняя общеобразовательная школа №19 с углубленным изучением отдельных предметов\"город Набережные Челны Республики Татарстан","Биология"]
[111,"263084_17234110629_27","Муниципальное автономное общеобразовательное учреждение города Набережные Челны \"Лицей-интернат №84 имени Гали Акыша\" Республики Татарстан",17234110629,"Маляр","Максим","Александрович","м","02.07.2009","нет",8,8,6,{"$f":"SUM(M112:M112)","v":6},null,{"$f":"SUM(N112:O112)","v":6},33,"участник","нет","Хабибулина Алсу Сабирзяновна","Муниципальное автономное общеобразовательное учреждение города Набережные Челны \"Лицей-интернат №84 имени Гали Акыша\" Республики Татарстан","Биология"]
[112,"261056_17179853616_27","Муниципальное автономное общеобразовательное учреждение города Набережные Челны \"Средняя общеобразовательная школа №56\" Республики Татарстан",17179853616,"Карюкова","Алина","Ильдаровна","ж","21.02.2009","нет",8,8,4,{"$f":"SUM(M113:M113)","v":4},null,{"$f":"SUM(N113:O113)","v":4},33,"участник","нет","Махмутова Ландыш Сабирзяновна","Муниципальное автономное общеобразовательное учреждение города Набережные Челны \"Средняя общеобразовательная школа №56\" Республики Татарстан","Биология"]
[113,"261078_18848834848_27","Муниципальное автономное общеобразовательное учреждение \"Лицей №78 им. А. С. Пушкина\" город Набережные Челны  Республики Татарстан",18848834848,"Липатов","Артём","Олегович","м","23.06.2009","нет",8,9,19,46,null,46,49.5,"победитель","нет","Сальникова Гульзера Рустамовна","Муниципальное автономное общеобразовательное учреждение \"Лицей №78 им. А. С. Пушкина\" город Набережные Челны  Республики Татарстан","Биология"]
[114,"261041_16243431743_27","Муниципальное бюджетное общеобразовательное учреждение \" Средняя обшеобразовательная школа№ 41\" город Набережные Челны Республики Татарстан",16243431743,"Сироткина","Елизавета","Вячеславовна","ж","20.05.2008","нет",9,9,18,44.5,null,44.5,49.5,"призер","нет","Ахметзянова Валентина Сергеевна","Муниципальное бюджетное общеобразовательное учреждение \" Средняя обшеобразовательная школа№ 41\" город Набережные Челны Республики Татарстан","Биология"]
[115,"261078_15846850812_27","Муниципальное автономное общеобразовательное учреждение \"Лицей №78 им. А. С. Пушкина\" город Набережные Челны  Республики Татарстан",15846850812,"Иванова","Ирина","Евгеньевна","ж","24.06.2008","нет",9,9,15,42.5,null,42.5,49.5,"призер","нет","Сальникова Гульзера Рустамовна","Муниципальное автономное общеобразовательное учреждение \"Лицей №78 им. А. С. Пушкина\" город Набережные Челны  Республики Татарстан","Биология"]
[116,"261041_14998469957_27","Муниципальное бюджетное общеобразовательное учреждение \" Средняя обшеобразовательная школа№ 41\" город Набережные Челны Республики Татарстан",14998469957,"Корнеева","Надежда","Геннадьевна","ж","03.01.2008","нет",9,9,16,42.5,null,42.5,49.5,"призер","нет","Хуснутдинова Кристина Вячеславовна","Муниципальное бюджетное общеобразовательное учреждение \" Средняя обшеобразовательная школа№ 41\" город Набережные Челны Республики Татарстан","Биология"]
[117,"261027_17821734688_27","Муниципальное бюджетное общеобразовательное учреждение \"Средняя общеобразовательная школа №27\" город Набережные Челны  Республики Татарстан",17821734688,"Поздняков","Иван","Андреевич","м","16.11.2007","нет",9,9,16,40,null,40,49.5,"призер","нет","Усманова Рамзия Асыловна","Муниципальное бюджетное общеобразовательное учреждение \"Средняя общеобразовательная школа №27\" город Набережные Челны  Республики Татарстан","Биология"]
[118,"261025_16207155741_27","Муниципальное бюджетное общеобразовательное учреждение \"Средняя общеобразовательная школа №25\" город Набережные Челны Республики Татарстан",16207155741,"Уланов","Глеб","Алексеевич","м","06.11.2007","нет",9,9,17,40,null,40,49.5,"призер","нет","Глусская Галина Викторовна","Муниципальное бюджетное общеобразовательное учреждение \"Средняя общеобразовательная школа №25\" город Набережные Челны Республики Татарстан","Биология"]
[119,"261012_14846612081_27","Муниципальное бюджетное общеобразовательное учреждение \"Средняя общеобразовательная школа №12\"  город Набережные Челны Республики Татарстан",14846612081,"Губаева","Алия","Наилевна","ж","2007-11-09","нет",9,9,15,40,null,40,49.5,"призер","нет","Стеганцева Ирина Петровна","Муниципальное бюджетное общеобразовательное учреждение \"Средняя общеобразовательная школа №12\"  город Набережные Челны Республики Татарстан","Биология"]
[120,"261036_16259610375_27","Муниципальное автономное общеобразовательное учреждение \"Лицей инновационных технологий №36\" город Набережные Челны Республики Татарстан",16259610375,"Ахметвалиев","Вадим","Артурович","м","07.06.2008","нет",9,9,17,39.5,null,39.5,49.5,"призер","нет","Пермякова Полина Александровна","Муниципальное автономное общеобразовательное учреждение \"Лицей инновационных технологий №36\" город Набережные Челны Республики Татарстан","Биология"]
[121,"261019_15995481132_27","Муниципальное бюджетное общеобразовательное учреждение \"Средняя общеобразовательная школа №19 с углубленным изучением отдельных предметов\" город Набережные Челны  Республики Татарстан",15995481132,"Шмыков","Александр","Сергеевич","м","22.10.2007","нет",9,9,15,39,null,39,49.5,"призер","нет","Азовцева Альфия Мирзаяновна","Муниципальное бюджетное общеобразовательное учреждение \"Средняя общеобразовательная школа №19 с углубленным изучением отдельных предметов\" город Набережные Челны  Республики Татарстан","Биология"]
[122,"263058_15113388937_27","Муниципальное бюджетное общеобразовательное учреждение \" Средняя общеобразовательная школа №58\" город Набережные Челны  Республики Татарстан",15113388937,"Степанов","Георгий","Сергеевич","м","16.06.2008","нет",9,9,15,38.5,null,38.5,49.5,"призер","нет","Губьянова Оксана Михайловна","Муниципальное бюджетное общеобразовательное учреждение \" Средняя общеобразовательная школа №58\" город Набережные Челны  Республики Татарстан","Биология"]
[123,"261026_16003081401_27","Муниципальное бюджетное общеобразовательное учреждение \"Гимназия №26\" город Набережные Челны Республики Татарстан",16003081401,"Валеева","Виталина","Альмировна","ж","07.12.2007","нет",9,9,16,38,null,38,49.5,"призер","нет","Белова Алена Федоровна","Муниципальное бюджетное общеобразовательное учреждение \"Гимназия №26\" город Набережные Челны Республики Татарстан","Биология"]
[124,"261030_15809764406_27","Муниципальное бюджетное общеобразовательное учреждение \"Средняя общеобразовательная школа №30\" город Набережные Челны Республики Татарстан",15809764406,"Фазлытдинова","Азалия","Ильдаровна","ж","31.01.2008","нет",9,9,14,37,null,37,49.5,"призер","нет","Андрианова Альбина Абдулхатовна","Муниципальное бюджетное общеобразовательное учреждение \"Средняя общеобразовательная школа №30\" город Набережные Челны Республики Татарстан","Биология"]
[125,"261008_ 16191103840_27","Муниципальное бюджетное общеобразовательное учреждение \"Средняя общеобразовательная школа №8\"",16335126446,"Филиппова","Надежда","Викторовна","ж","2008-05-17","нет",9,9,15,37,null,37,49.5,"призер","нет","Гильмутдинова Ландыш Имамсутиевна","Муниципальное бюджетное общеобразовательное учреждение \"Средняя общеобразовательная школа №8\"","Биология"]
[126,"261010_16457669008_27","Муниципальное бюджетное общеобразовательное учреждение \"Средняя общеобразовательная школа №10\" город Набережные Челны  Республики Татарстан",16457669008,"Смирнов","Никита","Константинович","м","17.02.2008","нет",9,9,15,37,null,37,49.5,"призер","нет","Тукмачева Марина Михайловна","Муниципальное бюджетное общеобразовательное учреждение \"Средняя общеобразовательная школа №10\" город Набережные Челны  Республики Татарстан","Биология"]
[127,"261057_16330972965_27","Муниципальное бюджетное общеобразовательное учреждение \"Центр образования - Гимназия №57 \"Притяжение\"город Набережные Челны Республики Татарстан",16330972965,"Степура","Богдан","Михайлович","м","08.11.2007","нет",9,9,13,36.5,null,36.5,49.5,"участник","нет","Юскаева Чулпан Мухаметнуровна","Муниципальное бюджетное общеобразовательное учреждение \"Центр образования - Гимназия №57 \"Притяжение\"город Набережные Челны Республики Татарстан","Биология"]
[128,"261030_18183560787_27","Муниципальное бюджетное общеобразовательное учреждение \"Средняя общеобразовательная школа №30\" город Набережные Челны Республики Татарстан",18183560787,"Погодина","Алёна","Юрьевна","ж","29.08.2008","нет",9,9,14,36.5,null,36.5,49.5,"участник","нет","Андрианова Альбина Абдулхатовна","Муниципальное бюджетное общеобразовательное учреждение \"Средняя общеобразовательная школа №30\" город Набережные Челны Республики Татарстан","Биология"]
[129,"261026_16065683778_27","Муниципальное бюджетное общеобразовательное учреждение \"Гимназия №26\" город Набережные Челны Республики Татарстан",16065683778,"Кузнецова","Александра","Игоревна","ж","20.11.2007","нет",9,9,15,35.5,null,35.5,49.5,"участник","нет","Белова Алена Федоровна","Муниципальное бюджетное общеобразовательное учреждение \"Гимназия №26\" город Набережные Челны Республики Татарстан","Биология"]
[130,"261076_17035638561_27","Муниципальное автономное общеобразовательное учреждение города Набережные Челны \"Гимназия №76\" город Набережные Челны  Республики Татарстан",17035638561,"Софронова","Кира","Юрьевна","ж","19.11.2007","нет",9,9,12,35,null,35,49.5,"участник","нет","Ахметова Елена Николаевна","Муниципальное автономное общеобразовательное учреждение города Набережные Челны \"Гимназия №76\" город Набережные Челны  Республики Татарстан","Биология"]
[131,"261078_15809765610_27","Муниципальное автономное общеобразовательное учреждение \"Лицей №78 им. А. С. Пушкина\" город Набережные Челны  Республики Татарстан",15809765610,"Хузина","Диана","Рустамовна","ж","2009-02-15","нет",9,9,12,35,null,35,49.5,"участник","нет","Сальникова Гульзера Рустамовна","Муниципальное автономное общеобразовательное учреждение \"Лицей №78 им. А. С. Пушкина\" город Набережные Челны  Республики Татарстан","Биология"]
[132,"261030_17735408796_27","Муниципальное бюджетное общеобразовательное учреждение \"Средняя общеобразовательная школа №30\" город Набережные Челны Республики Татарстан",17735408796,"Лизунова","Елизавета","Юрьевна","ж","2008-10-15","нет",9,9,12,35,null,35,49.5,"участник","нет","Андрианова Альбина Абдулхатовна","Муниципальное бюджетное общеобразовательное учреждение \"Средняя общеобразовательная школа №30\" город Набережные Челны Республики Татарстан","Биология"]
[133,"261037_16191103032_27","Муниципальное бюджетное общеобразовательное учреждение\"Средняя общеобразовательное школа № 37 с углубленным изучением отдельных предметов\"город Набережные Челны  Республики Татарстан",16191103032,"Хисматуллина","Эвелина","Маратовна","ж","07.10.2008","нет",9,9,13,34,null,34,49.5,"участник","нет","Сабирова Гузель Ракиповна","Муниципальное бюджетное общеобразовательное учреждение\"Средняя общеобразовательное школа № 37 с углубленным изучением отдельных предметов\"город Набережные Челны  Республики Татарстан","Биология"]
[134,"261040_15833992811_27","Муниципальное автономное общеобразовательное учреждение \"Средняя общеобразовательная школа №40 с углубленным изучением\" город Набережные Челны  Республики Татарстан",15833992811,"Комарова","София","Николаевна","ж","15.10.2008","нет",9,9,14,33.5,null,33.5,49.5,"участник","нет","Шарипова Тазкира Халитовна","Муниципальное автономное общеобразовательное учреждение \"Средняя общеобразовательная школа №40 с углубленным изучением\" город Набережные Челны  Республики Татарстан","Биология"]
[135,"263029_17658275014_27","Муниципальное бюджетное общеобразовательное учреждение \"Гимназия №29\" город Набережные Челны  Республики Татарстан",17658275014,"Бандаев","Зикруллох","Амонуллоевич","м","26.04.2008","нет",9,9,12,33,null,33,49.5,"участник","нет","Газизова Ильсеяр Халисовна","Муниципальное бюджетное общеобразовательное учреждение \"Гимназия №29\" город Набережные Челны  Республики Татарстан","Биология"]
[136,"261055_15977862748_27","Муниципальное автономное общеобразовательное учреждение \"Средняя общеобразовательная школа №55\" город Набережные Челны   Республики Татарстан Республики Татарстан",15977862748,"Баширова","Алия","Ильшатовна","ж","14.05.2008","нет",9,9,12,33,null,33,49.5,"участник","нет","Оруджева Наталья Викторовна","Муниципальное автономное общеобразовательное учреждение \"Средняя общеобразовательная школа №55\" город Набережные Челны   Республики Татарстан Республики Татарстан","Биология"]
[137,"261033_17120073919_7","Муниципальное бюджетное общеобразовательное учреждение \"Средняя общеобразовательное учреждение №33\" город Набережные Челны  Республики Татарстан",17120073919,"Гилемянова","Лейла","Закиржановна","ж","2008-11-03","нет",9,9,10,32.5,null,32.5,49.5,"участник","нет","Гарифуллина Эльвира Флюровна","Муниципальное бюджетное общеобразовательное учреждение \"Средняя общеобразовательное учреждение №33\"","Биология"]
[138,"261001_17175763595_27","Муниципальное автономное общеобразовательное учреждение \"Средняя общеобразовательная школа №1\" город Набережные Челны  Республики Татарстан",17175763595,"Сабиров","Камиль","Рафаэлевич","м","06.10.2008","нет",9,9,12,32,null,32,49.5,"участник","нет","Тихонова Наталья Сергеевна","Муниципальное автономное общеобразовательное учреждение \"Средняя общеобразовательная школа №1\" город Набережные Челны  Республики Татарстан","Биология"]
[139,"261021_16090543048_27","Муниципальное общеобразовательное учреждение \"Средняя общеобразовательная школа № 21\"город Набережные Челны  Республики Татарстан",16090543048,"Хаматшин","Амирхан","Дилусович","м","2008-07-31","нет",9,9,10,32,null,32,49.5,"участник","нет","Канашова Лейля Харисовна","Муниципальное общеобразовательное учреждение \"Средняя общеобразовательная школа № 21\"город Набережные Челны  Республики Татарстан","Биология"]
[140,"261039_15817313571_27","Муниципальное бюджетное общеобразовательное учреждение \"Средняя общеобразовательная школа №39\" город Набережные Челны  Республики Татарстан",15817313571,"Филатов","Кирилл","Петрович","м","22.02.2008","нет",9,9,9,32,null,32,49.5,"участник","нет","Данченко Марина Михайловна","Муниципальное бюджетное общеобразовательное учреждение \"Средняя общеобразовательная школа №39\" город Набережные Челны  Республики Татарстан","Биология"]
[141,"261059_14991539715_27","Муниципальное общеобразовательное учреждение \"Полилингвальная гимназия №59 \"Адымнар\" город Набережные Челны Республики Татарстан",14991539715,"Гарифьянова","Танзиля","Танировна","ж","2008-03-22","нет",9,9,12,31.5,null,31.5,49.5,"участник","нет","Лутфуллина Гулюза Магъфуровна","Муниципальное общеобразовательное учреждение \"Полилингвальная гимназия №59 \"Адымнар\" город Набережные Челны Республики Татарстан","Биология"]
[142,"261021_18756956245_27","Муниципальное автономное общеобразовательное учреждение \"Средняя общеобразовательная школа №21\" город Набережные Челны  Республики Татарстан",18756956245,"Мингазова","Камилла","Айратовна","ж","09.10.2007","нет",9,9,10,31,null,31,49.5,"участник","нет","Канашова Лейля Харисовна","Муниципальное автономное общеобразовательное учреждение \"Средняя общеобразовательная школа №21\" город Набережные Челны  Республики Татарстан","Биология"]
[143,"261056_19053258266_27","Муниципальное автономное общеобразовательное учреждение \"Средняя общеобразовательная школа №56\" город Набережные Челны  Республики Татарстан",19053258266,"Антонова","Арина","Денисовна","ж","23.02.2008","нет",9,9,10,30.5,null,30.5,49.5,"участник","нет","Махмутова Ландыш Сабирзяновна","Муниципальное автономное общеобразовательное учреждение \"Средняя общеобразовательная школа №56\" город Набережные Челны  Республики Татарстан","Биология"]
[144,"261035_15954151890_27","Муниципальное автономное общеобразовательное учреждение \"Средняя общеобразовтельная школа №35 с углубленным изучением отдельных предметов\" город Набережные Челны  Республики Татарстан ",15954151890,"Бородин","Георгий","Михайлович","м","02.11.2007","нет",9,9,10,30,null,30,49.5,"участник","нет","Саетова Гульшат Вагизовна","Муниципальное автономное общеобразовательное учреждение \"Средняя общеобразовтельная школа №35 с углубленным изучением отдельных предметов\" город Набережные Челны  Республики Татарстан ","Биология"]
[145,"263079_17251005932_27","Муниципальное бюджетное общеобразовательное учереждение \"Лицей-интернат №79\" город Набережные Челны  Республики Татарстан",17251005932,"Тимофеев","Вадим","Ильич","м","29.10.2008","нет",9,9,7,30,null,30,49.5,"участник","нет","Бариева Назия Галимулловна","Муниципальное бюджетное общеобразовательное учереждение \"Лицей-интернат №79\" город Набережные Челны  Республики Татарстан","Биология"]
[146,"261049_17469532333_27","Муниципальное автономное общеобразовательное учреждение \"Кадетская школа №49\" город Набережные Челны  Республики Татарстан",17469532333,"Андрианов","Максим","Иванович","м","12.04.2008","нет",9,9,9,29,null,29,49.5,"участник","нет","Закирова Фирдавус Завитовна","Муниципальное автономное общеобразовательное учреждение \"Кадетская школа №49\" город Набережные Челны  Республики Татарстан","Биология"]
[147,"261061_16239183370_27","Муниципальное автономное общеобразовательное учреждение \"Гимназия №61\" город Набережные Челны  Республики Татарстан",16239183370,"Мухаметханов","Наиль","Ильназович","м","23.03.2008","нет",9,9,11,28.5,null,28.5,49.5,"участник","нет","Степанова Елена Васильевна","Муниципальное автономное общеобразовательное учреждение \"Гимназия №61\" город Набережные Челны  Республики Татарстан","Биология"]
[148,"261030_15960371183_27","Муниципальное бюджетное общеобразовательное учреждение \"Средняя общеобразовательная школа №30\" город Набережные Челны Республики Татарстан",15960371183,"Мухтарова","Аделина","Ленаровна","ж","10.12.2007","нет",9,9,8,28.5,null,28.5,49.5,"участник","нет","Андрианова Альбина Абдулхатовна","Муниципальное бюджетное общеобразовательное учреждение \"Средняя общеобразовательная школа №30\" город Набережные Челны Республики Татарстан","Биология"]
[149,"261035_17166588703_27","Муниципальное автономное общеобразовательное учреждение города Набережные Челны \"Средняя общеобразовтельная школа №35 с углубленным изучением отдельных предметов\" город Набережные Челны Республики Татарстан",17166588703,"Аллаярова","Аделия","Рафиковна","ж","30.06.2008","нет",9,9,10,{"$f":"SUM(M150:M150)","v":10},null,{"$f":"SUM(N150:O150)","v":10},49.5,"участник","нет","Саетова Гульшат Вагизовна","Муниципальное автономное общеобразовательное учреждение города Набережные Челны \"Средняя общеобразовтельная школа №35 с углубленным изучением отдельных предметов\" город Набережные Челны Республики Татарстан","Биология"]
[150,"263084_17010877037_27","Муниципальное автономное общеобразовательное учреждение города Набережные Челны \"Лицей-интернат №84 имени Гали Акыша\" город Набережные Челны  Республики Татарстан",17010877037,"Хасанов","Марат","Эдуардович","м","11.01.2008","нет",9,9,7,27.5,null,27.5,49.5,"участник","нет","Хабибулина Алсу Сабирзяновна","Муниципальное автономное общеобразовательное учреждение города Набережные Челны \"Лицей-интернат №84 имени Гали Акыша\" город Набережные Челны  Республики Татарстан","Биология"]
[151,"261051_16028769476_27","Муниципальное автономное общеобразовательное учреждение \"Средняя общеобразовательная школа №51\" город Набережные Челны Республики Татарстан",16028769476,"Прочухан","Анна","Евгеньевна","ж","22.10.2008","нет",9,9,6,27.5,null,27.5,49.5,"участник","нет","Лазарева Нататья Ивановна","Муниципальное автономное общеобразовательное учреждение \"Средняя общеобразовательная школа №51\" город Набережные Челны Республики Татарстан","Биология"]
[152,"261056_17224127236_27","Муниципальное автономное общеобразовательное учреждение  \"Средняя общеобразовательная школа №56\" город Набережные Челны  Республики Татарстан",17224127236,"Галимова","Розалина","Ильнаровна","ж","21.09.2008","нет",9,9,7,27.5,null,27.5,49.5,"участник","нет","Махмутова Ландыш Сабирзяновна","Муниципальное автономное общеобразовательное учреждение  \"Средняя общеобразовательная школа №56\" город Набережные Челны  Республики Татарстан","Биология"]
[153,"263012_15960492094_27","Муниципальное бюджетное общеобразовательное учреждение \"Средняя общеобразовательная школа №12\" город Набережные Челны Республики Тататрстан",15960492094,"Терентьева","Анастасия","Евгеньевна","ж","02.10.2008","нет",9,9,9,27.5,null,27.5,49.5,"участник","нет","Стеганцева Ирина Петровна","Муниципальное бюджетное общеобразовательное учреждение \"Средняя общеобразовательная школа №12\" город Набережные Челны Республики Тататрстан","Биология"]
[154,"261033_17120073414_27","Муниципальное бюджетное общеобразовательное учреждение \"Средняя общеобразовательная школа №33\" город Набережные Челны  Республики Татарстан",17120073414,"Бахитова","Арина","Радиковна","ж","07.03.2008","нет",9,9,11,26.5,null,26.5,49.5,"участник","нет","Гарифуллина Эльвира Флюровна","Муниципальное бюджетное общеобразовательное учреждение \"Средняя общеобразовательная школа №33\" город Набережные Челны  Республики Татарстан","Биология"]
[155,"261081_16394253585_27","Государственное бюджетное общеобразовательное учреждение \"Кадетская школа полиции \"Калкан\" город Набережные Челны Республики Татарстан",16394253585,"Багрова ","Анастасия Андреевна",null,"ж","2008-09-07","нет",9,9,5,{"$f":"SUM(M156:M156)","v":5},null,{"$f":"SUM(N156:O156)","v":5},49.5,"участник","нет","Хайдарова Зиля Равиловна","Государственное бюджетное общеобразовательное учреждение \"Кадетская школа полиции \"Калкан\" город Набережные Челны Республики Татарстан","Биология"]
[156,"263052_17398238415_27","Муниципальное бюджетное общеобразовательное учреждение «Средняя общеобразовательная школа №52» город Набережные Челны Республики Татарстан",17398238415,"Новиков","Марат","Алексеевич","м","25.03.2008","нет",9,9,5,22.5,null,22.5,49.5,"участник","нет","Нургалиеаа Элмира Фанисовна","Муниципальное бюджетное общеобразовательное учреждение «Средняя общеобразовательная школа №52» город Набережные Челны Республики Татарстан","Биология"]
[157,"265001_16325404240_27","Муниципальное автономное общеобразовательное учреждение \"Гимназия №77\" город Набережные Челны  Республики Татарстан",16325404240,"Будкин","Артём","Александрович","м","21.12.2007","нет",9,9,16,22,null,22,49.5,"участник","нет","Ахметшина Лилия Расиховна","Муниципальное автономное общеобразовательное учреждение \"Гимназия №77\" город Набережные Челны  Республики Татарстан","Биология"]
[158,"261042_16452907074_27","Муниципальное бюджетная общеобразовательное учреждение \"Средняя общеобразовательная школа № 42\" город Набережные Челны  Республики Татарстан",16452907074,"Самматова","Анастасия","Ренатовна","ж","05.09.2008","нет",9,9,14,21,null,21,49.5,"участник","нет","Садыкова Валерия Александровна","Муниципальное бюджетная общеобразовательное учреждение \"Средняя общеобразовательная школа № 42\" город Набережные Челны  Республики Татарстан","Биология"]
[159,"261056_15781078592_27","Муниципальное автономное общеобразовательное учреждение \"Средняя общеобразовательная школа №56\" город Набережные Челны  Республики Татарстан",15781078592,"Насертдинова","Азалия","Ильфатовна","ж","01.05.2008","нет",9,9,9,16.5,null,16.5,49.5,"участник","нет","Махмутова Ландыш Сабирзяновна","Муниципальное автономное общеобразовательное учреждение \"Средняя общеобразовательная школа №56\" город Набережные Челны  Республики Татарстан","Биология"]
[160,"261077_15702607752_27","Муниципальное общеобразовательное учреждение \"Гимназия №77\" город Набережные Челны  Республики Татарстан",15702607752,"Габидуллина","Аделина","Марселевна","ж","2008-06-28","нет",9,9,11,16,null,16,49.5,"участник","нет","Ахметшина Лилия Расиховна","Муниципальное общеобразовательное учреждение \"Гимназия №77\" город Набережные Челны  Республики Татарстан","Биология"]
[161,"261051_16224117427_27","Муниципальное автономное общеобразовательное учреждение  \"Средняя общеобразовательная школа №51\"город Набережные Челны Республики Татарстан",16224117427,"Гайсин","Данил","Ильнурович","м","13.04.2008","нет",9,9,8,14,null,14,49.5,"участник","нет","Лазарева Нататья Ивановна","Муниципальное автономное общеобразовательное учреждение  \"Средняя общеобразовательная школа №51\"город Набережные Челны Республики Татарстан","Биология"]
[162,"261049_17335611966_27","Муниципальное автономное общеобразовательное учреждение \"Кадетская школа №49\" город Набережные Челны  Республики Татарстан",17335611966,"Хакимов","Данил","Дмитриевич","м","14.02.2008","нет",9,9,9,13,null,13,49.5,"участник","нет","Закирова Фирдавус Завитовна","Муниципальное автономное общеобразовательное учреждение \"Кадетская школа №49\" город Набережные Челны  Республики Татарстан","Биология"]
[163,"261053_15037823752_27","Муниципальное бюджетное общеобразовательное учреждение \"Средняя общеобразовательная школа №53\" город Набережные Челны Республики Татарстан",15037823752,"Сайранова","Анастасия","Юрьевна","ж","25.03.2008","нет",9,9,8,13,null,13,49.5,"участник","нет","Муфахарова Лейсан Вакифовна","Муниципальное бюджетное общеобразовательное учреждение \"Средняя общеобразовательная школа №53\" город Набережные Челны Республики Татарстан","Биология"]
[164,"261046_15970311070_27","Муниципальное бюджетное общеобразовательное учреждение \"Средняя общеобразовательная школа №46 имени кавалера ордена Мужества Дмитрия Бадретдинова\" город Набережные Челны  Республики Татарстан",15970311070,"Клименко","Кира","Михайловна","ж","13.08.2008","нет",9,9,7,10.5,null,10.5,49.5,"участник","нет","Мирошев Александр Владимирович","Муниципальное бюджетное общеобразовательное учреждение \"Средняя общеобразовательная школа №46 имени кавалера ордена Мужества Дмитрия Бадретдинова\" город Набережные Челны  Республики Татарстан","Биология"]
[165,"261059_15994214306_27","Муниципальное общеобразовательное учреждение \"Полилингвальная гимназия №59 \"Адымнар\" город Набережные Челны Республики Татарстан",15994214306,"Зайнуллина ","Регина","Ильшатовна","ж","2008-02-03","нет",9,9,7,10.5,null,10.5,49.5,"участник","нет","Лутфуллина Гулюза Магъфуровна","Муниципальное общеобразовательное учреждение \"Полилингвальная гимназия №59 \"Адымнар\" город Набережные Челны Республики Татарстан","Биология"]
[166,"261078_14736860188_27","Муниципальное автономное общеобразовательное учреждение \"Лицей №78 им. А. С. Пушкина\" город  Набережные Челны Республики Татарстан",14736860188,"Галиев","Ленар","Ринатович","м","12.07.2007","да",10,10,22,{"$f":"SUM(M167:M167)","v":22},null,{"$f":"SUM(N167:O167)","v":22},60,"победитель","да","Сальникова Гульзера Рустамовна","Муниципальное автономное общеобразовательное учреждение \"Лицей №78 им. А. С. Пушкина\" город  Набережные Челны Республики Татарстан","Биология"]
[167,"261076_16514646333_27","Муниципальное автономное общеобразовательное учреждение  \"Гимназия №76\" город  Набережные Челны Республики Татарстан",16514646333,"Сафина","Ралина","Руслановна","ж","28.07.2007","нет",10,10,23,{"$f":"SUM(M168:M168)","v":23},null,{"$f":"SUM(N168:O168)","v":23},60,"призер","нет","Ахметова Елена Николаевна","Муниципальное автономное общеобразовательное учреждение  \"Гимназия №76\" город  Набережные Челны Республики Татарстан","Биология"]
[168,"261078_16112446524_27","Муниципальное автономное общеобразовательное учреждение \"Лицей №78 им. А. С. Пушкина\" город  Набережные Челны Республики Татарстан",16112446524,"Валеев","Азат","Артурович","м","07.06.2007","нет",10,10,19,{"$f":"SUM(M169:M169)","v":19},null,{"$f":"SUM(N169:O169)","v":19},60,"призер","нет","Сальникова Гульзера Рустамовна","Муниципальное автономное общеобразовательное учреждение \"Лицей №78 им. А. С. Пушкина\" город  Набережные Челны Республики Татарстан","Биология"]
[169,"261041_16045502231_27","Муниципальное бюджетное общеобразовательное учреждение \" Средняя обшеобразовательная школа№ 41\" город Набережные челны Республики Татарстан",16045502231,"Крапивина","Ирина","Евгеньевна","ж","13.08.2007","да",10,10,20,{"$f":"SUM(M170:M170)","v":20},null,{"$f":"SUM(N170:O170)","v":20},60,"призер","да","Ахметзянова Валентина Сергеевна","Муниципальное бюджетное общеобразовательное учреждение \" Средняя обшеобразовательная школа№ 41\" город Набережные челны Республики Татарстан","Биология"]
[170,"261030_16219026140_27","Муниципальное бюджетное общеобразовательное учреждение \"Средняя общеобразовательная школа №30\" город Набережные Челны Республики Татарстан",16219026140,"Васильева","Диана","Витальевна","ж","07.10.2007","нет",10,10,23,{"$f":"SUM(M171:M171)","v":23},null,{"$f":"SUM(N171:O171)","v":23},60,"призер","нет","Андрианова Альбина Абдулхатовна","Муниципальное бюджетное общеобразовательное учреждение \"Средняя общеобразовательная школа №30\" город Набережные Челны Республики Татарстан","Биология"]
[171,"261019_16164556268_27","Муниципальное бюджетное общеобразовательное учреждение \"Средняя общеобразовательная школа №19 с углубленным изучением отдельных предметов\" город  Набережные Челны Республики Татарстан",16164556268,"Сафиулин","Амир","Рафаэлевич","м","08.01.2007","нет",10,10,18,{"$f":"SUM(M172:M172)","v":18},null,{"$f":"SUM(N172:O172)","v":18},60,"призер","нет","Азовцева Альфия Мирзаяновна","Муниципальное бюджетное общеобразовательное учреждение \"Средняя общеобразовательная школа №19 с углубленным изучением отдельных предметов\" город  Набережные Челны Республики Татарстан","Биология"]
[172,"261030_16042156425_27","Муниципальное бюджетное общеобразовательное учреждение \"Средняя общеобразовательная школа №30\" город Набережные Челны Республики Татарстан",16042156425,"Юнусов","Ислам","Ильнарович","м","15.08.2007","нет",10,10,18,{"$f":"SUM(M173:M173)","v":18},null,{"$f":"SUM(N173:O173)","v":18},60,"призер","нет","Андрианова Альбина Абдулхатовна","Муниципальное бюджетное общеобразовательное учреждение \"Средняя общеобразовательная школа №30\" город Набережные Челны Республики Татарстан","Биология"]
[173,"261076_16052522430_27","Муниципальное автономное общеобразовательное учреждение  \"Гимназия №76\" город  Набережные Челны Республики Татарстан",16052522430,"Мухаметшина","Камилла","Ильдаровна","ж","24.06.2007","нет",10,10,18,{"$f":"SUM(M174:M174)","v":18},null,{"$f":"SUM(N174:O174)","v":18},60,"призер","нет","Ахметова Елена Николаевна","Муниципальное автономное общеобразовательное учреждение  \"Гимназия №76\" город  Набережные Челны Республики Татарстан","Биология"]
[174,"261030_17342709267_27","Муниципальное бюджетное общеобразовательное учреждение \"Средняя общеобразовательная школа №30\" город Набережные Челны Республики Татарстан",17342709267,"Крутихин","Глеб","Максимович","м","2006-10-04","да",10,10,17,{"$f":"SUM(M175:M175)","v":17},null,{"$f":"SUM(N175:O175)","v":17},60,"призер","да","Андрианова Альбина Абдулхатовна","Муниципальное бюджетное общеобразовательное учреждение \"Средняя общеобразовательная школа №30\" город Набережные Челны Республики Татарстан","Биология"]
[175,"261019_16063466558_27","Муниципальное бюджетное общеобразовательное учреждение \"Средняя общеобразовательная школа №19 с углубленным изучением отдельных предметов\" город  Набережные Челны Республики Татарстан",16063466558,"Зарифуллин","Рузиль","Алексеевич","м","18.08.2007","нет",10,10,15,{"$f":"SUM(M176:M176)","v":15},null,{"$f":"SUM(N176:O176)","v":15},60,"призер","нет","Азовцева Альфия Мирзаяновна","Муниципальное бюджетное общеобразовательное учреждение \"Средняя общеобразовательная школа №19 с углубленным изучением отдельных предметов\" город  Набережные Челны Республики Татарстан","Биология"]
[176,"261026_14667394504_27","Муниципальное бюджетное общеобразовательное учреждение \"Гимназия №26\" город Набережные Челны Республики Татарстан",14667394504,"Хусаинов","Руслан","Тимурович","м","09.05.2007","нет",10,10,17,{"$f":"SUM(M177:M177)","v":17},null,{"$f":"SUM(N177:O177)","v":17},60,"призер","нет","Белова Алена Федоровна","Муниципальное бюджетное общеобразовательное учреждение \"Гимназия №26\" город Набережные Челны Республики Татарстан","Биология"]
[177,"261041_15963929930_27","Муниципальное бюджетное общеобразовательное учреждение \" Средняя обшеобразовательная школа№ 41\" Набережные челны Республики Татарстан",15963929930,"Кузнецов","Владимир","Саматович","м","03.01.2007","нет",10,10,16,{"$f":"SUM(M178:M178)","v":16},null,{"$f":"SUM(N178:O178)","v":16},60,"призер","нет","Ахметзянова Валентина Сергеевна","Муниципальное бюджетное общеобразовательное учреждение \" Средняя обшеобразовательная школа№ 41\" Набережные челны Республики Татарстан","Биология"]
[178,"261042_14801978377_27","Муниципальное бюджетная общеобразовательное учреждение \"Средняя общеобразовательная школа № 42\" город  Набережные Челны Республики Татарстан",14801978377,"Матвеев","Илья","Алексеевич","м","06.08.2007","нет",10,10,20,{"$f":"SUM(M179:M179)","v":20},null,{"$f":"SUM(N179:O179)","v":20},60,"призер","нет","Сайранова Алина Гаптенуровна","Муниципальное бюджетная общеобразовательное учреждение \"Средняя общеобразовательная школа № 42\" город  Набережные Челны Республики Татарстан","Биология"]
[179,"261030_16012985850_27","Муниципальное бюджетное общеобразовательное учреждение \"Средняя общеобразовательная школа №30\" город Набережные Челны Республики Татарстан",16012985850,"Полунин","Арсений","Александрович","м","27.01.2007","да",10,10,14,{"$f":"SUM(M180:M180)","v":14},null,{"$f":"SUM(N180:O180)","v":14},60,"призер","да","Андрианова Альбина Абдулхатовна","Муниципальное бюджетное общеобразовательное учреждение \"Средняя общеобразовательная школа №30\" город Набережные Челны Республики Татарстан","Биология"]
[180,"261030_15960794009_27","Муниципальное бюджетное общеобразовательное учреждение \"Средняя общеобразовательная школа №30\" город Набережные Челны Республики Татарстан",15960794009,"Ягудин","Нияз","Ирикович","м","28.09.2007","да",10,10,16,{"$f":"SUM(M181:M181)","v":16},null,{"$f":"SUM(N181:O181)","v":16},60,"призер","да","Андрианова Альбина Абдулхатовна","Муниципальное бюджетное общеобразовательное учреждение \"Средняя общеобразовательная школа №30\" город Набережные Челны Республики Татарстан","Биология"]
[181,"261051_14692482393_27","Муниципальное автономное общеобразовательное учреждение  \"Средняя общеобразовательная школа №51\"город  Набережные Челны Республики Татарстан",14692482393,"Бельская","Евгения","Вячеславовна","ж","13.03.2007","нет",10,10,8,{"$f":"SUM(M182:M182)","v":8},null,{"$f":"SUM(N182:O182)","v":8},60,"призер","нет","Лазарева Нататья Ивановна","Муниципальное автономное общеобразовательное учреждение  \"Средняя общеобразовательная школа №51\"город  Набережные Челны Республики Татарстан","Биология"]
[182,"263029_14993168413_27","Муниципальное бюджетное общеобразовательное учреждение \"Гимназия №29\" город  Набережные Челны Республики Татарстан",14993168413,"Мишенев","Илья","Михайлович","м","06.08.2007","нет",10,10,13,{"$f":"SUM(M183:M183)","v":13},null,{"$f":"SUM(N183:O183)","v":13},60,"призер","нет","Газизова Ильсеяр Халисовна","Муниципальное бюджетное общеобразовательное учреждение \"Гимназия №29\" город  Набережные Челны Республики Татарстан","Биология"]
[183,"261026_16043600221_27","Муниципальное бюджетное общеобразовательное учреждение \"Гимназия №26\" город Набережные Челны Республики Татарстан",16043600221,"Сафаргалина","Арина","Ленаровна","ж","29.04.2007","нет",10,10,11,{"$f":"SUM(M184:M184)","v":11},null,{"$f":"SUM(N184:O184)","v":11},60,"призер","нет","Белова Алена Федоровна","Муниципальное бюджетное общеобразовательное учреждение \"Гимназия №26\" город Набережные Челны Республики Татарстан","Биология"]
[184,"261030_14692482595_27","Муниципальное бюджетное общеобразовательное учреждение \"Средняя общеобразовательная школа №30\" города Набережные Челны Республики Татарстан",14692482595,"Кротов","Михаил","Александрович","м","12.05.2007","нет",10,10,15,{"$f":"SUM(M185:M185)","v":15},null,{"$f":"SUM(N185:O185)","v":15},60,"призер","нет","Андрианова Альбина Абдулхатовна","Муниципальное бюджетное общеобразовательное учреждение \"Средняя общеобразовательная школа №30\" города Набережные Челны Республики Татарстан","Биология"]
[185,"263084_16015911937_27","Муниципальное автономное общеобразовательное учреждение  \"Лицей-интернат №84 имени Гали Акыша\"  город  Набережные Челны Республики Татарстан",16015911937,"Нуриева","Наиля","Айдаровна","ж","24.07.2007","нет",10,10,10,{"$f":"SUM(M186:M186)","v":10},null,{"$f":"SUM(N186:O186)","v":10},60,"участник","нет","Хабибулина Алсу Сабирзяновна","Муниципальное автономное общеобразовательное учреждение  \"Лицей-интернат №84 имени Гали Акыша\"  город  Набережные Челны Республики Татарстан","Биология"]
[186,"263054_15954118084_27","Муниципальное бюджетное общеобразовательное учреждение \"Гимназия №54\" город  Набережные Челны Республика Татарстан",15954118084,"Шарапова","Элиана","Маратовна","ж","13.04.2007","нет",10,10,11,{"$f":"SUM(M187:M187)","v":11},null,{"$f":"SUM(N187:O187)","v":11},60,"участник","нет","Забихуллина Айгуль Рафиковна","Муниципальное бюджетное общеобразовательное учреждение \"Гимназия №54\" город  Набережные Челны Республика Татарстан","Биология"]
[187,"263018_17890733723_27","Муниципальное бюджетное общеобразовательное учреждение \"Средняя общеобразовательная школа №18 с углубленным изучением отдельных предметов\"город  Набережные Челны Республики Татарстан",17890733723,"Никифоров","Леонид","Григорьевич","м","04.11.2005","нет",10,10,12,{"$f":"SUM(M188:M188)","v":12},null,{"$f":"SUM(N188:O188)","v":12},60,"участник","нет","Алексашечкина Вера Владимировна","Муниципальное бюджетное общеобразовательное учреждение \"Средняя общеобразовательная школа №18 с углубленным изучением отдельных предметов\"город  Набережные Челны Республики Татарстан","Биология"]
[188,"261078_16003090806_27","Муниципальное автономное общеобразовательное учреждение \"Лицей №78 им. А. С. Пушкина\" город  Набережные Челны Республики Татарстан",16003090806,"Насыбуллин","Камиль","Ренатович","м","11.07.2007","да",10,10,12,{"$f":"SUM(M189:M189)","v":12},null,{"$f":"SUM(N189:O189)","v":12},60,"участник","да","Сальникова Гульзера Рустамовна","Муниципальное автономное общеобразовательное учреждение \"Лицей №78 им. А. С. Пушкина\" город  Набережные Челны Республики Татарстан","Биология"]
[189,"261078_14828862309_27","Муниципальное автономное общеобразовательное учреждение \"Лицей №78 им. А. С. Пушкина\" город  Набережные Челны Республики Татарстан",14828862309,"Гайфутдинов","Азат","Вильдарович","м","27.09.2007","да",10,10,13,{"$f":"SUM(M190:M190)","v":13},null,{"$f":"SUM(N190:O190)","v":13},60,"участник","да","Сальникова Гульзера Рустамовна","Муниципальное автономное общеобразовательное учреждение \"Лицей №78 им. А. С. Пушкина\" город  Набережные Челны Республики Татарстан","Биология"]
[190,"261056_15975365724_27","Муниципальное автономное общеобразовательное учреждение  «Средняя общеобразовательная школа №56» город  Набережные Челны Республики Татарстан ",15975365724,"Гильфанова","Эвелина","Дамировна","ж","11.07.2007","нет",10,10,10,{"$f":"SUM(M191:M191)","v":10},null,{"$f":"SUM(N191:O191)","v":10},60,"участник","нет","Махмутова Ландыш Сабирзяновна","Муниципальное автономное общеобразовательное учреждение  «Средняя общеобразовательная школа №56» город  Набережные Челны Республики Татарстан ","Биология"]
[191,"261036_14739177697_27","Муниципальное автономное общеобразовательное учреждение \"Лицей инновационных технологий №36\" город Набережные Челны Республики Татарстан",14739177697,"Тюлюкова","Валерия","Александровна","ж","17.04.2007","нет",10,10,14,{"$f":"SUM(M192:M192)","v":14},null,{"$f":"SUM(N192:O192)","v":14},60,"участник","нет","Пермякова Полина Александровна","Муниципальное автономное общеобразовательное учреждение \"Лицей инновационных технологий №36\" город Набережные Челны Республики Татарстан","Биология"]
[192,"261040_15963935622_27","Муниципальное автономное общеобразовательное учреждение  \"Средняя общеобразовательная школа №40 с углубленным изучением отдельных предметов\" город  Набережные Челны  Республики Татарстан",15963935622,"Сибилева","Любовь","Дмитриевна","ж","12.02.2007","нет",10,10,8,{"$f":"SUM(M193:M193)","v":8},null,{"$f":"SUM(N193:O193)","v":8},60,"участник","нет","Шарипова Тазкира Халитовна","Муниципальное автономное общеобразовательное учреждение  \"Средняя общеобразовательная школа №40 с углубленным изучением отдельных предметов\" город  Набережные Челны  Республики Татарстан","Биология"]
[193,"261060_15940426069_27","Муниципальное бюджетное общеобразовательное учреждение \"Средняя общеобразовательная школа №60\" город  Набережные Челны Республики Татарстан ",15940426069,"Абрукова","Анастасия","Викторовна","ж","15.11.2006","нет",10,10,9,{"$f":"SUM(M194:M194)","v":9},null,{"$f":"SUM(N194:O194)","v":9},60,"участник","нет","Насибуллина Маргарита Сергеевна","Муниципальное бюджетное общеобразовательное учреждение \"Средняя общеобразовательная школа №60\" город  Набережные Челны Республики Татарстан ","Биология"]
[194,"261008_14979903334_27","Муниципальное бюджетное общеобразовательное учреждение \"Средняя общеобразовательная школа №8\"город  Набережные Челны Республики Татарстан",14979903334,"Губайдуллин","Данис","Рустемович","м","05.12.2007","нет",10,10,11,{"$f":"SUM(M195:M195)","v":11},null,{"$f":"SUM(N195:O195)","v":11},60,"участник","нет","Савенко Любовь Михайловна","Муниципальное бюджетное общеобразовательное учреждение \"Средняя общеобразовательная школа №8\"город  Набережные Челны Республики Татарстан","Биология"]
[195,"261078_14703391449_27","Муниципальное автономное общеобразовательное учреждение \"Лицей №78 им. А. С. Пушкина\" город  Набережные Челны Республики Татарстан",14703391449,"Середа","Варвара","Андреевна","ж","29.04.2007","да",10,10,17,{"$f":"SUM(M196:M196)","v":17},null,{"$f":"SUM(N196:O196)","v":17},60,"участник","да","Сальникова Гульзера Рустамовна","Муниципальное автономное общеобразовательное учреждение \"Лицей №78 им. А. С. Пушкина\" город  Набережные Челны Республики Татарстан","Биология"]
[196,"261010_14823070549_27","Муниципальное бюджетное общеобразовательное учреждение \"Средняя общеобразовательная школа №10\" город  Набережные Челны Республики Татарстан",14823070549,"Недопекина","Изабелла","Алексеевна","ж","14.09.2007","нет",10,10,13,{"$f":"SUM(M197:M197)","v":13},null,{"$f":"SUM(N197:O197)","v":13},60,"участник","нет","Тукмачева Марина Михайловна","Муниципальное бюджетное общеобразовательное учреждение \"Средняя общеобразовательная школа №10\" город  Набережные Челны Республики Татарстан","Биология"]
[197,"261009_17228677493_27","Муниципальное бюджетное общеобразовательное учреждение «Средняя школа №9» город  Набережные Челны Республики Татарстан",17228677493,"Шамсумухаметова","Аделя","Ильдаровна","ж","2007-10-17","нет",10,10,23,{"$f":"SUM(M198:M198)","v":23},null,{"$f":"SUM(N198:O198)","v":23},60,"участник","нет","Якупова Наталья Валерьевна","Муниципальное бюджетное общеобразовательное учреждение «Средняя школа №9» город  Набережные Челны Республики Татарстан","Биология"]
[198,"263052_16198164693_27","Муниципальное бюджетное общеобразовательное учреждение \"Средняя общеобразовательная школа №52\" город Набережные Челны Республики Татарстан",16198164693,"Андреева","Дарина","Алексеевна","ж","18.07.2007","нет",10,10,10,{"$f":"SUM(M199:M199)","v":10},null,{"$f":"SUM(N199:O199)","v":10},60,"участник","нет","Нургалиеаа Элмира Фанисовна","Муниципальное бюджетное общеобразовательное учреждение \"Средняя общеобразовательная школа №52\" город Набережные Челны Республики Татарстан","Биология"]
[199,"261025_14883252591_27","Муниципальное бюджетное общеобразовательное учреждение \"Средняя общеобразовательная школа №25\" город Набережные Челны Республики Татарстан",14883252591,"Аникина","Ирина","Дмитриевна","ж","29.04.2007","нет",10,10,10,{"$f":"SUM(M200:M200)","v":10},null,{"$f":"SUM(N200:O200)","v":10},60,"участник","нет","Глусская Галина Викторовна","Муниципальное бюджетное общеобразовательное учреждение \"Средняя общеобразовательная школа №25\" город Набережные Челны Республики Татарстан","Биология"]
[200,"261039_16041698355_27","Муниципальное бюджетное общеобразовательное учреждение \"Средняя общеобразовательная школа №39\"город  Набережные Челны Республики Татарстан",16041698355,"Садертдинова","Лейла","Ренатовна","ж","05.02.2007","нет",10,10,22,{"$f":"SUM(M201:M201)","v":22},null,{"$f":"SUM(N201:O201)","v":22},60,"участник","нет","Галиева Гузалия Фагимовна","Муниципальное бюджетное общеобразовательное учреждение \"Средняя общеобразовательная школа №39\"город  Набережные Челны Республики Татарстан","Биология"]
[201,"263004_15954162289_27","Муниципальное автономное общеобразовательное учреждение \"Средняя общеобразовательная школа №4\" город  Набережные Челны Республики Татарстан ",15954162289,"Хабибуллина","Элина","Ринатовна","ж","05.03.2007","нет",10,10,9,{"$f":"SUM(M202:M202)","v":9},null,{"$f":"SUM(N202:O202)","v":9},60,"участник","нет","Агзамова Алия Василовна","Муниципальное автономное общеобразовательное учреждение \"Средняя общеобразовательная школа №4\" город  Набережные Челны Республики Татарстан ","Биология"]
[202,"263029_14494106361_27","Муниципальное бюджетное общеобразовательное учреждение \"Гимназия №29\" город  Набережные Челны Республики Татарстан",14494106361,"Хусаинова","Виктория","Дмитриевна","ж","04.01.2007","нет",10,10,13,{"$f":"SUM(M203:M203)","v":13},null,{"$f":"SUM(N203:O203)","v":13},60,"участник","нет","Газизова Ильсеяр Халисовна","Муниципальное бюджетное общеобразовательное учреждение \"Гимназия №29\" город  Набережные Челны Республики Татарстан","Биология"]
[203,"263058_14773742595_27","Муниципальное бюджетное общеобразовательное учреждение \" Средняя общеобразовательная школа №58\" город  Набережные Челны Республики Татарстан",14773742595,"Шамсутдинова","Дина","Рамилевна","ж","22.08.2007","нет",10,10,8,{"$f":"SUM(M204:M204)","v":8},null,{"$f":"SUM(N204:O204)","v":8},60,"участник","нет","Губьянова Оксана Михайловна","Муниципальное бюджетное общеобразовательное учреждение \" Средняя общеобразовательная школа №58\" город  Набережные Челны Республики Татарстан","Биология"]
[204,"261041_15976445929_27","Муниципальное бюджетное общеобразовательное учреждение \" Средняя обшеобразовательная школа№ 41\" город Набережные челны Республики Татарстан",15976445929,"Дементьева","Виктория","Александровна","ж","15.05.2007","нет",10,10,20,{"$f":"SUM(M205:M205)","v":20},null,{"$f":"SUM(N205:O205)","v":20},60,"участник","нет","Ахметзянова Валентина Сергеевна","Муниципальное бюджетное общеобразовательное учреждение \" Средняя обшеобразовательная школа№ 41\" город Набережные челны Республики Татарстан","Биология"]
[205,"261041_15915080369_27","Муниципальное бюджетное общеобразовательное учреждение \" Средняя обшеобразовательная школа№ 41\"город  Набережные челны Республики Татарстан",15915080369,"Хафизова","Азалия","Ильвировна","ж","25.06.2007","нет",10,10,9,{"$f":"SUM(M206:M206)","v":9},null,{"$f":"SUM(N206:O206)","v":9},60,"участник","нет","Ахметзянова Валентина Сергеевна","Муниципальное бюджетное общеобразовательное учреждение \" Средняя обшеобразовательная школа№ 41\"город  Набережные челны Республики Татарстан","Биология"]
[206,"261082_16221272525_27","Государственное бюджетное общеобразовательное учреждение \"Кадетская школа №82 имени Героя Советского Союза Ильдара Маннанова\" город Набережные Челны Республики Татарстан",16221272525,"Закиров","Тимур","Альбертович","м","26.10.2007","нет",10,10,7,{"$f":"SUM(M207:M207)","v":7},null,{"$f":"SUM(N207:O207)","v":7},60,"участник","нет","Стеганцева Ирина Петровна","Государственное бюджетное общеобразовательное учреждение \"Кадетская школа №82 имени Героя Советского Союза Ильдара Маннанова\" город Набережные Челны Республики Татарстан","Биология"]
[207,"261031_14956697431_27","Муниципальное бюджетное общеобразовательное учреждение \"Средняя общеобразовательная школа №31 с углубленным изучением отдельных предметов\" город Набережные Челны Республики Татарстан",14956697431,"Абрамова","Софья","Михайловна","ж","11.12.2007","нет",10,10,23,{"$f":"SUM(M208:M208)","v":23},null,{"$f":"SUM(N208:O208)","v":23},60,"участник","нет","Зырянова Людмила Валерьевна","Муниципальное бюджетное общеобразовательное учреждение \"Средняя общеобразовательная школа №31 с углубленным изучением отдельных предметов\" город Набережные Челны Республики Татарстан","Биология"]
[208,"263029_14559287500_27","Муниципальное бюджетное общеобразовательное учреждение \"Гимназия №29\" город Набережные Челны Республики Татарстан",14559287500,"Попов","Владислав","Александрович","м","14.01.2007","нет",10,10,7,{"$f":"SUM(M209:M209)","v":7},null,{"$f":"SUM(N209:O209)","v":7},60,"участник","нет","Газизова Ильсеяр Халисовна","Муниципальное бюджетное общеобразовательное учреждение \"Гимназия №29\" город Набережные Челны Республики Татарстан","Биология"]
[209,"261035_14809567497_27","Муниципальное автономное общеобразовательное учреждение  \"Средняя общеобразовтельная школа №35 с углубленным изучением отдельных предметов\" город  Набережные Челны Республики Татарстан",14809567497,"Зайнуллина","Алия","Равилевна","ж","10.06.2007","нет",10,10,9,{"$f":"SUM(M210:M210)","v":9},null,{"$f":"SUM(N210:O210)","v":9},60,"участник","нет","Саетова Гульшат Вагизовна","Муниципальное автономное общеобразовательное учреждение  \"Средняя общеобразовтельная школа №35 с углубленным изучением отдельных предметов\" город  Набережные Челны Республики Татарстан","Биология"]
[210,"261028_16243432139_27","Муниципальное бюджетное общеобразовательное учреждение \"Средняя общеобразовательная школа №28\" город  Набережные Челны Республики Татарстан",16243432139,"Тудирякова","Диана","Дмитриевна","ж","22.08.2007","нет",10,10,8,{"$f":"SUM(M211:M211)","v":8},null,{"$f":"SUM(N211:O211)","v":8},60,"участник","нет","Ялалова Рита Адельшиновна","Муниципальное бюджетное общеобразовательное учреждение \"Средняя общеобразовательная школа №28\" город  Набережные Челны Республики Татарстан","Биология"]
[211,"263029_15405349447_27","Муниципальное бюджетное общеобразовательное учреждение \"Гимназия №29\" город  Набережные Челны Республики Татарстан",15405349447,"Мингазова","Аделя","Фанилевна","ж","04.10.2006","нет",10,10,7,{"$f":"SUM(M212:M212)","v":7},null,{"$f":"SUM(N212:O212)","v":7},60,"участник","нет","Газизова Ильсеяр Халисовна","Муниципальное бюджетное общеобразовательное учреждение \"Гимназия №29\" город  Набережные Челны Республики Татарстан","Биология"]
[212,"261048_16022774742_27","Муниципальное автономное общеобразовательное учреждение города Набережные Челны \"Средняя общеобразовательная школа №48\" город  Набережные Челны Республики Татарстан ",16022774742,"Хакимзянов","Данияр","Ришатович","м","02.01.2007","нет",10,10,9,{"$f":"SUM(M213:M213)","v":9},null,{"$f":"SUM(N213:O213)","v":9},60,"участник","нет","Назырова Аделя Азатовна","Муниципальное автономное общеобразовательное учреждение города Набережные Челны \"Средняя общеобразовательная школа №48\" город  Набережные Челны Республики Татарстан ","Биология"]
[213,"261009_15980070282_27","Муниципальное бюджетное общеобразовательное учреждение \"Средняя школа №9\" город  Набережные Челны Республики Татарстан",15980070282,"Сираева","Лилия","Маратовна","ж","06.11.006","нет",10,10,18,{"$f":"SUM(M214:M214)","v":18},null,{"$f":"SUM(N214:O214)","v":18},60,"участник","нет","Якупова Наталья Валерьевна","Муниципальное бюджетное общеобразовательное учреждение \"Средняя школа №9\" город  Набережные Челны Республики Татарстан","Биология"]
[214,"261057_16012988351_27","Муниципальное бюджетное общеобразовательное учреждение \"Центр образования - Гимназия №57 \"Притяжение\" город Набережные Челны Республики Татарстан",16012988351,"Сидорова","Ксения","Александровна","ж","07.08.2007","нет",10,10,7,{"$f":"SUM(M215:M215)","v":7},null,{"$f":"SUM(N215:O215)","v":7},60,"участник","нет","Юскаева Чулпан Мухаметнуровна","Муниципальное бюджетное общеобразовательное учреждение \"Центр образования - Гимназия №57 \"Притяжение\" город Набережные Челны Республики Татарстан","Биология"]
[215,"261008_14692483193_27","Муниципальное бюджетное общеобразовательное учреждение \"Средняя общеобразовательная школа №8\"город  Набережные Челны Республики Татарстан",14692483193,"Мубаракшина","Азалия","Ильнаровна","ж","11.05.2007","нет",10,10,6,{"$f":"SUM(M216:M216)","v":6},null,{"$f":"SUM(N216:O216)","v":6},60,"участник","нет","Савенко Любовь Михайловна","Муниципальное бюджетное общеобразовательное учреждение \"Средняя общеобразовательная школа №8\"город  Набережные Челны Республики Татарстан","Биология"]
[216,"261048_17814876515_27","Муниципальное автономное общеобразовательное учреждение  \"Средняя общеобразовательная школа №48\" город  Набережные Челны Республики Татарстан ",17814876515,"Осипов","Сергей","Александрович","м","17.01.2007","нет",10,10,10,{"$f":"SUM(M217:M217)","v":10},null,{"$f":"SUM(N217:O217)","v":10},60,"участник","нет","Назырова Аделя Азатовна","Муниципальное автономное общеобразовательное учреждение  \"Средняя общеобразовательная школа №48\" город  Набережные Челны Республики Татарстан ","Биология"]
[217,"261037_14863090478_27","Муниципальное бюджетное общеобразовательное учреждение\"Средняя общеобразовательное школа № 37 с углубленным изучением отдельных предметов\"г.Набережные Челны Республики Татарстан",14863090478,"Багаев","Рамиль","Русланович","м","15.06.2007","нет",10,10,8,{"$f":"SUM(M218:M218)","v":8},null,{"$f":"SUM(N218:O218)","v":8},60,"участник","нет","Сабирова Гузель Ракиповна","Муниципальное бюджетное общеобразовательное учреждение\"Средняя общеобразовательное школа № 37 с углубленным изучением отдельных предметов\"г.Набережные Челны Республики Татарстан","Биология"]
[218,"261011_14995943439_27","Муниципальное бюджетное общеобразовательное учреждение \"Средняя общеобразовательная школа № 11\" город  Набережные Челны Республики Татарстан",14995943439,"Гимадиева","Диляра","Маратовна","ж","18.12.2007","нет",10,10,5,{"$f":"SUM(M219:M219)","v":5},null,{"$f":"SUM(N219:O219)","v":5},60,"участник","нет","Ахметшина Гузель Рустамовна","Муниципальное бюджетное общеобразовательное учреждение \"Средняя общеобразовательная школа № 11\" город  Набережные Челны Республики Татарстан","Биология"]
[219,"261057_15976452017_27","Муниципальное бюджетное общеобразовательное учреждение \"Центр образования - Гимназия №57 \"Притяжение\" город Набережные Челны Республики Татарстан",15976452017,"Матулаева","Азалия","Анатольевна","ж","22.02.2007","нет",10,10,8,{"$f":"SUM(M220:M220)","v":8},null,{"$f":"SUM(N220:O220)","v":8},60,"участник","нет","Юскаева Чулпан Мухаметнуровна","Муниципальное бюджетное общеобразовательное учреждение \"Центр образования - Гимназия №57 \"Притяжение\" город Набережные Челны Республики Татарстан","Биология"]
[220,"261031_14831770472_27","Муниципальное бюджетное общеобразовательное учреждение \"Средняя общеобразовательная школа №31 с углубленным изучением отдельных предметов\" город Набережные Челны Республики Татарстан",14831770472,"Ахмедьянова","Эвелина","Рафаэлевна","ж","17.11.2007","нет",10,10,16,{"$f":"SUM(M221:M221)","v":16},null,{"$f":"SUM(N221:O221)","v":16},60,"участник","нет","Зырянова Людмила Валерьевна","Муниципальное бюджетное общеобразовательное учреждение \"Средняя общеобразовательная школа №31 с углубленным изучением отдельных предметов\" город Набережные Челны Республики Татарстан","Биология"]
[221,"263004_16341065135_27","Муниципальное автономное общеобразовательное учреждение  \"Средняя общеобразовательная школа №4\" город  Набережные Челны Республики Татарстан  ",16341065135,"Галиева","Ильсина","Ильнаровна","ж","12.10.2007","нет",10,10,12,{"$f":"SUM(M222:M222)","v":12},null,{"$f":"SUM(N222:O222)","v":12},60,"участник","нет","Агзамова Алия Василовна","Муниципальное автономное общеобразовательное учреждение  \"Средняя общеобразовательная школа №4\" город  Набережные Челны Республики Татарстан  ","Биология"]
[222,"261019_16043609845_27","Муниципальное бюджетное общеобразовательное учреждение \"Средняя общеобразовательная школа №19 с углубленным изучением отдельных предметов\" город  Набережные Челны Республики Татарстан",16043609845,"Ахметшина","Аделя","Румилевна","ж","03.04.2007","нет",10,10,11,{"$f":"SUM(M223:M223)","v":11},null,{"$f":"SUM(N223:O223)","v":11},60,"участник","нет","Азовцева Альфия Мирзаяновна","Муниципальное бюджетное общеобразовательное учреждение \"Средняя общеобразовательная школа №19 с углубленным изучением отдельных предметов\" город  Набережные Челны Республики Татарстан","Биология"]
[223,"261051_16043611933_27","Муниципальное автономное общеобразовательное учреждение  \"Средняя общеобразовательная школа №51\" город  Набережные Челны Республики Татарстан",16043611933,"Галеева","Амира","Радиковна","ж","08.03.2007","нет",10,10,10,{"$f":"SUM(M224:M224)","v":10},null,{"$f":"SUM(N224:O224)","v":10},60,"участник","нет","Лазарева Нататья Ивановна","Муниципальное автономное общеобразовательное учреждение  \"Средняя общеобразовательная школа №51\" город  Набережные Челны Республики Татарстан","Биология"]
[224,"261040_16144895177_27","Муниципальное автомное общеобразовательное учреждение \"Средняя общеобразовательная школа № 40 с углубленным изучением отдельных предметов\" город  Набережные Челны Республики Татарстан",16144895177,"Дмитриева","Анастасия","Максимовна","ж","2007-11-03","нет",10,10,10,{"$f":"SUM(M225:M225)","v":10},null,{"$f":"SUM(N225:O225)","v":10},60,"участник","нет","Шарипова Тазкира Халитовна","Муниципальное автомное общеобразовательное учреждение \"Средняя общеобразовательная школа № 40 с углубленным изучением отдельных предметов\" город  Набережные Челны Республики Татарстан","Биология"]
[225,"261049_15663532983_27","Муниципальное автономное общеобразовательное учреждение \"Кадетская школа №49\" город  Набережные Челны Республики Татарстан",15663532983,"Халиуллина","Ильвина","Маратовна","ж","06.11.2007","нет",10,10,7,{"$f":"SUM(M226:M226)","v":7},null,{"$f":"SUM(N226:O226)","v":7},60,"участник","нет","Закирова Фирдавус Завитовна","Муниципальное автономное общеобразовательное учреждение \"Кадетская школа №49\" город  Набережные Челны Республики Татарстан","Биология"]
[226,"263003_15970310775_27","Муниципальное бюджетное общеобразовательное учреждение \"Средняя общеобразовательная школа №3\" город Набережные Челны Республики Татарстан",15970310775,"Келлер","Маргарита","Петровна","ж","15.03.2007","нет",10,10,11,{"$f":"SUM(M227:M227)","v":11},null,{"$f":"SUM(N227:O227)","v":11},60,"участник","нет","Ахметзянова Рамиля Асгатовна","Муниципальное бюджетное общеобразовательное учреждение \"Средняя общеобразовательная школа №3\" город Набережные Челны Республики Татарстан","Биология"]
[227,"261006_16096155776_27","Муниципальное бюджетное общеобразовательное учреждение «Средняя общеобразовательная школа №6» город  Набережные Челны Республики Татарстан",16096155776,"Недогода","Евгения","Александровна","ж","23.01.2007","нет",10,10,9,{"$f":"SUM(M228:M228)","v":9},null,{"$f":"SUM(N228:O228)","v":9},60,"участник","нет","Абдуллаева Ольга Николаевна","Муниципальное бюджетное общеобразовательное учреждение «Средняя общеобразовательная школа №6» город  Набережные Челны Республики Татарстан","Биология"]
[228,"261049_15960733494_27","Муниципальное автономное общеобразовательное учреждение \"Кадетская школа №49\" город  Набережные Челны Республики Татарстан",15960733494,"Шолик","Сергей","Александрович","м","26.12.2006","нет",10,10,7,{"$f":"SUM(M229:M229)","v":7},null,{"$f":"SUM(N229:O229)","v":7},60,"участник","нет","Закирова Фирдавус Завитовна","Муниципальное автономное общеобразовательное учреждение \"Кадетская школа №49\" город  Набережные Челны Республики Татарстан","Биология"]
[229,"263058_16008313017_27","Муниципальное бюджетное общеобразовательное учреждение \" Средняя общеобразовательная школа №58\"город  Набережные Челны Республики Татарстан",16008313017,"Фасхутдинова","Бриллиант","Ильнаровна","ж","03.07.2007","нет",10,10,7,{"$f":"SUM(M230:M230)","v":7},null,{"$f":"SUM(N230:O230)","v":7},60,"участник","нет","Губьянова Оксана Михайловна","Муниципальное бюджетное общеобразовательное учреждение \" Средняя общеобразовательная школа №58\"город  Набережные Челны Республики Татарстан","Биология"]
[230,"261046_15963895636_27","Муниципальное бюджетное общеобразовательное учреждение \"Средняя общеобразовательная школа №46 имени кавалера ордена Мужества Дмитрия Бадретдинова\" город  Набережные Челны Республики Татарстан",15963895636,"Гнеденкова","Злата","Олеговна","ж","26.02.2007","нет",10,10,7,{"$f":"SUM(M231:M231)","v":7},null,{"$f":"SUM(N231:O231)","v":7},60,"участник","нет","Валитова Зиля Фаритовна","Муниципальное бюджетное общеобразовательное учреждение \"Средняя общеобразовательная школа №46 имени кавалера ордена Мужества Дмитрия Бадретдинова\" город  Набережные Челны Республики Татарстан","Биология"]
[231,"261055_15915079889_27","Муниципальное автономное общеобразовательное учреждение города Набережные Челны \"Средняя общеобразовательная школа №55\"город  Набережные Челны Республики Татарстан",15915079889,"Нигматуллина","Зарина","Алмазовна","ж","28.03.2007","нет",10,10,8,{"$f":"SUM(M232:M232)","v":8},null,{"$f":"SUM(N232:O232)","v":8},60,"участник","нет","Оруджева Наталья Викторовна","Муниципальное автономное общеобразовательное учреждение города Набережные Челны \"Средняя общеобразовательная школа №55\"город  Набережные Челны Республики Татарстан","Биология"]
[232,"263079_15579952327_27","Муниципальное бюджетное общеобразовательное учереждение \"Лицей-интернат №79\" город  Набережные Челны Республики Татарстан",15579952327,"Нуриев","Халиль","Рустемович","м","18.04.2007","нет",10,10,7,{"$f":"SUM(M233:M233)","v":7},null,{"$f":"SUM(N233:O233)","v":7},60,"участник","нет","Бариева Назия Галимулловна","Муниципальное бюджетное общеобразовательное учереждение \"Лицей-интернат №79\" город  Набережные Челны Республики Татарстан","Биология"]
[233,"261006_15970026576_27","Муниципальное бюджетное общеобразовательное учреждение \"Средняя общеобразовательная школа №6\"город  Набережные Челны Республики Татарстан",15970026576,"Буторина","Диана","Александровна","ж","12.08.2007","нет",10,10,9,{"$f":"SUM(M234:M234)","v":9},null,{"$f":"SUM(N234:O234)","v":9},60,"участник","нет","Абдуллаева Ольга Николаевна","Муниципальное бюджетное общеобразовательное учреждение \"Средняя общеобразовательная школа №6\"город  Набережные Челны Республики Татарстан","Биология"]
[234,"261037_14488495614_27","Муниципальное бюджетное общеобразовательное учреждение\"Средняя общеобразовательное школа № 37 с углубленным изучением отдельных предметов\" город Набережные Челны Республики Татарстан",14488495614,"Константинов","Пётр","Кириллович","м","13.01.2007","нет",10,10,7,{"$f":"SUM(M235:M235)","v":7},null,{"$f":"SUM(N235:O235)","v":7},60,"участник","нет","Сабирова Гузель Ракиповна","Муниципальное бюджетное общеобразовательное учреждение\"Средняя общеобразовательное школа № 37 с углубленным изучением отдельных предметов\" город Набережные Челны Республики Татарстан","Биология"]
[235,"261032_18048979212_27","Муниципальное бюджетное общеобразовательное учреждение \"Средняя общеобразовательная школа № 32 с углубленным изучением отдельных предметов\"  город  Набережные Челны Республики Татарстан",18048979212,"Сенатуллова","Софья","Дмитриевна","ж","14.11.2006","нет",10,10,8,{"$f":"SUM(M236:M236)","v":8},null,{"$f":"SUM(N236:O236)","v":8},60,"участник","нет","Сахабиева Алсу Габделбаровна","Муниципальное бюджетное общеобразовательное учреждение \"Средняя общеобразовательная школа № 32 с углубленным изучением отдельных предметов\"  город  Набережные Челны Республики Татарстан","Биология"]
[236,"261082_15006405004_27","Государственное бюджетное общеобразовательное учреждение \"Кадетская школа №82 имени Героя Советского Союза Ильдара Маннанова\" город  Набережные Республики Татарстан",15006405004,"Глухова","Вероника","Владимировна","ж","28.10.2007","нет",10,10,8,{"$f":"SUM(M237:M237)","v":8},null,{"$f":"SUM(N237:O237)","v":8},60,"участник","нет","Стеганцева Ирина Петровна","Государственное бюджетное общеобразовательное учреждение \"Кадетская школа №82 имени Героя Советского Союза Ильдара Маннанова\" город  Набережные Республики Татарстан","Биология"]
[237,"263003_15970309891_27","Муниципальное бюджетное общеобразовательное учреждение \"Средняя общеобразовательная школа №3\" город Набережные Челны Республики Татарстан",15970309891,"Данилова","Аделина","Радиковна","ж","03.06.2007","нет",10,10,3,{"$f":"SUM(M238:M238)","v":3},null,{"$f":"SUM(N238:O238)","v":3},60,"участник","нет","Ахметзянова Рамиля Асгатовна","Муниципальное бюджетное общеобразовательное учреждение \"Средняя общеобразовательная школа №3\" город Набережные Челны Республики Татарстан","Биология"]
[238,"261035_15954152791_27","Муниципальное автономное общеобразовательное учреждение \"Средняя общеобразовтельная школа №35 с углубленным изучением отдельных предметов\" город  Набережные Челны Республики Татарстан",15954152791,"Гайнуллина","Рушания","Эдуардовна","ж","22.12.2006","нет",10,10,3,{"$f":"SUM(M239:M239)","v":3},null,{"$f":"SUM(N239:O239)","v":3},60,"участник","нет","Саетова Гульшат Вагизовна","Муниципальное автономное общеобразовательное учреждение \"Средняя общеобразовтельная школа №35 с углубленным изучением отдельных предметов\" город  Набережные Челны Республики Татарстан","Биология"]
[239,"261019_16026481646_27","Муниципальное бюджетное общеобразовательное учреждение \"Средняя общеобразовательная школа №19 с углубленным изучением отдельных предметов\"город Набережные Челны Республики Татарстан",16026481646,"Иванова","София","Васильевна","ж","25.12.2005","нет",11,11,"21",54,null,54,69,"победитель","Да","Азовцева Альфия Мирзаяновна","Муниципальное бюджетное общеобразовательное учреждение \"Средняя общеобразовательная школа №19 с углубленным изучением отдельных предметов\"город Набережные Челны Республики Татарстан","Биология"]
[240,"261030_16026476047_27","Муниципальное бюджетное общеобразовательное учреждение \"Средняя общеобразовательная школа №30\" города Набережные Челны Республики Татарстан",16026476047,"Васюкова","Диана","Григорьевна","ж","09.01.2006","нет",11,11,"19",53.5,null,53.5,69,"призер","нет","Андрианова Альбина Абдулхатовна","Муниципальное бюджетное общеобразовательное учреждение \"Средняя общеобразовательная школа №30\" города Набережные Челны Республики Татарстан","Биология"]
[241,"261041_15976453221_27","Муниципальное бюджетное общеобразовательное учреждение \" Средняя обшеобразовательная школа№ 41\" город Набережные Челны Республики Татарстан",15976453221,"Мусаллимова","Рината","Айратовна","ж","15.09.2006","нет",11,11,"22",52.5,null,52.5,69,"призер","Да","Ахметзянова Валентина Сергеевна","Муниципальное бюджетное общеобразовательное учреждение \" Средняя обшеобразовательная школа№ 41\" город Набережные Челны Республики Татарстан","Биология"]
[242,"261035_15977850539_27","Муниципальное автономное общеобразовательное учреждение  \"Средняя общеобразовтельная школа №35 с углубленным изучением отдельных предметов\" город Набережные Челны Республики Татарстан",15977850539,"Гилязова","Самира","Азатовна","ж","07.07.2006","нет",11,11,"15",46,null,46,69,"призер","нет","Саетова Гульшат Вагизовна","Муниципальное автономное общеобразовательное учреждение  \"Средняя общеобразовтельная школа №35 с углубленным изучением отдельных предметов\" город Набережные Челны Республики Татарстан","Биология"]
[243,"261078_15960781101_27","Муниципальное автономное общеобразовательное учреждение \"Лицей №78 им. А. С. Пушкина\"город Набережные Челны Республики Татарстан",15960781101,"Бухарова","Кира","Александровна","ж","15.02.2006","нет",11,11,"19",45.5,null,45.5,69,"призер","нет","Каширина Татьяна Юрьевна","Муниципальное автономное общеобразовательное учреждение \"Лицей №78 им. А. С. Пушкина\"город Набережные Челны Республики Татарстан","Биология"]
[244,"261078_15976885149_27","Муниципальное автономное общеобразовательное учреждение \"Лицей №78 им. А. С. Пушкина\"город Набережные Челны Республики Татарстан",15976885149,"Несифорова","Софья","Олеговна","ж","23.10.2006","нет",11,11,"17",45.5,null,45.5,69,"призер","нет","Каширина Татьяна Юрьевна","Муниципальное автономное общеобразовательное учреждение \"Лицей №78 им. А. С. Пушкина\"город Набережные Челны Республики Татарстан","Биология"]
[245,"261078_17212386042_27","Муниципальное автономное общеобразовательное учреждение \"Лицей №78 им. А. С. Пушкина\"город Набережные Челны Республики Татарстан",17212386042,"Шомурадова","Дарья","Сергеевна","ж","06.06.2006","нет",11,11,"18",44.5,null,44.5,69,"призер","нет","Каширина Татьяна Юрьевна","Муниципальное автономное общеобразовательное учреждение \"Лицей №78 им. А. С. Пушкина\"город Набережные Челны Республики Татарстан","Биология"]
[246,"261026_15971261389_27","Муниципальное бюджетное общеобразовательное учреждение \"Гимназия №26\" город Набережные Челны Республики Татарстан",15971261389,"Абдуллина","Эльвина","Марселевна","ж","13.11.2006","нет",11,11,"19",43,null,43,69,"призер","нет","Моисеева Инна Анатольевна","Муниципальное бюджетное общеобразовательное учреждение \"Гимназия №26\" город Набережные Челны Республики Татарстан","Биология"]
[247,"261030_16028768373_27","Муниципальное бюджетное общеобразовательное учреждение \" Средняя общеобразовательная школа №30\"город Набережные Челны Республики Татарстан",16028768373,"Шулятьева","Софья","Петровна","ж","2006-10-23","нет",11,11,15,43,null,43,69,"призер","нет","Андрианова Альбина Абдулхатовна","Муниципальное бюджетное общеобразовательная учреждение \" Средняя общеобразовательная школа №30\"город Набережные Челны Республики Татарстан","Биология"]
[248,"261026_15960576807_27","Муниципальное бюджетное общеобразовательное учреждение \"Гимназия №26\" город Набережные Челны Республики Татарстан",15960576807,"Зидыбаева","Юлия","Александровна","ж","28.02.2006","нет",11,11,"13",42.5,null,42.5,69,"призер","нет","Моисеева Инна Анатольевна","Муниципальное бюджетное общеобразовательное учреждение \"Гимназия №26\" город Набережные Челны Республики Татарстан","Биология"]
[249,"261078_16078615883_27","Муниципальное автономное общеобразовательное учреждение \"Лицей №78 им. А. С. Пушкина\"город Набережные Челны Республики Татарстан",16078615883,"Султанова","Ралина","Камилевна","ж","05.11.2005","нет",11,11,"13",42,null,42,69,"призер","нет","Каширина Татьяна Юрьевна","Муниципальное автономное общеобразовательное учреждение \"Лицей №78 им. А. С. Пушкина\"город Набережные Челны Республики Татарстан","Биология"]
[250,"261024_16921134397_27","Муниципальное бюджетное общеобразовательное учреждение \"Средняя общеобразовательная школа №24 с углубленным изучением отдельных предметов\" город н Набережные Челны Республики Татарстан",16921134397,"Морозова","Анастасия","Александровна","ж","26.11.2005","нет",11,11,"16",42,null,42,69,"призер","нет","Смирнов Борис Александрович","Муниципальное бюджетное общеобразовательное учреждение \"Средняя общеобразовательная школа №24 с углубленным изучением отдельных предметов\" город н Набережные Челны Республики Татарстан","Биология"]
[251,"261019_16002636112_27","Муниципальное бюджетное общеобразовательное учреждение \"Средняя общеобразовательная школа №19 с углубленным изучением отдельных предметов\"город Набережные Челны Республики Татарстан",16002636112,"Гараев","Ильдар","Сергеевич","м","2005-12-16","нет",11,11,"17",49,null,49,69,"призер","нет","Азовцева Альфия Мирзаяновна","Муниципальное бюджетное общеобразовательная учреждение \" Средняя общеобразовательная школа №30\"город Набережные Челны Республики Татарстан","Биология"]
[252,"261019_16002636112_27","Муниципальное бюджетное общеобразовательное учреждение \"Средняя общеобразовательная школа №19 с углубленным изучением отдельных предметов\"город Набережные Челны Республики Татарстан",16002636112,"Строд","Нкита","Андреевич","м","27.07.2006","нет",11,11,"17",44.5,null,44.5,69,"призер","нет","Азовцева Альфия Мирзаяновна","Муниципальное бюджетное общеобразовательное учреждение \"Средняя общеобразовательная школа №19 с углубленным изучением отдельных предметов\"город Набережные Челны Республики Татарстан","Биология"]
[253,"261026_15971272192_27","Муниципальное бюджетное общеобразовательное учреждение \"Гимназия №26\" города Набережные Челны Республики Татарстан",15971272192,"Юсупов","Айсаф","Ильдарович","м","08.02.2006","нет",11,11,"15",44,null,44,69,"призер","да","Моисеева Инна Анатольевна","Муниципальное бюджетное общеобразовательное учреждение \"Гимназия №26\" города Набережные Челны Республики Татарстан","Биология"]
[254,"261026_16052522733_27","Муниципальное бюджетное общеобразовательное учреждение \"Гимназия №26\" город Набережные Челны Республики Татарстан",16052522733,"Насибуллин","Тимур","Талипович","м","22.08.2006","нет",11,11,"13",42.5,null,42.5,69,"призер","нет","Моисеева Инна Анатольевна","Муниципальное бюджетное общеобразовательное учреждение \"Гимназия №26\" город Набережные Челны Республики Татарстан","Биология"]
[255,"261030_16518095983_27","Муниципальное бюджетное общеобразовательное учреждение \" Средняя общеобразовательная школа №30\"город Набережные Челны Республики Татарстан",16518095983,"Габдуллин ","Райнур","Ильнурович","м","2006-08-11","нет",11,11,"19",42.5,null,42.5,69,"призер","нет","Андрианова Альбина Абдулхатовна","Муниципальное бюджетное общеобразовательная учреждение \" Средняя общеобразовательная школа №30\"город Набережные Челны Республики Татарстан","Биология"]
[256,"261026_15440698471_27","Муниципальное бюджетное общеобразовательное учреждение \"Гимназия №26\" город Набережные Челны Республики Татарстан",15440698471,"Таранова","Ксения","Алексеевна","ж","17.05.2006","нет",11,11,"13",41.5,null,41.5,69,"участник","нет","Моисеева Инна Анатольевна","Муниципальное бюджетное общеобразовательное учреждение \"Гимназия №26\" город Набережные Челны Республики Татарстан","Биология"]
[257,"261076_16043648956_27","Муниципальное автономное общеобразовательное учреждение  \"Гимназия №76\"город Набережные Челны Республики Татарстан",16043648956,"Бородина","Анастасия","Сергеевна","ж","28.11.2005","нет",11,11,"16",41.5,null,41.5,69,"участник","нет","Ахметова Елена Николаевна","Муниципальное автономное общеобразовательное учреждение  \"Гимназия №76\"город Набережные Челны Республики Татарстан","Биология"]
[258,"261026_15960569305_27","Муниципальное бюджетное общеобразовательное учреждение \"Гимназия №26\" город Набережные Челны Республики Татарстан",15960569305,"Аверьянова","Софья","Константиновна","ж","27.11.2005","нет",11,11,"16",41,null,41,69,"участник","нет","Моисеева Инна Анатольевна","Муниципальное бюджетное общеобразовательное учреждение \"Гимназия №26\" город Набережные Челны Республики Татарстан","Биология"]
[259,"261056_14596209994_27","Муниципальное автономное общеобразовательное учреждение \"Средняя общеобразовательная школа №56\"город Набережные Челны Республики Татарстан",14596209994,"Белькова","Ангелина","Евгеньевна","ж","09.03.2006","нет",11,11,"15",41,null,41,69,"участник","нет","Махмутова Ландыш Сабирзяновна","Муниципальное автономное общеобразовательное учреждение \"Средняя общеобразовательная школа №56\"город Набережные Челны Республики Татарстан","Биология"]
[260,"261078_15628684502_27","Муниципальное автономное общеобразовательное учреждение \"Лицей №78 им. А. С. Пушкина\"город Набережные Челны Республики Татарстан",15628684502,"Гарипова","Диляра","Азатовна","ж","21.08.2006","нет",11,11,"12",41,null,41,69,"участник","нет","Каширина Татьяна Юрьевна","Муниципальное автономное общеобразовательное учреждение \"Лицей №78 им. А. С. Пушкина\"город Набережные Челны Республики Татарстан","Биология"]
[261,"261030_16043662647_27","Муниципальное бюджетное общеобразовательное учреждение \"Средняя общеобразовательная школа №30\" города Набережные Челны Республики Татарстан",16043662647,"Хайдаршина","Элина","Ильдаровна","ж","16.03.2006","нет",11,11,"15",40.5,null,40.5,69,"участник","нет","Андрианова Альбина Абдулхатовна","Муниципальное бюджетное общеобразовательное учреждение \"Средняя общеобразовательная школа №30\" города Набережные Челны Республики Татарстан","Биология"]
[262,"261030_15960586709_27","Муниципальное бюджетное общеобразовательное учреждение \"Средняя общеобразовательная школа №30\" город Набережные Челны Республики Татарстан",15960586709,"Кулагина","Анастасия","Сергеевна","ж","07.02.2006","нет",11,11,"12",40.5,null,40.5,69,"участник","нет","Андрианова Альбина Абдулхатовна","Муниципальное бюджетное общеобразовательное учреждение \"Средняя общеобразовательная школа №30\" город Набережные Челны Республики Татарстан","Биология"]
[263,"261024_16096161872_27","Муниципальное бюджетное общеобразовательное учреждение \"Средняя общеобразовательная школа №24 с углубленным изучением отдельных предметов\" город Набережные Челны Республики Татарстан",16096161872,"Хусаенова","Алина","Марселевна","ж","17.03.2006","нет",11,11,"17",40,null,40,69,"участник","да","Смирнов Борис Александрович","Муниципальное бюджетное общеобразовательное учреждение \"Средняя общеобразовательная школа №24 с углубленным изучением отдельных предметов\" город Набережные Челны Республики Татарстан","Биология"]
[264,"261060_15504219032_27","Муниципальное бюджетное общеобразовательное учреждение \"Средняя общеобразовательная школа №60\"город Набережные Челны Республики Татарстан",15504219032,"Рыбалко","Вероника","Владимировна","ж","14.04.2006","нет",11,11,"11",40,null,40,69,"участник","нет","Насибуллина Маргарита Сергеевна","Муниципальное бюджетное общеобразовательное учреждение \"Средняя общеобразовательная школа №60\"город Набережные Челны Республики Татарстан","Биология"]
[265,"263084_15224528844_27","Муниципальное автономное общеобразовательное учреждение \"Лицей-интернат №84 имени Гали Акыша\"город Набережные Челны Республики Татарстан",15224528844,"Замалтдинова","Рузия","Талгатовна","ж","18.11.2005","нет",11,11,"13",39,null,39,69,"участник","нет","Хабибулина Алсу Сабирзяновна","Муниципальное автономное общеобразовательное учреждение \"Лицей-интернат №84 имени Гали Акыша\"город Набережные Челны Республики Татарстан","Биология"]
[266,"263084_15975368730_27","Муниципальное автономное общеобразовательное учреждение  \"Лицей-интернат №84 имени Гали Акыша\"город Набережные Челны Республики Татарстан",15975368730,"Исхакова","Диляра","Рафисовна","ж","09.01.2006","нет",11,11,"15",39,null,39,69,"участник","нет","Хабибулина Алсу Сабирзяновна","Муниципальное автономное общеобразовательное учреждение  \"Лицей-интернат №84 имени Гали Акыша\"город Набережные Челны Республики Татарстан","Биология"]
[267,"261008_16042169636_27","Муниципальное бюджетное общеобразовательное учреждение \"Средняя общеобразовательная школа №8\"город Набережные Челны Республики Татарстан",16042169636,"Нуриева","Лиана","Ильназовна","ж","15.07.2006","нет",11,11,"12",38.5,null,38.5,69,"участник","нет","Савенко Любовь Михайловна","Муниципальное бюджетное общеобразовательное учреждение \"Средняя общеобразовательная школа №8\"город Набережные Челны Республики Татарстан","Биология"]
[268,"261076_15940428578_27","Муниципальное автономное общеобразовательное учреждение  \"Гимназия №76\"город Набережные Челны Республики Татарстан",15940428578,"Валитова","Диана","Ильнаровна","ж","12.10.2006","нет",11,11,"11",37.5,null,37.5,69,"участник","нет","Ахметова Елена Николаевна","Муниципальное автономное общеобразовательное учреждение  \"Гимназия №76\"город Набережные Челны Республики Татарстан","Биология"]
[269,"261041_15975377933_27","Муниципальное бюджетное общеобразовательное учреждение \" Средняя обшеобразовательная школа№ 41\"город Набережные Челны Республики Татарстан",15975377933,"Таипова","Диана","Ренатовна","ж","31.08.2006","нет",11,11,"12",37,null,37,69,"участник","нет","Ахметзянова Валентина Сергеевна","Муниципальное бюджетное общеобразовательное учреждение \" Средняя обшеобразовательная школа№ 41\"город Набережные Челны Республики Татарстан","Биология"]
[270,"263052_15954113983_27","Муниципальное бюджетное общеобразовательное учреждение \"Средняя общеобразовательная школа №52\" города Набережные Челны Республики Татарстан",15954113983,"Сайфутдинова","Карина","Радиковна","ж","20.02.2006","нет",11,11,"11",36,null,36,69,"участник","нет","Нургалиеаа Элмира Фанисовна","Муниципальное бюджетное общеобразовательное учреждение \"Средняя общеобразовательная школа №52\" города Набережные Челны Республики Татарстан","Биология"]
[271,"261040_16019316741_27","Муниципальное автономное общеобразовательное учреждение  \"Средняя общеобразовательная школа №40 с углубленным изучением\"город Набережные Челны Республики Татарстан",16019316741,"Гильман","Софья","Витальевна","ж","07.10.2006","нет",11,11,"10",35.5,null,35.5,69,"участник","нет","Шарипова Тазкира Халитовна","Муниципальное автономное общеобразовательное учреждение  \"Средняя общеобразовательная школа №40 с углубленным изучением\"город Набережные Челны Республики Татарстан","Биология"]
[272,"261035_15944104774_27","Муниципальное автономное общеобразовательное учреждение  \"Средняя общеобразовтельная школа №35 с углубленным изучением отдельных предметов\" город Набережные Челны Республики Татарстан",15944104774,"Хуснутдинова","Элина","Ренатовна","ж","25.11.2005",null,11,11,"9",35.5,null,35.5,69,"участник","нет","Саетова Гульшат Вагизовна","Муниципальное автономное общеобразовательное учреждение  \"Средняя общеобразовтельная школа №35 с углубленным изучением отдельных предметов\" город Набережные Челны Республики Татарстан","Биология"]
[273,"261030_15994208715_27","Муниципальное бюджетное общеобразовательное учреждение \" Средняя общеобразовательная школа №30\"город Набережные Челны Республики Татарстан",15994208715,"Айметова","Анастасия","Андреевна","ж","2006-01-29","нет",11,11,"11",35.5,null,35.5,69,"участник","нет","Андрианова Альбина Абдулхатовна","Муниципальное бюджетное общеобразовательная учреждение \" Средняя общеобразовательная школа №30\"город Набережные Челны Республики Татарстан","Биология"]
[274,"261055_16996918057_27","Муниципальное автономное общеобразовательное учреждение  \"Средняя общеобразовательная школа №55\"город Набережные Челны Республики Татарстан",16996918057,"Вафина","Адиля","Абдукадыровна","ж","09.10.2006","нет",11,11,"9",35.5,null,35.5,69,"участник","нет","Оруджева Наталья Викторовна","Муниципальное автономное общеобразовательное учреждение  \"Средняя общеобразовательная школа №55\"город Набережные Челны Республики Татарстан","Биология"]
[275,"261060_15949144811_27","Муниципальное бюджетное общеобразовательное учреждение \"Средняя общеобразовательная школа №60\"город Набережные Челны Республики Татарстан",15949144811,"Бурганова","Эльза","Айратовна","ж","05.05.2006","нет",11,11,"10",35,null,35,69,"участник","нет","Насибуллина Маргарита Сергеевна","Муниципальное бюджетное общеобразовательное учреждение \"Средняя общеобразовательная школа №60\"город Набережные Челны Республики Татарстан","Биология"]
[276,"261028_15843484596_27","Муниципальное бюджетное общеобразовательное учреждение \"Средняя общеобразовательная школа №28\"город Набережные Челны Республики Татарстан",15843484596,"Терентьева","Карина","Сергеевна","ж","28.04.2006","нет",11,11,"10",34,null,34,69,"участник","нет","Ялалова Рита Адельшиновна","Муниципальное бюджетное общеобразовательное учреждение \"Средняя общеобразовательная школа №28\"город Набережные Челны Республики Татарстан","Биология"]
[277,"263054_16045510634_27","Муниципальное бюджетное общеобразовательное учреждение \"Гимназия №54\" город Набережные Челны Республика Татарстан",16045510634,"Шангараева","Алсу","Ильнуровна","ж","25.07.2006","нет",11,11,"11",34,null,34,69,"участник","нет","Забихуллина Айгуль Рафиковна","Муниципальное бюджетное общеобразовательное учреждение \"Гимназия №54\" город Набережные Челны Республика Татарстан","Биология"]
[278,"261008_15405965873_27","Муниципальное бюджетное общеобразовательное учреждение \"Средняя общеобразовательная школа №8\"город Набережные Челны Республики Татарстан",15405965873,"Идрисова","Сабина","Равилевна","ж","12.10.2006","нет",11,11,"9",32,null,32,69,"участник","нет","Савенко Любовь Михайловна","Муниципальное бюджетное общеобразовательное учреждение \"Средняя общеобразовательная школа №8\"город Набережные Челны Республики Татарстан","Биология"]
[279,"261053_15960785210_27","Муниципальное бюджетное общеобразовательное учреждение \"Средняя общеобразовательная школа №53\"город Набережные Челны Республики Татарстан",15960785210,"Жуковская","Каролина","Леонидовна","ж","25.05.2006","нет",11,11,"9",32,null,32,69,"участник","нет","Муфахарова Лейсан Вакифовна","Муниципальное бюджетное общеобразовательное учреждение \"Средняя общеобразовательная школа №53\"город Набережные Челны Республики Татарстан","Биология"]
[280,"261035_15954157902_27","Муниципальное автономное общеобразовательное учреждение  \"Средняя общеобразовтельная школа №35 с углубленным изучением отдельных предметов\" город Набережные Челны Республики Татарстан",15954157902,"Мулюкова","Кристина","Андреевна","ж","05.02.2006","нет",11,11,"7",31,null,31,69,"участник","нет","Саетова Гульшат Вагизовна","Муниципальное автономное общеобразовательное учреждение  \"Средняя общеобразовтельная школа №35 с углубленным изучением отдельных предметов\" город Набережные Челны Республики Татарстан","Биология"]
[281,"263054_15949126506_27","Муниципальное бюджетное общеобразовательное учреждение \"Гимназия №54\"город Набережные Челны Республика Татарстан",15949126506,"Нургалиева","Лиана","Инзиловна","ж","05.10.2005","нет",11,11,"8",31,null,31,69,"участник","нет","Забихуллина Айгуль Рафиковна","Муниципальное бюджетное общеобразовательное учреждение \"Гимназия №54\"город Набережные Челны Республика Татарстан","Биология"]
[282,"261025_15425081241_27","Муниципальное бюджетное общеобразовательное учреждение \"Средняя общеобразовательная школа №25\" город Набережные Челны Республики Татарстан",15425081241,"Иванова","Анна","Антоновна","ж","01.12.2005","нет",11,11,"9",30,null,30,69,"участник","нет","Глусская Галина Викторовна","Муниципальное бюджетное общеобразовательное учреждение \"Средняя общеобразовательная школа №25\" город Набережные Челны Республики Татарстан","Биология"]
[283,"261061_15990166402_27","Муниципальное автономное общеобразовательное учреждение \"Гимназия №61\" город Набережные Челны Республики Татарстан",15990166402,"Коновнина","Дарья","Александровна","ж","27.03.2006","нет",11,11,"10",27,null,27,69,"участник","нет","Степанова Елена Васильевна","Муниципальное автономное общеобразовательное учреждение \"Гимназия №61\" город Набережные Челны Республики Татарстан","Биология"]
[284,"263002_16127831760_27","Муниципальное бюджетное общеобразовательное учреждение \"Гимназия №2 имени Мулланура Вахитова\"город Набережные Челны Республики Татарстан",16127831760,"Султанова","Гузель","Фандусовна","ж","21.11.2006","нет",11,11,"15",27,null,27,69,"участник","нет","Сахбутдинова Раушания Робертовна","Муниципальное бюджетное общеобразовательное учреждение \"Гимназия №2 имени Мулланура Вахитова\" город Набережные Челны Республики Татарстан","Биология"]
[285,"261078_17503346607_27","Муниципальное автономное общеобразовательное учреждение \"Лицей №78 им. А. С. Пушкина\"город Набережные Челны Республики Татарстан",17503346607,"Фогт","Алекса","Андреевна","ж","10.10.2006","нет",11,11,"16",24,null,24,69,"участник","нет","Каширина Татьяна Юрьевна","Муниципальное автономное общеобразовательное учреждение \"Лицей №78 им. А. С. Пушкина\"город Набережные Челны Республики Татарстан","Биология"]
[286,"261022_18036606662_27","Муниципальное бюджетное образовательное учреждение \"Средняя общеобразовательная школа№22\"город Набережные Челны Республики Татарстан",18036606662,"Пшеницина","Екатерина","Андреевна","ж","10.12.2006","нет",11,11,"15",23,null,23,69,"участник","нет","Каримова Гузель Рамилевна","Муниципальное бюджетное образовательное учреждение \"Средняя общеобразовательная школа№22\"город Набережные Челны Республики Татарстан","Биология"]
[287,"261019_15960797621_27","Муниципальное бюджетное общеобразовательное учреждение \"Средняя общеобразовательная школа №19 с углубленным изучением отдельных предметов\"город Набережные Челны Республики Татарстан",15960797621,"Григорян","Лилиана","Арменовна","ж","10.02.2006","нет",11,11,"12",22,null,22,69,"участник","нет","Азовцева Альфия Мирзаяновна","Муниципальное бюджетное общеобразовательное учреждение \"Средняя общеобразовательная школа №19 с углубленным изучением отдельных предметов\"город Набережные Челны Республики Татарстан","Биология"]
[288,"261060_16070649961_27","Муниципальное бюджетное общеобразовательное учреждение \"Средняя общеобразовательная школа №60\"город Набережные Челны Республики Татарстан",16070649961,"Саитбурханова","Эльвира","Римовна","ж","12.06.2006","нет",11,11,"8",16.5,null,16.5,69,"участник","нет","Насибуллина Маргарита Сергеевна","Муниципальное бюджетное общеобразовательное учреждение \"Средняя общеобразовательная школа №60\"город Набережные Челны Республики Татарстан","Биология"]
[289,"261037_15891774019_27","Муниципальное бюджетное общеобразовательное учреждение\"Средняя общеобразовательное школа № 37 с углубленным изучением отдельных  предметов\" город Набережные Челны Республики Татарстан",15891774019,"Злоцкая","Елизавета","Андреевна","ж","07.07.2006","нет",11,11,"8",16.5,null,16.5,69,"участник","нет","Сабирова Гузель Ракиповна","Муниципальное бюджетное общеобразовательное учреждение\"Средняя общеобразовательное школа № 37 с углубленным изучением отдельных  предметов\" город Набережные Челны Республики Татарстан","Биология"]
[290,"261008_14500443211_27","Муниципальное бюджетное общеобразовательное учреждение \"Средняя общеобразовательная школа №8\"город Набережные Челны Республики Татарстан",14500443211,"Хованова","Регина","Радисовна","ж","12.07.2005","нет",11,11,"5",12,null,12,69,"участник","нет","Савенко Любовь Михайловна","Муниципальное бюджетное общеобразовательное учреждение \"Средняя общеобразовательная школа №8\"город Набережные Челны Республики Татарстан","Биология"]
[291,"261024_14823070944_27","Муниципальное бюджетное общеобразовательное учреждение \"Средняя общеобразовательная школа №24 с углубленным изучением отдельных предметов\" город Набережные Челны Республики Татарстан",14823070944,"Иоффе","Антон","Константинович","м","05.10.2006","нет",11,11,"14",41,null,41,69,"участник","нет","Смирнов Борис Александрович","Муниципальное бюджетное общеобразовательное учреждение \"Средняя общеобразовательная школа №24 с углубленным изучением отдельных предметов\" город Набережные Челны Республики Татарстан","Биология"]
[292,"261008_15955336806_27","Муниципальное бюджетное общеобразовательное учреждение \"Средняя общеобразовательная школа №8\"город Набережные Челны Республики Татарстан",15955336806,"Храмов","Иван","Валерьевич","м","01.10.2006","нет",11,11,"13",40,null,40,69,"участник","нет","Савенко Любовь Михайловна","Муниципальное бюджетное общеобразовательное учреждение \"Средняя общеобразовательная школа №8\"город Набережные Челны Республики Татарстан","Биология"]
[293,"261026_14591644179_27","Муниципальное бюджетное общеобразовательное учреждение \"Гимназия №26\" город Набережные Челны Республики Татарстан",14591644179,"Нефедьев","Захар","Дмитриевич","м","22.03.2007","нет",11,11,"13",38.5,null,38.5,69,"участник","нет","Моисеева Инна Анатольевна","Муниципальное бюджетное общеобразовательное учреждение \"Гимназия №26\" город Набережные Челны Республики Татарстан","Биология"]
[294,"263054_16055810349_27","Муниципальное бюджетное общеобразовательное учреждение \"Гимназия №54\" город Набережные Челны Республика Татарстан",16055810349,"Шайдуллин","Тахир","Дамирович","м","27.06.2006","нет",11,11,"14",38,null,38,69,"участник","нет","Забихуллина Айгуль Рафиковна","Муниципальное бюджетное общеобразовательное учреждение \"Гимназия №54\" город Набережные Челны Республика Татарстан","Биология"]
[295,"261042_17593344302_27","Муниципальное бюджетная общеобразовательное учреждение \"Средняя общеобразовательная школа № 42\"город Набережные Челны Республики Татарстан",17593344302,"Александренко","Илья","Николаевич","м","27.08.2006","нет",11,11,"9",38,null,38,69,"участник","нет","Сайранова Алина Гаптенуровна","Муниципальное бюджетная общеобразовательное учреждение \"Средняя общеобразовательная школа № 42\"город Набережные Челны Республики Татарстан","Биология"]
[296,"261006_16042347533_27","Муниципальное бюджетное общеобразовательное учреждение \"Средняя общеобразовательная школа №6\" город Набережные Челны Республики Татарстан",16042347533,"Голев","Андрей","Дмитриевич","м","17.10.2006","нет",11,11,"13",38,null,38,69,"участник","нет","Абдуллаева Ольга Николаевна","Муниципальное бюджетное общеобразовательное учреждение \"Средняя общеобразовательная школа №6\" город Набережные Челны Республики Татарстан","Биология"]
[297,"261061_15491441166_27","Муниципальное автономное общеобразовательное учреждение \"Гимназия №61\"город Набережные Челны Республики Татарстан",15491441166,"Хамитов","Рафкат","Робертович","м","10.01.2006","нет",11,11,"15",37.5,null,37.5,69,"участник","нет","Степанова Елена Васильевна","Муниципальное автономное общеобразовательное учреждение \"Гимназия №61\"город Набережные Челны Республики Татарстан","Биология"]
[298,"261049_16088144169_27","Муниципальное автономное общеобразовательное учреждение \"Кадетская школа №49\"город Набережные Челны Республики Татарстан",16088144169,"Дмитриев","Дмитрий","Александрович","м","26.11.2005","нет",11,11,"12",37.5,null,37.5,69,"участник","нет","Закирова Фирдавус Завитовна","Муниципальное автономное общеобразовательное учреждение \"Кадетская школа №49\"город Набережные Челны Республики Татарстан","Биология"]
[299,"263079_16164557270_27","Муниципальное бюджетное общеобразовательное учереждение \"Лицей-интернат №79\"город Набережные Челны Республики Татарстан",16164557270,"Стекольщиков","Руслан","Евгеньевич","м","19.01.2007","нет",11,11,"10",35,null,35,69,"участник","нет","Бариева Назия Галимулловна","Муниципальное бюджетное общеобразовательное учереждение \"Лицей-интернат №79\"город Набережные Челны Республики Татарстан","Биология"]
[300,"263084_15994224716_27","Муниципальное автономное общеобразовательное учреждение  \"Лицей-интернат №84 имени Гали Акыша\" город Набережные ЧелныРеспублики Татарстан",15994224716,"Халимов","Альмир","Рамилевич","м","15.11.2005","нет",11,11,"14",33,null,33,69,"участник","нет","Хабибулина Алсу Сабирзяновна","Муниципальное автономное общеобразовательное учреждение  \"Лицей-интернат №84 имени Гали Акыша\" город Набережные ЧелныРеспублики Татарстан","Биология"]
[301,"261042_15980574108_27","Муниципальное бюджетная общеобразовательное учреждение \"Средняя общеобразовательная школа № 42\"город Набережные Челны Республики Татарстан",15980574108,"Любецкий","Артемий","Олегович","м","03.10.2005","нет",11,11,"10",32.5,null,32.5,69,"участник","нет","Сайранова Алина Гаптенуровна","Муниципальное бюджетная общеобразовательное учреждение \"Средняя общеобразовательная школа № 42\"город Набережные Челны Республики Татарстан","Биология"]
[302,"261026_16045507241_27","Муниципальное бюджетное общеобразовательное учреждение \"Гимназия №26\" город Набережные Челны Республики Татарстан",16045507241,"Снарский","Лев","Константинович","м","24.03.2006","нет",11,11,"8",31.5,null,31.5,69,"участник","нет","Моисеева Инна Анатольевна","Муниципальное бюджетное общеобразовательное учреждение \"Гимназия №26\" город Набережные Челны Республики Татарстан","Биология"]